Ref No,Fund Type,Dept,Cost Centre Description    ,Description    ,Creditor Name    ,GL Code Net Amount,Payment date        
2,Revenue,CAHD,Central - Commissioned Services,Permanent Residential,1 St Georges House,13333.52, 22-Sep-2020
3,Revenue,CAHD,Supporting People Programme,Grants to Voluntary Bodies,1625 Independent People,15167.00, 01-Sep-2020
4,Revenue,CAHD,South - Commissioned Services,Permanent Residential,2Nd Floor Building,5630.76, 22-Sep-2020
5,Revenue,CAHD,South - Commissioned Services,Permanent Residential,2Nd Floor Building,2806.12, 22-Sep-2020
6,Revenue,CAHD,Central - Commissioned Services,Other Small Contracts,3 Trees Community Support Ltd,5123.39, 10-Sep-2020
7,Revenue,CAHD,Central - Commissioned Services,Supported Living,3 Trees Community Support Ltd,4963.00, 10-Sep-2020
8,Revenue,CAHD,Central - Commissioned Services,Other Small Contracts,3 Trees Community Support Ltd,5131.84, 14-Sep-2020
9,Revenue,CAHD,Central - Commissioned Services,Supported Living,3 Trees Community Support Ltd,4963.00, 14-Sep-2020
10,Revenue,CAHD,Central - Commissioned Services,Other Small Contracts,3 Trees Community Support Ltd,5128.35, 24-Sep-2020
11,Revenue,CAHD,Central - Commissioned Services,Supported Living,3 Trees Community Support Ltd,4960.52, 24-Sep-2020
12,Revenue,CAHD,Central - Commissioned Services,Other Small Contracts,3 Trees Community Support Ltd,5131.84, 30-Sep-2020
13,Revenue,CAHD,Central - Commissioned Services,Supported Living,3 Trees Community Support Ltd,4945.56, 30-Sep-2020
14,Revenue,CAHD,South - Commissioned Services,Permanent Nursing,3Rd Floor  The Aspect,3593.88, 22-Sep-2020
15,Revenue,CAHD,North - Community based support,Permanent Nursing,3Rd Floor  The Aspect,3234.72, 22-Sep-2020
16,Revenue,CAHD,South - Commissioned Services,Permanent Nursing,3Rd Floor  The Aspect,2287.36, 22-Sep-2020
17,Revenue,CAHD,South - Commissioned Services,Permanent Nursing,3Rd Floor  The Aspect,2789.80, 22-Sep-2020
18,Revenue,CAHD,South Glos Users in South Glos Homes,Permanent Nursing,3Rd Floor  The Aspect,735.68, 22-Sep-2020
19,Revenue,CAHD,South - Commissioned Services,Permanent Nursing,3Rd Floor  The Aspect,2445.96, 22-Sep-2020
20,Revenue,CAHD,South - Commissioned Services,Permanent Nursing,3Rd Floor  The Aspect,2445.96, 22-Sep-2020
21,Revenue,CAHD,South Glos Users in South Glos Homes,Permanent Nursing,3Rd Floor  The Aspect,735.68, 22-Sep-2020
22,Revenue,CAHD,South - Commissioned Services,Permanent Nursing,3Rd Floor  The Aspect,2445.96, 22-Sep-2020
23,Revenue,CAHD,South Glos Users in South Glos Homes,Permanent Nursing,3Rd Floor  The Aspect,735.68, 22-Sep-2020
24,Revenue,CAHD,South - Commissioned Services,Permanent Residential,3Rd Floor  The Aspect,2511.80, 22-Sep-2020
25,Revenue,CAHD,South Glos Users in South Glos Homes,Permanent Nursing,3Rd Floor  The Aspect,735.68, 22-Sep-2020
26,Revenue,CAHD,South - Commissioned Services,Permanent Nursing,3Rd Floor  The Aspect,2949.60, 22-Sep-2020
27,Revenue,CAHD,South Glos Users in South Glos Homes,Permanent Nursing,3Rd Floor  The Aspect,735.68, 22-Sep-2020
28,Revenue,CAHD,South Glos Users in South Glos Homes,Permanent Nursing,3Rd Floor  The Aspect,735.68, 22-Sep-2020
29,Revenue,CAHD,South Glos Users in South Glos Homes,Permanent Nursing,3Rd Floor  The Aspect,735.68, 22-Sep-2020
30,Revenue,CAHD,South Glos Users in South Glos Homes,Permanent Nursing,3Rd Floor  The Aspect,735.68, 22-Sep-2020
31,Revenue,CAHD,South - Commissioned Services,Permanent Nursing,3Rd Floor  The Aspect,2949.60, 22-Sep-2020
32,Revenue,CAHD,South Glos Users in South Glos Homes,Permanent Nursing,3Rd Floor  The Aspect,735.68, 22-Sep-2020
33,Revenue,CAHD,South - Commissioned Services,Permanent Residential,3Rd Floor  The Aspect,3203.04, 22-Sep-2020
34,Revenue,CAHD,South Glos Users in South Glos Homes,Permanent Nursing,3Rd Floor  The Aspect,735.68, 22-Sep-2020
35,Revenue,CAHD,South Glos Users in South Glos Homes,Permanent Nursing,3Rd Floor  The Aspect,735.68, 22-Sep-2020
36,Revenue,CAHD,South - Commissioned Services,Permanent Residential,3Rd Floor  The Aspect,3366.00, 22-Sep-2020
37,Revenue,CAHD,South - Commissioned Services,Permanent Nursing,3Rd Floor  The Aspect,2924.56, 22-Sep-2020
38,Revenue,CAHD,South - Commissioned Services,Permanent Nursing,3Rd Floor  The Aspect,3300.00, 22-Sep-2020
39,Revenue,CAHD,South - Commissioned Services,Permanent Nursing,3Rd Floor  The Aspect,2511.80, 22-Sep-2020
40,Revenue,CAHD,South Glos Users in South Glos Homes,Permanent Nursing,3Rd Floor  The Aspect,735.68, 22-Sep-2020
41,Revenue,CAHD,South - Commissioned Services,Permanent Nursing,3Rd Floor  The Aspect,2445.96, 22-Sep-2020
42,Revenue,CAHD,South Glos Users in South Glos Homes,Permanent Nursing,3Rd Floor  The Aspect,735.68, 22-Sep-2020
43,Revenue,CAHD,South - Commissioned Services,Permanent Nursing,3Rd Floor  The Aspect,2445.96, 22-Sep-2020
44,Revenue,CAHD,South Glos Users in South Glos Homes,Permanent Nursing,3Rd Floor  The Aspect,735.68, 22-Sep-2020
45,Revenue,CAHD,South - Commissioned Services,Permanent Residential,3Rd Floor  The Aspect,3190.56, 22-Sep-2020
46,Revenue,CAHD,South - Commissioned Services,Permanent Nursing,3Rd Floor  The Aspect,2445.96, 22-Sep-2020
47,Revenue,CAHD,South Glos Users in South Glos Homes,Permanent Nursing,3Rd Floor  The Aspect,735.68, 22-Sep-2020
48,Revenue,CAHD,South - Commissioned Services,Permanent Residential,3Rd Floor  The Aspect,2949.60, 22-Sep-2020
49,Revenue,CAHD,South Glos Users in South Glos Homes,Permanent Nursing,3Rd Floor  The Aspect,735.68, 22-Sep-2020
50,Revenue,CAHD,South - Commissioned Services,Permanent Residential,5Th Floor Harlech Court,17000.48, 22-Sep-2020
51,Revenue,CAHD,South - Commissioned Services,Permanent Residential,5Th Floor Harlech Court,10627.92, 22-Sep-2020
52,Revenue,CAHD,S28A cases,Permanent Residential,5Th Floor Harlech Court,11122.76, 22-Sep-2020
53,Revenue,CAHD,South - Commissioned Services,Permanent Residential,5Th Floor Harlech Court,11665.12, 22-Sep-2020
54,Revenue,CAHD,North - Community based support,Permanent Residential,5Th Floor Harlech Court,12498.56, 22-Sep-2020
55,Revenue,CAHD,North - Community based support,Permanent Residential,5Th Floor Harlech Court,10537.24, 22-Sep-2020
56,Revenue,CAHD,North - Community based support,Permanent Residential,5Th Floor Harlech Court,9071.12, 22-Sep-2020
57,Revenue,CAHD,Alexandra Way,Mechanical & Electrical Maintenance,A E Horder (Contracting) Limited,483.02, 10-Sep-2020
58,Revenue,CAHD,Covid 19 -Adult Social Care,Permanent Residential,Acacia House,976.38, 04-Sep-2020
59,Revenue,CAHD,South - Commissioned Services,Permanent Nursing,Acacia House,2996.00, 22-Sep-2020
60,Revenue,CAHD,Jointly Funded H&SC Packages,Permanent Residential,Acorn Care Providers,2310.92, 22-Sep-2020
61,Revenue,CAHD,Section 117 Placements MH Younger,Permanent Residential,Acorn Care Providers,5481.28, 22-Sep-2020
62,Revenue,CAHD,North - S117,Permanent Residential,Acorn Care Providers,3978.00, 22-Sep-2020
63,Revenue,CAHD,Jointly Funded H&SC Packages,Permanent Residential,Acorn Care Providers,2142.00, 22-Sep-2020
64,Revenue,CAHD,MH Purchasing - Younger,Permanent Residential,Acorn Care Providers,6382.04, 22-Sep-2020
65,Revenue,CAHD,Jointly Funded H&SC Packages,Permanent Residential,Acorn Care Providers,3436.48, 22-Sep-2020
66,Revenue,CAHD,MH Purchasing - Younger,Permanent Residential,Acorn Care Providers,6266.88, 22-Sep-2020
67,Revenue,CAHD,Training - Adult Services,Training Expenses,Acorn Health & Safety Limited,477.00, 07-Sep-2020
68,Revenue,CAHD,CSC - Agency Fostering,Foster Parent Allowances,Action for Children,771.42, 09-Sep-2020
69,Revenue,CAHD,CSC - Agency Fostering,Foster Parent Allowances,Action for Children,6975.00, 04-Sep-2020
70,Revenue,CAHD,CSC - Agency Fostering,Foster Parent Allowances,Action for Children,3660.17, 04-Sep-2020
71,Revenue,CAHD,CSC - Agency Fostering,Foster Parent Allowances,Action for Children,3660.17, 04-Sep-2020
72,Revenue,CAHD,South - Commissioned Services,Supported Living,Action on Hearing Loss,553.64, 01-Sep-2020
73,Revenue,CAHD,South - Commissioned Services,Supported Living,Action on Hearing Loss,724.51, 16-Sep-2020
74,Revenue,CAHD,Covid 19 -Adult Social Care,Permanent Residential,Administration And Revenue Centre,1096.66, 04-Sep-2020
75,Revenue,CAHD,North - Community based support,Permanent Residential,Admirals Reach Care Home,2852.40, 22-Sep-2020
76,Revenue,CAHD,South - Commissioned Services,Other Small Contracts,Advantedge Commercial Finance Limited,1365.96, 16-Sep-2020
77,Revenue,CAHD,South - Commissioned Services,Other Small Contracts,Advantedge Commercial Finance Limited,1224.72, 08-Sep-2020
78,Revenue,CAHD,South - Commissioned Services,Other Small Contracts,Advantedge Commercial Finance Limited,816.48, 07-Sep-2020
79,Revenue,CAHD,South - Commissioned Services,Other Small Contracts,Advantedge Commercial Finance Limited,680.40, 22-Sep-2020
80,Revenue,CAHD,South - Commissioned Services,Other Small Contracts,Advantedge Commercial Finance Limited,2225.88, 07-Sep-2020
81,Revenue,CAHD,South - Commissioned Services,Other Small Contracts,Advantedge Commercial Finance Limited,972.00, 07-Sep-2020
82,Revenue,CAHD,North - Community based support,Other Small Contracts,Advantedge Commercial Finance Limited,952.56, 07-Sep-2020
83,Revenue,CAHD,South - Commissioned Services,Other Small Contracts,Advantedge Commercial Finance Limited,1584.36, 07-Sep-2020
84,Revenue,CAHD,South - Commissioned Services,Other Small Contracts,Advantedge Commercial Finance Limited,1360.80, 04-Sep-2020
85,Revenue,CAHD,South - Commissioned Services,Other Small Contracts,Advantedge Commercial Finance Limited,1030.32, 09-Sep-2020
86,Revenue,CAHD,South - Commissioned Services,Other Small Contracts,Advantedge Commercial Finance Limited,1224.72, 08-Sep-2020
87,Revenue,CAHD,South - Commissioned Services,Other Small Contracts,Advantedge Commercial Finance Limited,816.48, 08-Sep-2020
88,Revenue,CAHD,South - Commissioned Services,Other Small Contracts,Advantedge Commercial Finance Limited,972.00, 08-Sep-2020
89,Revenue,CAHD,North - Community based support,Other Small Contracts,Advantedge Commercial Finance Limited,952.56, 08-Sep-2020
90,Revenue,CAHD,South - Commissioned Services,Other Small Contracts,Advantedge Commercial Finance Limited,1360.80, 08-Sep-2020
91,Revenue,CAHD,South - Commissioned Services,Day Care / Social Activities,Age Concern,634.08, 22-Sep-2020
92,Revenue,CAHD,Central - Commissioned Services,Day Care / Social Activities,Age Concern,546.72, 22-Sep-2020
93,Revenue,CAHD,North - Community based support,Day Care / Social Activities,Age Concern,734.40, 22-Sep-2020
94,Revenue,CAHD,Central - Commissioned Services,Day Care / Social Activities,Age Concern,546.72, 22-Sep-2020
95,Revenue,CAHD,Central - Commissioned Services,Day Care / Social Activities,Age Concern,634.08, 22-Sep-2020
96,Revenue,CAHD,Central - Commissioned Services,Day Care / Social Activities,Age Concern,634.08, 22-Sep-2020
97,Revenue,CAHD,Covid 19 -Adult Social Care,Other Supplies & Services,Age Concern South Gloucestershire,21000.00, 17-Sep-2020
98,Revenue,CAHD,Extra Care Housing,Private & Voluntary Home Care,Agincare UK Limited,606.84, 30-Sep-2020
99,Revenue,CAHD,South - Commissioned Services,Other Small Contracts,Agincare UK Limited,1690.50, 04-Sep-2020
100,Revenue,CAHD,Younger MH non-res purchasing,Other Small Contracts,Agincare UK Limited,77.28, 04-Sep-2020
101,Revenue,CAHD,South - Commissioned Services,Other Small Contracts,Agincare UK Limited,1642.20, 10-Sep-2020
102,Revenue,CAHD,Younger MH non-res purchasing,Other Small Contracts,Agincare UK Limited,77.28, 10-Sep-2020
103,Revenue,CAHD,South - Commissioned Services,Other Small Contracts,Agincare UK Limited,1487.64, 15-Sep-2020
104,Revenue,CAHD,Younger MH non-res purchasing,Other Small Contracts,Agincare UK Limited,77.28, 15-Sep-2020
105,Revenue,CAHD,South - Commissioned Services,Other Small Contracts,Agincare UK Limited,1468.32, 30-Sep-2020
106,Revenue,CAHD,Younger MH non-res purchasing,Other Small Contracts,Agincare UK Limited,77.28, 30-Sep-2020
107,Revenue,CAHD,South - Commissioned Services,Other Small Contracts,Agincare UK Limited,1550.43, 30-Sep-2020
108,Revenue,CAHD,Younger MH non-res purchasing,Other Small Contracts,Agincare UK Limited,19.32, 30-Sep-2020
109,Revenue,CAHD,Extra Care Housing,Private & Voluntary Home Care,Agincare UK Limited,24391.34, 01-Sep-2020
110,Revenue,CAHD,Extra Care Housing,Private & Voluntary Home Care,Agincare UK Limited,11734.93, 01-Sep-2020
111,Revenue,CAHD,Extra Care Housing,Private & Voluntary Home Care,Agincare UK Limited,29078.70, 04-Sep-2020
112,Revenue,CAHD,Extra Care Housing,Private & Voluntary Home Care,Agincare UK Limited,2508.47, 17-Sep-2020
113,Revenue,CAHD,Extra Care Housing,Private & Voluntary Home Care,Agincare UK Limited,1730.30, 04-Sep-2020
114,Revenue,CAHD,Extra Care Housing,Private & Voluntary Home Care,Agincare UK Limited,4114.32, 17-Sep-2020
115,Revenue,CAHD,Extra Care Housing,Private & Voluntary Home Care,Agincare UK Limited,4783.45, 17-Sep-2020
116,Revenue,CAHD,Extra Care Housing,Private & Voluntary Home Care,Agincare UK Limited,4119.85, 17-Sep-2020
117,Revenue,CAHD,Extra Care Housing,Private & Voluntary Home Care,Agincare UK Limited,2516.15, 04-Sep-2020
118,Revenue,CAHD,Central - Commissioned Services,Permanent Residential,Alexander House,12155.16, 22-Sep-2020
119,Revenue,CAHD,Covid 19 -Adult Social Care,Other Small Contracts,AliMo Care Ltd,9.56, 04-Sep-2020
120,Revenue,CAHD,South - Commissioned Services,Other Small Contracts,AliMo Care Ltd,798.26, 04-Sep-2020
121,Revenue,CAHD,North - Community based support,Other Small Contracts,AliMo Care Ltd,224.66, 04-Sep-2020
122,Revenue,CAHD,Covid 19 -Adult Social Care,Other Small Contracts,AliMo Care Ltd,9.56, 04-Sep-2020
123,Revenue,CAHD,South - Commissioned Services,Other Small Contracts,AliMo Care Ltd,1013.36, 04-Sep-2020
124,Revenue,CAHD,North - Community based support,Other Small Contracts,AliMo Care Ltd,258.12, 04-Sep-2020
125,Revenue,CAHD,Covid 19 -Adult Social Care,Other Small Contracts,AliMo Care Ltd,9.56, 15-Sep-2020
126,Revenue,CAHD,South - Commissioned Services,Other Small Contracts,AliMo Care Ltd,1027.70, 15-Sep-2020
127,Revenue,CAHD,North - Community based support,Other Small Contracts,AliMo Care Ltd,239.00, 15-Sep-2020
128,Revenue,CAHD,North - Community based support,Permanent Nursing,Allambie Court,2320.44, 22-Sep-2020
129,Revenue,CAHD,Central - Commissioned Services,Permanent Residential,Alvony House Residential Care Home,3000.00, 22-Sep-2020
130,Revenue,CAHD,CSC - Residential Placements,Permanent Residential,Amberleigh Care Ltd,17439.71, 03-Sep-2020
131,Revenue,CAHD,CSC - Residential Placements,Permanent Residential,Amberleigh Care Ltd,17439.71, 02-Sep-2020
132,Revenue,CAHD,CSC - Residential Placements,Permanent Residential,Ambito Care and Education,14448.18, 10-Sep-2020
133,Revenue,CAHD,CSC - Residential Placements,Permanent Residential,Ambito Care and Education,19930.88, 10-Sep-2020
134,Revenue,CAHD,CSC - Residential Placements,Permanent Residential,Ambito Care and Education,19920.87, 30-Sep-2020
135,Revenue,CAHD,CSC - Residential Placements,Permanent Residential,Ambito Care and Education,19930.88, 30-Sep-2020
136,Revenue,CAHD,North - Community based support,Permanent Nursing,Amerind Grove Nursing Home,2706.32, 22-Sep-2020
137,Revenue,CAHD,CSC - Agency Fostering,Foster Parent Allowances,Amicus Foster Care Ltd,2361.15, 02-Sep-2020
138,Revenue,CAHD,CSC - Agency Fostering,Foster Parent Allowances,Amicus Foster Care Ltd,4879.00, 08-Sep-2020
139,Revenue,CAHD,Early Years High Needs Support,Other Private Contractors,Anchor Day Nursery Ltd,880.71, 30-Sep-2020
140,Revenue,CAHD,South - Commissioned Services,Other Supplies & Services,Anchor Hanover Group,1649.57, 30-Sep-2020
141,Revenue,CAHD,South - Commissioned Services,Other Supplies & Services,Anchor Hanover Group,637.81, 29-Sep-2020
142,Revenue,CAHD,Supporting People Programme,Grants to Voluntary Bodies,Anchor Hanover Group,1039.00, 01-Sep-2020
143,Revenue,CAHD,Supporting People Programme,Grants to Voluntary Bodies,Anchor Hanover Group,847.00, 01-Sep-2020
144,Revenue,CAHD,Younger MH non-res purchasing,Supported Living,Archcare Rehab Limited,1957.40, 22-Sep-2020
145,Revenue,CAHD,North - Community based support,Permanent Nursing,Argentum Lodge,4000.00, 22-Sep-2020
146,Revenue,CAHD,South - Commissioned Services,Permanent Residential,Ash View House,5529.44, 22-Sep-2020
147,Revenue,CAHD,Jointly Funded H&SC Packages,Permanent Residential,Ash View House,1133.64, 22-Sep-2020
148,Revenue,CAHD,S117 Placements PCT,Permanent Residential,Ash View House,7707.44, 22-Sep-2020
149,Revenue,CAHD,North - Community based support,Permanent Residential,Ash View House,7099.52, 22-Sep-2020
150,Revenue,CAHD,North - Community based support,Permanent Residential,Ash View House,7120.00, 22-Sep-2020
151,Revenue,CAHD,Section 117 Placements MH Younger,Permanent Residential,Ash View House,5022.60, 22-Sep-2020
152,Revenue,CAHD,Jointly Funded H&SC Packages,Permanent Residential,Ash View House,2152.60, 22-Sep-2020
153,Revenue,CAHD,South - S117,Permanent Residential,Ash View House,6826.64, 22-Sep-2020
154,Revenue,CAHD,South - Commissioned Services,Permanent Residential,Ash View House,6747.84, 22-Sep-2020
155,Revenue,CAHD,North - Community based support,Permanent Residential,Aspects 2 Limited,7231.88, 22-Sep-2020
156,Revenue,CAHD,Supporting People Programme,Grants to Voluntary Bodies,Aspects and Milestones Trust,3441.00, 01-Sep-2020
157,Revenue,CAHD,Supporting People Programme,Grants to Voluntary Bodies,Aspects and Milestones Trust,1725.00, 01-Sep-2020
158,Revenue,CAHD,CSC - Care Leavers Independent Living,Adults - Family Support,Aspirations Support Bristol Limited,15419.68, 11-Sep-2020
159,Revenue,CAHD,CSC - Care Leavers Independent Living,Adults - Family Support,Aspirations Support Bristol Limited,15419.68, 14-Sep-2020
160,Revenue,CAHD,South - Commissioned Services,Permanent Residential,Astbury Manor,1068.35, 22-Sep-2020
161,Revenue,CAHD,Shared Lives,Other Supplies & Services,Ategi Limited,51943.75, 30-Sep-2020
162,Revenue,CAHD,South - Commissioned Services,Adults - Family Support,Ategi Limited,16210.88, 16-Sep-2020
163,Revenue,CAHD,South - Commissioned Services,Permanent Residential,Autism Specialised Care Homes,6506.88, 22-Sep-2020
164,Revenue,CAHD,Younger Adult Mental Health,Inter Directorate Recharges,Avon & Wiltshire Mental Health,14583.00, 08-Sep-2020
165,Revenue,CAHD,Younger Adult Mental Health,Health Services (Third Party Payments),Avon & Wiltshire Mental Health,1693.33, 29-Sep-2020
166,Revenue,CAHD,South - Commissioned Services,Permanent Nursing,Avon Lodge Care Centre,4341.36, 22-Sep-2020
167,Revenue,CAHD,South Glos Users in South Glos Homes,Permanent Nursing,Avon Lodge Care Centre,735.68, 22-Sep-2020
168,Revenue,CAHD,South Glos Users in South Glos Homes,Permanent Nursing,Avon Lodge Care Centre,735.68, 22-Sep-2020
169,Revenue,CAHD,South - Commissioned Services,Permanent Nursing,Avon Lodge Care Centre,4311.16, 22-Sep-2020
170,Revenue,CAHD,South Glos Users in South Glos Homes,Permanent Nursing,Avon Lodge Care Centre,735.68, 22-Sep-2020
171,Revenue,CAHD,South Glos Users in South Glos Homes,Permanent Nursing,Avon Lodge Care Centre,735.68, 22-Sep-2020
172,Revenue,CAHD,South - Commissioned Services,Fees & Charges Income - General,Avon Lodge Care Centre,1993.67, 22-Sep-2020
173,Revenue,CAHD,South - Commissioned Services,Permanent Nursing,Avon Lodge Care Centre,4537.76, 22-Sep-2020
174,Revenue,CAHD,South Glos Users in South Glos Homes,Permanent Nursing,Avon Lodge Care Centre,735.68, 22-Sep-2020
175,Revenue,CAHD,Central - Commissioned Services,Permanent Nursing,Avon Lodge Care Centre,4311.16, 22-Sep-2020
176,Revenue,CAHD,South Glos Users in South Glos Homes,Permanent Nursing,Avon Lodge Care Centre,735.68, 22-Sep-2020
177,Revenue,CAHD,South Glos Users in South Glos Homes,Permanent Nursing,Avon Lodge Care Centre,735.68, 22-Sep-2020
178,Revenue,CAHD,South Glos Users in South Glos Homes,Permanent Nursing,Avon Lodge Care Centre,735.68, 22-Sep-2020
179,Revenue,CAHD,South - Commissioned Services,Permanent Nursing,Avon Lodge Care Centre,3448.20, 22-Sep-2020
180,Revenue,CAHD,South Glos Users in South Glos Homes,Permanent Nursing,Avon Lodge Care Centre,735.68, 22-Sep-2020
181,Revenue,CAHD,South - Commissioned Services,Permanent Nursing,Avon Lodge Care Centre,4311.16, 22-Sep-2020
182,Revenue,CAHD,South Glos Users in South Glos Homes,Permanent Nursing,Avon Lodge Care Centre,735.68, 22-Sep-2020
183,Revenue,CAHD,South - Commissioned Services,Permanent Nursing,Avon Lodge Care Centre,4347.88, 22-Sep-2020
184,Revenue,CAHD,South Glos Users in South Glos Homes,Permanent Nursing,Avon Lodge Care Centre,735.68, 22-Sep-2020
185,Revenue,CAHD,South Glos Users in South Glos Homes,Permanent Nursing,Avon Lodge Care Centre,735.68, 22-Sep-2020
186,Revenue,CAHD,South Glos Users in South Glos Homes,Permanent Nursing,Avon Lodge Care Centre,735.68, 22-Sep-2020
187,Revenue,CAHD,South - Commissioned Services,Permanent Nursing,Avon Lodge Care Centre,4403.84, 22-Sep-2020
188,Revenue,CAHD,South Glos Users in South Glos Homes,Permanent Nursing,Avon Lodge Care Centre,735.68, 22-Sep-2020
189,Revenue,CAHD,South - Commissioned Services,Permanent Nursing,Avon Lodge Care Centre,4311.16, 22-Sep-2020
190,Revenue,CAHD,South Glos Users in South Glos Homes,Permanent Nursing,Avon Lodge Care Centre,735.68, 22-Sep-2020
191,Revenue,CAHD,South Glos Users in South Glos Homes,Permanent Nursing,Avon Lodge Care Centre,735.68, 22-Sep-2020
192,Revenue,CAHD,Central - Commissioned Services,Permanent Nursing,Avon Lodge Care Centre,3884.80, 22-Sep-2020
193,Revenue,CAHD,South Glos Users in South Glos Homes,Permanent Nursing,Avon Lodge Care Centre,735.68, 22-Sep-2020
194,Revenue,CAHD,South - Commissioned Services,Permanent Nursing,Avon Lodge Care Centre,4530.04, 22-Sep-2020
195,Revenue,CAHD,South Glos Users in South Glos Homes,Permanent Nursing,Avon Lodge Care Centre,735.68, 22-Sep-2020
196,Revenue,CAHD,South - S117,Permanent Nursing,Avon Lodge Care Centre,3885.48, 22-Sep-2020
197,Revenue,CAHD,South Glos Users in South Glos Homes,Permanent Nursing,Avon Lodge Care Centre,735.68, 22-Sep-2020
198,Revenue,CAHD,South Glos Users in South Glos Homes,Permanent Nursing,Avon Lodge Care Centre,735.68, 22-Sep-2020
199,Revenue,CAHD,South Glos Users in South Glos Homes,Permanent Nursing,Avon Lodge Care Centre,735.68, 22-Sep-2020
200,Revenue,CAHD,South - Commissioned Services,Permanent Residential,Avon Valley Care Home,3960.00, 22-Sep-2020
201,Revenue,CAHD,South - Commissioned Services,Permanent Residential,Avon Valley Care Home,4000.00, 22-Sep-2020
202,Revenue,CAHD,South - Commissioned Services,Fees & Charges Income - General,Avon Valley Care Home,726.03, 22-Sep-2020
203,Revenue,CAHD,South - Commissioned Services,Permanent Residential,Avon Valley Care Home,3960.00, 22-Sep-2020
204,Revenue,CAHD,South - Commissioned Services,Permanent Residential,Avon Valley Care Home,4000.00, 22-Sep-2020
205,Revenue,CAHD,South - Commissioned Services,Permanent Residential,Avon Valley Care Home,4800.00, 22-Sep-2020
206,Revenue,CAHD,South - Commissioned Services,Fees & Charges Income - General,Avon Valley Care Home,14621.43, 22-Sep-2020
207,Revenue,CAHD,South - Commissioned Services,Fees & Charges Income - General,Avon Valley Care Home,1642.86, 22-Sep-2020
208,Revenue,CAHD,South - Commissioned Services,Permanent Residential,Avon Valley Care Home,3960.00, 22-Sep-2020
209,Revenue,CAHD,South - Commissioned Services,Fees & Charges Income - General,Avon Valley Care Home,4552.47, 22-Sep-2020
210,Revenue,CAHD,South - Commissioned Services,Fees & Charges Income - General,Avon Valley Care Home,4642.53, 22-Sep-2020
211,Revenue,CAHD,South - Commissioned Services,Fees & Charges Income - General,Avon Valley Care Home,1228.57, 22-Sep-2020
212,Revenue,CAHD,South - Commissioned Services,Fees & Charges Income - General,Avon Valley Care Home,1228.57, 22-Sep-2020
213,Revenue,CAHD,South - Commissioned Services,Fees & Charges Income - General,Avon Valley Care Home,1482.20, 22-Sep-2020
214,Revenue,CAHD,South - Commissioned Services,Fees & Charges Income - General,Avon Valley Care Home,3417.00, 22-Sep-2020
215,Revenue,CAHD,South - Commissioned Services,Fees & Charges Income - General,Avon Valley Care Home,1214.29, 22-Sep-2020
216,Revenue,CAHD,South - Commissioned Services,Fees & Charges Income - General,Avon Valley Care Home,19580.00, 22-Sep-2020
217,Revenue,CAHD,South - Commissioned Services,Fees & Charges Income - General,Avon Valley Care Home,2200.00, 22-Sep-2020
218,Revenue,CAHD,South - Commissioned Services,Fees & Charges Income - General,Avon Valley Care Home,2424.13, 22-Sep-2020
219,Revenue,CAHD,South - Commissioned Services,Fees & Charges Income - General,Avon Valley Care Home,1628.57, 22-Sep-2020
220,Revenue,CAHD,South - Commissioned Services,Fees & Charges Income - General,Avon Valley Care Home,1789.54, 22-Sep-2020
221,Revenue,CAHD,South - Commissioned Services,Fees & Charges Income - General,Avon Valley Care Home,1257.14, 22-Sep-2020
222,Revenue,CAHD,South - Commissioned Services,Fees & Charges Income - General,Avon Valley Care Home,3253.44, 22-Sep-2020
223,Revenue,CAHD,South - Commissioned Services,Fees & Charges Income - General,Avon Valley Care Home,2185.71, 22-Sep-2020
224,Revenue,CAHD,South - Commissioned Services,Permanent Residential,Avon Valley Care Home,4000.00, 22-Sep-2020
225,Revenue,CAHD,North - Community based support,Permanent Residential,Avon Valley Care Home,3600.00, 22-Sep-2020
226,Revenue,CAHD,Central - Commissioned Services,Permanent Residential,Avon Valley Care Home,4000.00, 22-Sep-2020
227,Revenue,CAHD,Covid 19- Spend on behalf of NHS,Respite Planned - Nursing,Badminton Place,4457.14, 22-Sep-2020
228,Revenue,CAHD,Covid 19- Spend on behalf of NHS,Respite Planned - Nursing,Badminton Place,4457.14, 22-Sep-2020
229,Revenue,CAHD,CSC - Care Leavers Support Costs,Personal Needs of Clients,Barnardo Services Limited,2970.30, 15-Sep-2020
230,Revenue,CAHD,Pensions - Non DSG,Annual Pension,Bath & North East Somerset Council,106078.23, 30-Sep-2020
231,Revenue,CAHD,North - Community based support,Permanent Nursing,Beacher Hall Care Home,6137.76, 22-Sep-2020
232,Revenue,CAHD,Pathway 3 - (Complex Beds),Permanent Nursing,Beaufort Care Ltd,5682.72, 16-Sep-2020
233,Revenue,CAHD,South Glos Users in South Glos Homes,Permanent Nursing,Beaufort Grange Care Home,735.68, 22-Sep-2020
234,Revenue,CAHD,South Glos Users in South Glos Homes,Permanent Nursing,Beaufort Grange Care Home,2312.14, 22-Sep-2020
235,Revenue,CAHD,South Glos Users in South Glos Homes,Permanent Nursing,Beaufort Grange Care Home,1734.10, 22-Sep-2020
236,Revenue,CAHD,South Glos Users in South Glos Homes,Permanent Nursing,Beaufort Grange Care Home,735.68, 22-Sep-2020
237,Revenue,CAHD,South Glos Users in South Glos Homes,Permanent Nursing,Beaufort Grange Care Home,735.68, 22-Sep-2020
238,Revenue,CAHD,South Glos Users in South Glos Homes,Permanent Nursing,Beaufort Grange Care Home,735.68, 22-Sep-2020
239,Revenue,CAHD,South Glos Users in South Glos Homes,Permanent Nursing,Beaufort Grange Care Home,735.68, 22-Sep-2020
240,Revenue,CAHD,South Glos Users in South Glos Homes,Permanent Nursing,Beaufort Grange Care Home,735.68, 22-Sep-2020
241,Revenue,CAHD,South Glos Users in South Glos Homes,Permanent Nursing,Beaufort Grange Care Home,735.68, 22-Sep-2020
242,Revenue,CAHD,South Glos Users in South Glos Homes,Permanent Nursing,Beaufort Grange Care Home,735.68, 22-Sep-2020
243,Revenue,CAHD,South Glos Users in South Glos Homes,Permanent Nursing,Beaufort Grange Care Home,735.68, 22-Sep-2020
244,Revenue,CAHD,North - S117,Permanent Nursing,Beaufort Grange Care Home,4877.04, 22-Sep-2020
245,Revenue,CAHD,South Glos Users in South Glos Homes,Permanent Nursing,Beaufort Grange Care Home,735.68, 22-Sep-2020
246,Revenue,CAHD,South Glos Users in South Glos Homes,Permanent Nursing,Beaufort Grange Care Home,735.68, 22-Sep-2020
247,Revenue,CAHD,South Glos Users in South Glos Homes,Permanent Nursing,Beaufort Grange Care Home,735.68, 22-Sep-2020
248,Revenue,CAHD,North - Community based support,Respite Emergency - Residential,Beaufort Grange Care Home,10942.29, 22-Sep-2020
249,Revenue,CAHD,North - Community based support,Respite Emergency - Residential,Beaufort Grange Care Home,8250.00, 22-Sep-2020
250,Revenue,CAHD,South Glos Users in South Glos Homes,Permanent Nursing,Beaufort Grange Care Home,3126.64, 22-Sep-2020
251,Revenue,CAHD,South Glos Users in South Glos Homes,Permanent Nursing,Beaufort Grange Care Home,735.68, 22-Sep-2020
252,Revenue,CAHD,South Glos Users in South Glos Homes,Permanent Nursing,Beaufort Grange Care Home,2469.78, 22-Sep-2020
253,Revenue,CAHD,South Glos Users in South Glos Homes,Permanent Nursing,Beaufort Grange Care Home,735.68, 22-Sep-2020
254,Revenue,CAHD,South Glos Users in South Glos Homes,Permanent Nursing,Beaufort Grange Care Home,735.68, 22-Sep-2020
255,Revenue,CAHD,South Glos Users in South Glos Homes,Permanent Nursing,Beaufort Grange Care Home,735.68, 22-Sep-2020
256,Revenue,CAHD,South Glos Users in South Glos Homes,Permanent Nursing,Beaufort Grange Care Home,735.68, 22-Sep-2020
257,Revenue,CAHD,North - S117,Permanent Nursing,Beaufort Grange Care Home,5005.76, 22-Sep-2020
258,Revenue,CAHD,South Glos Users in South Glos Homes,Permanent Nursing,Beaufort Grange Care Home,735.68, 22-Sep-2020
259,Revenue,CAHD,Central - Commissioned Services,Respite Planned - Residential,Beaufort Grange Care Home,4932.32, 22-Sep-2020
260,Revenue,CAHD,South Glos Users in South Glos Homes,Permanent Nursing,Beaufort Grange Care Home,735.68, 22-Sep-2020
261,Revenue,CAHD,South Glos Users in South Glos Homes,Permanent Nursing,Beaufort Grange Care Home,735.68, 22-Sep-2020
262,Revenue,CAHD,South Glos Users in South Glos Homes,Permanent Nursing,Beaufort Grange Care Home,1287.44, 22-Sep-2020
263,Revenue,CAHD,South Glos Users in South Glos Homes,Permanent Nursing,Beaufort Grange Care Home,735.68, 22-Sep-2020
264,Revenue,CAHD,South Glos Users in South Glos Homes,Permanent Nursing,Beaufort Grange Care Home,735.68, 22-Sep-2020
265,Revenue,CAHD,South Glos Users in South Glos Homes,Permanent Nursing,Beaufort Grange Care Home,735.68, 22-Sep-2020
266,Revenue,CAHD,South Glos Users in South Glos Homes,Permanent Nursing,Beaufort Grange Care Home,735.68, 22-Sep-2020
267,Revenue,CAHD,South Glos Users in South Glos Homes,Permanent Nursing,Beaufort Grange Care Home,735.68, 22-Sep-2020
268,Revenue,CAHD,South Glos Users in South Glos Homes,Permanent Nursing,Beaufort Grange Care Home,735.68, 22-Sep-2020
269,Revenue,CAHD,South Glos Users in South Glos Homes,Permanent Nursing,Beaufort Grange Care Home,735.68, 22-Sep-2020
270,Revenue,CAHD,South Glos Users in South Glos Homes,Permanent Nursing,Beaufort Grange Care Home,735.68, 22-Sep-2020
271,Revenue,CAHD,South Glos Users in South Glos Homes,Permanent Nursing,Beaufort Grange Care Home,735.68, 22-Sep-2020
272,Revenue,CAHD,South Glos Users in South Glos Homes,Permanent Nursing,Beaufort Grange Care Home,735.68, 22-Sep-2020
273,Revenue,CAHD,South Glos Users in South Glos Homes,Permanent Nursing,Beaufort Grange Care Home,735.68, 22-Sep-2020
274,Revenue,CAHD,South Glos Users in South Glos Homes,Permanent Nursing,Beaufort Grange Care Home,1648.55, 22-Sep-2020
275,Revenue,CAHD,South Glos Users in South Glos Homes,Permanent Nursing,Beaufort Grange Care Home,735.68, 22-Sep-2020
276,Revenue,CAHD,South Glos Users in South Glos Homes,Permanent Nursing,Beaufort Grange Care Home,4177.61, 22-Sep-2020
277,Revenue,CAHD,South Glos Users in South Glos Homes,Permanent Nursing,Beaufort Grange Care Home,2910.72, 22-Sep-2020
278,Revenue,CAHD,South Glos Users in South Glos Homes,Permanent Nursing,Beaufort Grange Care Home,1734.10, 22-Sep-2020
279,Revenue,CAHD,South Glos Users in South Glos Homes,Permanent Nursing,Beaufort Grange Care Home,735.68, 22-Sep-2020
280,Revenue,CAHD,Central - Commissioned Services,Permanent Nursing,Beaufort Grange Care Home,3928.57, 22-Sep-2020
281,Revenue,CAHD,Central - Commissioned Services,Permanent Nursing,Beaufort Grange Care Home,5500.00, 22-Sep-2020
282,Revenue,CAHD,South Glos Users in South Glos Homes,Permanent Nursing,Beaufort Grange Care Home,735.68, 22-Sep-2020
283,Revenue,CAHD,South Glos Users in South Glos Homes,Permanent Nursing,Beaufort Grange Care Home,735.68, 22-Sep-2020
284,Revenue,CAHD,South Glos Users in South Glos Homes,Permanent Nursing,Beaufort Grange Care Home,735.68, 22-Sep-2020
285,Revenue,CAHD,South Glos Users in South Glos Homes,Permanent Nursing,Beaufort Grange Care Home,735.68, 22-Sep-2020
286,Revenue,CAHD,South Glos Users in South Glos Homes,Permanent Nursing,Beaufort Grange Care Home,735.68, 22-Sep-2020
287,Revenue,CAHD,South Glos Users in South Glos Homes,Permanent Nursing,Beaufort Grange Care Home,735.68, 22-Sep-2020
288,Revenue,CAHD,South Glos Users in South Glos Homes,Permanent Nursing,Beaufort Grange Care Home,735.68, 22-Sep-2020
289,Revenue,CAHD,South Glos Users in South Glos Homes,Permanent Nursing,Beaufort Grange Care Home,735.68, 22-Sep-2020
290,Revenue,CAHD,South Glos Users in South Glos Homes,Permanent Nursing,Beaufort Grange Care Home,4046.24, 22-Sep-2020
291,Revenue,CAHD,South Glos Users in South Glos Homes,Permanent Nursing,Beaufort Grange Care Home,735.68, 22-Sep-2020
292,Revenue,CAHD,South Glos Users in South Glos Homes,Permanent Nursing,Beaufort Grange Care Home,4177.61, 22-Sep-2020
293,Revenue,CAHD,South Glos Users in South Glos Homes,Permanent Nursing,Beaufort Grange Care Home,735.68, 22-Sep-2020
294,Revenue,CAHD,South Glos Users in South Glos Homes,Permanent Nursing,Beaufort Grange Care Home,592.45, 22-Sep-2020
295,Revenue,CAHD,South Glos Users in South Glos Homes,Permanent Nursing,Beaufort Grange Care Home,4019.97, 22-Sep-2020
296,Revenue,CAHD,South Glos Users in South Glos Homes,Permanent Nursing,Beaufort Grange Care Home,735.68, 22-Sep-2020
297,Revenue,CAHD,South Glos Users in South Glos Homes,Permanent Nursing,Beaufort Grange Care Home,735.68, 22-Sep-2020
298,Revenue,CAHD,South Glos Users in South Glos Homes,Permanent Nursing,Beaufort Grange Care Home,735.68, 22-Sep-2020
299,Revenue,CAHD,South Glos Users in South Glos Homes,Permanent Nursing,Beaufort Grange Care Home,735.68, 22-Sep-2020
300,Revenue,CAHD,South Glos Users in South Glos Homes,Permanent Nursing,Beaufort Grange Care Home,735.68, 22-Sep-2020
301,Revenue,CAHD,South Glos Users in South Glos Homes,Permanent Nursing,Beaufort Grange Care Home,735.68, 22-Sep-2020
302,Revenue,CAHD,North - Community based support,Permanent Residential,Beaufort House,2600.56, 22-Sep-2020
303,Revenue,CAHD,Central - Commissioned Services,Permanent Residential,Beaufort House,2924.56, 22-Sep-2020
304,Revenue,CAHD,Central - Commissioned Services,Permanent Residential,Beaufort House,2831.12, 22-Sep-2020
305,Revenue,CAHD,North - Community based support,Permanent Residential,Beaufort House,2622.84, 22-Sep-2020
306,Revenue,CAHD,South - Commissioned Services,Permanent Residential,Beaufort House,2587.56, 22-Sep-2020
307,Revenue,CAHD,South - Commissioned Services,Permanent Residential,Beaufort House,3400.00, 22-Sep-2020
308,Revenue,CAHD,Central - Commissioned Services,Respite Planned - Residential,Beaufort House,2840.00, 22-Sep-2020
309,Revenue,CAHD,Central - Commissioned Services,Respite Planned - Residential,Beaufort House,1420.00, 22-Sep-2020
310,Revenue,CAHD,Central - Commissioned Services,Respite Planned - Residential,Beaufort House,1420.00, 22-Sep-2020
311,Revenue,CAHD,Central - Commissioned Services,Respite Planned - Residential,Beaufort House,1420.00, 22-Sep-2020
312,Revenue,CAHD,North - Community based support,Permanent Residential,Beaufort House,2753.92, 22-Sep-2020
313,Revenue,CAHD,South - Commissioned Services,Respite Emergency - Residential,Beaufort House,6150.00, 22-Sep-2020
314,Revenue,CAHD,Central - Bed Purchasing and Direct Payments,Permanent Residential,Beaufort House,3400.00, 22-Sep-2020
315,Revenue,CAHD,South - Commissioned Services,Permanent Residential,Beech House,3018.84, 22-Sep-2020
316,Revenue,CAHD,South Glos Users in South Glos Homes,Permanent Nursing,Beech House,735.68, 22-Sep-2020
317,Revenue,CAHD,North - Community based support,Permanent Nursing,Beech House,24010.80, 22-Sep-2020
318,Revenue,CAHD,North - Community based support,Permanent Nursing,Beech House,4365.60, 22-Sep-2020
319,Revenue,CAHD,North - Community based support,Permanent Nursing,Beech House,3821.43, 22-Sep-2020
320,Revenue,CAHD,South Glos Users in South Glos Homes,Permanent Nursing,Beech House,735.68, 22-Sep-2020
321,Revenue,CAHD,South Glos Users in South Glos Homes,Permanent Nursing,Beech House,735.68, 22-Sep-2020
322,Revenue,CAHD,Bed Purchasing - Southmead Hospital,Permanent Residential,Beech House,4280.00, 22-Sep-2020
323,Revenue,CAHD,South Glos Users in South Glos Homes,Permanent Nursing,Beech House,3047.82, 22-Sep-2020
324,Revenue,CAHD,South Glos Users in South Glos Homes,Permanent Nursing,Beech House,735.68, 22-Sep-2020
325,Revenue,CAHD,South Glos Users in South Glos Homes,Permanent Nursing,Beech House,735.68, 22-Sep-2020
326,Revenue,CAHD,South Glos Users in South Glos Homes,Permanent Nursing,Beech House,735.68, 22-Sep-2020
327,Revenue,CAHD,South Glos Users in South Glos Homes,Permanent Nursing,Beech House,735.68, 22-Sep-2020
328,Revenue,CAHD,South Glos Users in South Glos Homes,Permanent Nursing,Beech House,735.68, 22-Sep-2020
329,Revenue,CAHD,North - Community based support,Permanent Nursing,Beech House,4368.88, 22-Sep-2020
330,Revenue,CAHD,South Glos Users in South Glos Homes,Permanent Nursing,Beech House,3336.83, 22-Sep-2020
331,Revenue,CAHD,South Glos Users in South Glos Homes,Permanent Nursing,Beech House,735.68, 22-Sep-2020
332,Revenue,CAHD,South Glos Users in South Glos Homes,Permanent Nursing,Beech House,735.68, 22-Sep-2020
333,Revenue,CAHD,South Glos Users in South Glos Homes,Permanent Nursing,Beech House,3126.64, 22-Sep-2020
334,Revenue,CAHD,South Glos Users in South Glos Homes,Permanent Nursing,Beech House,735.68, 22-Sep-2020
335,Revenue,CAHD,South Glos Users in South Glos Homes,Permanent Nursing,Beech House,735.68, 22-Sep-2020
336,Revenue,CAHD,South Glos Users in South Glos Homes,Permanent Nursing,Beech House,735.68, 22-Sep-2020
337,Revenue,CAHD,South Glos Users in South Glos Homes,Permanent Nursing,Beech House,2180.77, 22-Sep-2020
338,Revenue,CAHD,South Glos Users in South Glos Homes,Permanent Nursing,Beech House,3310.56, 22-Sep-2020
339,Revenue,CAHD,South Glos Users in South Glos Homes,Permanent Nursing,Beech House,735.68, 22-Sep-2020
340,Revenue,CAHD,South Glos Users in South Glos Homes,Permanent Nursing,Beech House,2128.22, 22-Sep-2020
341,Revenue,CAHD,South Glos Users in South Glos Homes,Permanent Nursing,Beech House,735.68, 22-Sep-2020
342,Revenue,CAHD,North - Community based support,Permanent Nursing,Beech House,4308.04, 22-Sep-2020
343,Revenue,CAHD,South Glos Users in South Glos Homes,Permanent Nursing,Beech House,735.68, 22-Sep-2020
344,Revenue,CAHD,Covid 19- Spend on behalf of NHS,Respite Planned - Residential,Beech House,2491.43, 22-Sep-2020
345,Revenue,CAHD,South Glos Users in South Glos Homes,Permanent Nursing,Beech House,1629.01, 22-Sep-2020
346,Revenue,CAHD,South Glos Users in South Glos Homes,Permanent Nursing,Beech House,735.68, 22-Sep-2020
347,Revenue,CAHD,South Glos Users in South Glos Homes,Permanent Nursing,Beech House,2469.78, 22-Sep-2020
348,Revenue,CAHD,South Glos Users in South Glos Homes,Permanent Nursing,Beech House,735.68, 22-Sep-2020
349,Revenue,CAHD,Covid 19- Spend on behalf of NHS,Respite Planned - Residential,Beech House,4360.00, 22-Sep-2020
350,Revenue,CAHD,South Glos Users in South Glos Homes,Permanent Nursing,Beech House,735.68, 22-Sep-2020
351,Revenue,CAHD,Covid 19- Spend on behalf of NHS,Respite Planned - Residential,Beech House,4360.00, 22-Sep-2020
352,Revenue,CAHD,South Glos Users in South Glos Homes,Permanent Nursing,Beech House,735.68, 22-Sep-2020
353,Revenue,CAHD,South Glos Users in South Glos Homes,Permanent Nursing,Beech House,735.68, 22-Sep-2020
354,Revenue,CAHD,Covid 19- Spend on behalf of NHS,Respite Planned - Residential,Beech House,4360.00, 22-Sep-2020
355,Revenue,CAHD,South Glos Users in South Glos Homes,Permanent Nursing,Beechwood Care Home,1044.00, 22-Sep-2020
356,Revenue,CAHD,Central - Commissioned Services,Permanent Residential,Beechwood Court,15254.92, 22-Sep-2020
357,Revenue,CAHD,First Contact Team,Office Supplies & Equipment,Benmor Medical UK Ltd,1350.00, 17-Sep-2020
358,Revenue,CAHD,South - S117,Permanent Residential,Bidna House,3692.64, 22-Sep-2020
359,Revenue,CAHD,Central - Commissioned Services,Other Small Contracts,Blakehill Healthcare Ltd,1312.50, 01-Sep-2020
360,Revenue,CAHD,Central - Commissioned Services,Other Small Contracts,Blakehill Healthcare Ltd,7950.00, 16-Sep-2020
361,Revenue,CAHD,Covid 19 -Adult Social Care,Permanent Residential,Blossom Field,1515.25, 04-Sep-2020
362,Revenue,CAHD,South Glos Users in South Glos Homes,Permanent Nursing,Blossom Field,735.68, 22-Sep-2020
363,Revenue,CAHD,North - Community based support,Permanent Nursing,Blossom Field,4039.20, 22-Sep-2020
364,Revenue,CAHD,South Glos Users in South Glos Homes,Permanent Nursing,Blossom Field,735.68, 22-Sep-2020
365,Revenue,CAHD,South Glos Users in South Glos Homes,Permanent Nursing,Blossom Field,735.68, 22-Sep-2020
366,Revenue,CAHD,North - Community based support,Permanent Nursing,Blossom Field,4770.40, 22-Sep-2020
367,Revenue,CAHD,South Glos Users in South Glos Homes,Permanent Nursing,Blossom Field,735.68, 22-Sep-2020
368,Revenue,CAHD,North - Community based support,Permanent Nursing,Blossom Field,4352.80, 22-Sep-2020
369,Revenue,CAHD,South Glos Users in South Glos Homes,Permanent Nursing,Blossom Field,735.68, 22-Sep-2020
370,Revenue,CAHD,South Glos Users in South Glos Homes,Permanent Nursing,Blossom Field,735.68, 22-Sep-2020
371,Revenue,CAHD,South - Commissioned Services,Permanent Nursing,Blossom Field,4501.36, 22-Sep-2020
372,Revenue,CAHD,South Glos Users in South Glos Homes,Permanent Nursing,Blossom Field,735.68, 22-Sep-2020
373,Revenue,CAHD,South Glos Users in South Glos Homes,Permanent Nursing,Blossom Field,735.68, 22-Sep-2020
374,Revenue,CAHD,North - Community based support,Permanent Nursing,Blossom Field,1029.89, 22-Sep-2020
375,Revenue,CAHD,South Glos Users in South Glos Homes,Permanent Nursing,Blossom Field,735.68, 22-Sep-2020
376,Revenue,CAHD,North - Community based support,Permanent Nursing,Blossom Field,4799.88, 22-Sep-2020
377,Revenue,CAHD,South Glos Users in South Glos Homes,Permanent Nursing,Blossom Field,735.68, 22-Sep-2020
378,Revenue,CAHD,South Glos Users in South Glos Homes,Permanent Nursing,Blossom Field,735.68, 22-Sep-2020
379,Revenue,CAHD,North - Community based support,Permanent Nursing,Blossom Field,4800.00, 22-Sep-2020
380,Revenue,CAHD,South Glos Users in South Glos Homes,Permanent Nursing,Blossom Field,735.68, 22-Sep-2020
381,Revenue,CAHD,South Glos Users in South Glos Homes,Permanent Nursing,Blossom Field,735.68, 22-Sep-2020
382,Revenue,CAHD,Central - Commissioned Services,Permanent Nursing,Blossom Field,4352.72, 22-Sep-2020
383,Revenue,CAHD,South Glos Users in South Glos Homes,Permanent Nursing,Blossom Field,735.68, 22-Sep-2020
384,Revenue,CAHD,South Glos Users in South Glos Homes,Permanent Nursing,Blossom Field,735.68, 22-Sep-2020
385,Revenue,CAHD,South Glos Users in South Glos Homes,Permanent Nursing,Blossom Field,2128.22, 22-Sep-2020
386,Revenue,CAHD,South Glos Users in South Glos Homes,Permanent Nursing,Blossom Field,735.68, 22-Sep-2020
387,Revenue,CAHD,South - Commissioned Services,Permanent Nursing,Blossom Field,4039.20, 22-Sep-2020
388,Revenue,CAHD,South Glos Users in South Glos Homes,Permanent Nursing,Blossom Field,735.68, 22-Sep-2020
389,Revenue,CAHD,South Glos Users in South Glos Homes,Permanent Nursing,Blossom Field,1261.17, 22-Sep-2020
390,Revenue,CAHD,South Glos Users in South Glos Homes,Permanent Nursing,Blossom Field,735.68, 22-Sep-2020
391,Revenue,CAHD,South Glos Users in South Glos Homes,Permanent Nursing,Blossom Field,735.68, 22-Sep-2020
392,Revenue,CAHD,South Glos Users in South Glos Homes,Permanent Nursing,Blossom Field,709.41, 22-Sep-2020
393,Revenue,CAHD,Central - Commissioned Services,Permanent Nursing,Blossom Field,4039.20, 22-Sep-2020
394,Revenue,CAHD,South Glos Users in South Glos Homes,Permanent Nursing,Blossom Field,2758.80, 22-Sep-2020
395,Revenue,CAHD,South Glos Users in South Glos Homes,Permanent Nursing,Blossom Field,735.68, 22-Sep-2020
396,Revenue,CAHD,South Glos Users in South Glos Homes,Permanent Nursing,Blossom Field,735.68, 22-Sep-2020
397,Revenue,CAHD,North - Community based support,Permanent Nursing,Blossom Field,5000.00, 22-Sep-2020
398,Revenue,CAHD,South Glos Users in South Glos Homes,Permanent Nursing,Blossom Field,735.68, 22-Sep-2020
399,Revenue,CAHD,South Glos Users in South Glos Homes,Permanent Nursing,Blossom Field,735.68, 22-Sep-2020
400,Revenue,CAHD,Central - Commissioned Services,Permanent Nursing,Blossom Field,4400.00, 22-Sep-2020
401,Revenue,CAHD,South Glos Users in South Glos Homes,Permanent Nursing,Blossom Field,735.68, 22-Sep-2020
402,Revenue,CAHD,North - Community based support,Permanent Nursing,Blossom Field,4039.20, 22-Sep-2020
403,Revenue,CAHD,South Glos Users in South Glos Homes,Permanent Nursing,Blossom Field,735.68, 22-Sep-2020
404,Revenue,CAHD,South Glos Users in South Glos Homes,Permanent Nursing,Blossom Field,1445.09, 22-Sep-2020
405,Revenue,CAHD,South Glos Users in South Glos Homes,Permanent Nursing,Blossom Field,735.68, 22-Sep-2020
406,Revenue,CAHD,South Glos Users in South Glos Homes,Permanent Nursing,Blossom Field,735.68, 22-Sep-2020
407,Revenue,CAHD,North - Community based support,Permanent Nursing,Blossom Field,3707.64, 22-Sep-2020
408,Revenue,CAHD,South Glos Users in South Glos Homes,Permanent Nursing,Blossom Field,735.68, 22-Sep-2020
409,Revenue,CAHD,North - Community based support,Permanent Residential,Bluebells,3699.60, 22-Sep-2020
410,Revenue,CAHD,Central - Commissioned Services,Other Small Contracts,Bluebird Care (South Gloucestershire),10401.75, 09-Sep-2020
411,Revenue,CAHD,South - Commissioned Services,Other Small Contracts,Bluebird Care (South Gloucestershire),3770.99, 09-Sep-2020
412,Revenue,CAHD,North - Community based support,Other Small Contracts,Bluebird Care (South Gloucestershire),4390.50, 09-Sep-2020
413,Revenue,CAHD,Covid 19 -Adult Social Care,Other Small Contracts,Bluebird Care (South Gloucestershire),15.10, 15-Sep-2020
414,Revenue,CAHD,Central - Commissioned Services,Other Small Contracts,Bluebird Care (South Gloucestershire),14058.27, 15-Sep-2020
415,Revenue,CAHD,South - Commissioned Services,Other Small Contracts,Bluebird Care (South Gloucestershire),4118.29, 15-Sep-2020
416,Revenue,CAHD,North - Community based support,Other Small Contracts,Bluebird Care (South Gloucestershire),4165.39, 15-Sep-2020
417,Revenue,CAHD,S28A cases,Permanent Residential,Bradbury House,6505.16, 22-Sep-2020
418,Revenue,CAHD,North - Community based support,Permanent Residential,Bradbury House,10016.24, 22-Sep-2020
419,Revenue,CAHD,Jointly Funded H&SC Packages,Permanent Residential,Bradbury House,45342.44, 22-Sep-2020
420,Revenue,CAHD,North - S117,Permanent Residential,Bradbury House,32834.12, 22-Sep-2020
421,Revenue,CAHD,Jointly Funded H&SC Packages,Permanent Residential,Bradbury House,8244.08, 22-Sep-2020
422,Revenue,CAHD,North - S117,Permanent Residential,Bradbury House,5969.84, 22-Sep-2020
423,Revenue,CAHD,South - Commissioned Services,Permanent Residential,Bradbury House,55561.29, 22-Sep-2020
424,Revenue,CAHD,South - Commissioned Services,Permanent Residential,Bradbury House,10168.08, 22-Sep-2020
425,Revenue,CAHD,South - Commissioned Services,Fees & Charges Income - General,Bradbury House,2326.50, 22-Sep-2020
426,Revenue,CAHD,CSC - Residential Placements,Permanent Residential,Branas ISAF Ltd,20520.01, 02-Sep-2020
427,Revenue,CAHD,CSC - Residential Placements,Permanent Residential,Branas ISAF Ltd,20127.86, 14-Sep-2020
428,Revenue,CAHD,North - Community based support,Permanent Residential,Breadstone House Care Centre,2088.68, 22-Sep-2020
429,Revenue,CAHD,Central - Commissioned Services,Respite Emergency - Residential,Breadstone House Care Centre,1371.84, 22-Sep-2020
430,Revenue,CAHD,Independent Special Placements - Pre 16,Other Private Contractors,Bredon School Ltd,3004.50, 14-Sep-2020
431,Revenue,CAHD,Social Lettings Agency,Rent,Individual,699.32, 25-Sep-2020
432,Revenue,CAHD,Social Lettings Agency,Fees - General,Individual,20.57, 25-Sep-2020
433,Revenue,CAHD,Social Lettings Agency,Rent,Individual,766.10, 03-Sep-2020
434,Revenue,CAHD,Social Lettings Agency,Fees - General,Individual,8.15, 03-Sep-2020
435,Revenue,CAHD,North - bed purchasing and direct  payments,Permanent Residential,Bridge House Care Home,2740.00, 22-Sep-2020
436,Revenue,CAHD,North - Community based support,Permanent Residential,Bridge House Care Home,2848.00, 22-Sep-2020
437,Revenue,CAHD,North - Community based support,Permanent Residential,Bridge House Care Home,2678.04, 22-Sep-2020
438,Revenue,CAHD,North - Community based support,Permanent Residential,Bridge House Care Home,712.00, 22-Sep-2020
439,Revenue,CAHD,CSC - Vinney Green Secure Unit,Training Expenses,Bridgwater and Taunton College,18893.00, 01-Sep-2020
440,Revenue,CAHD,North - Community based support,Permanent Residential,Bridgwater Court Care Home,10773.64, 22-Sep-2020
441,Revenue,CAHD,Early Years Inclusion Fund,Other Public Bodies,Bright Sparks Pre-School,1600.00, 25-Sep-2020
442,Revenue,CAHD,Sexual Health,Other Small Contracts,Bristol City Council,235634.00, 15-Sep-2020
443,Revenue,CAHD,Sensory Support Joint Arrangement,Other L.A.s - General,Bristol City Council,58215.00, 04-Sep-2020
444,Revenue,CAHD,Placements OLA Special Schools and RB,Other L.A.s - General,Bristol City Council - Schools,1917.51, 30-Sep-2020
445,Revenue,CAHD,Placements OLA Special Schools and RB,Other L.A.s - General,Bristol City Council - Schools,2542.67, 30-Sep-2020
446,Revenue,CAHD,Placements OLA Special Schools and RB,Other L.A.s - General,Bristol City Council - Schools,1362.09, 30-Sep-2020
447,Revenue,CAHD,Placements OLA Special Schools and RB,Other L.A.s - General,Bristol City Council - Schools,901.80, 30-Sep-2020
448,Revenue,CAHD,Placements OLA Special Schools and RB,Other L.A.s - General,Bristol City Council - Schools,1287.69, 30-Sep-2020
449,Revenue,CAHD,Placements OLA Special Schools and RB,Other L.A.s - General,Bristol City Council - Schools,3310.37, 30-Sep-2020
450,Revenue,CAHD,Placements OLA Special Schools and RB,Other L.A.s - General,Bristol City Council - Schools,2685.21, 30-Sep-2020
451,Revenue,CAHD,Placements OLA Special Schools and RB,Other L.A.s - General,Bristol City Council - Schools,2745.77, 30-Sep-2020
452,Revenue,CAHD,Placements OLA Special Schools and RB,Other L.A.s - General,Bristol City Council - Schools,2542.67, 30-Sep-2020
453,Revenue,CAHD,Placements OLA Special Schools and RB,Other L.A.s - General,Bristol City Council - Schools,1362.09, 30-Sep-2020
454,Revenue,CAHD,Placements OLA Special Schools and RB,Other L.A.s - General,Bristol City Council - Schools,2022.04, 30-Sep-2020
455,Revenue,CAHD,Placements OLA Special Schools and RB,Other L.A.s - General,Bristol City Council - Schools,1362.09, 30-Sep-2020
456,Revenue,CAHD,Placements OLA Special Schools and RB,Other L.A.s - General,Bristol City Council - Schools,1362.09, 30-Sep-2020
457,Revenue,CAHD,Placements OLA Special Schools and RB,Other L.A.s - General,Bristol City Council - Schools,2022.04, 30-Sep-2020
458,Revenue,CAHD,Placements OLA Special Schools and RB,Other L.A.s - General,Bristol City Council - Schools,1652.36, 30-Sep-2020
459,Revenue,CAHD,Placements OLA Special Schools and RB,Other L.A.s - General,Bristol City Council - Schools,1949.70, 30-Sep-2020
460,Revenue,CAHD,Placements OLA Special Schools and RB,Other L.A.s - General,Bristol City Council - Schools,901.80, 30-Sep-2020
461,Revenue,CAHD,Placements OLA Special Schools and RB,Other L.A.s - General,Bristol City Council - Schools,2685.21, 30-Sep-2020
462,Revenue,CAHD,Placements OLA Special Schools and RB,Other L.A.s - General,Bristol City Council - Schools,1948.58, 30-Sep-2020
463,Revenue,CAHD,Placements OLA Special Schools and RB,Other L.A.s - General,Bristol City Council - Schools,871.37, 30-Sep-2020
464,Revenue,CAHD,Placements OLA Special Schools and RB,Other L.A.s - General,Bristol City Council - Schools,766.84, 30-Sep-2020
465,Revenue,CAHD,Placements OLA Special Schools and RB,Other L.A.s - General,Bristol City Council - Schools,1017.08, 30-Sep-2020
466,Revenue,CAHD,Placements OLA Special Schools and RB,Other L.A.s - General,Bristol City Council - Schools,2745.77, 30-Sep-2020
467,Revenue,CAHD,Placements OLA Special Schools and RB,Other L.A.s - General,Bristol City Council - Schools,2542.67, 30-Sep-2020
468,Revenue,CAHD,Placements OLA Special Schools and RB,Other L.A.s - General,Bristol City Council - Schools,797.91, 30-Sep-2020
469,Revenue,CAHD,Placements OLA Special Schools and RB,Other L.A.s - General,Bristol City Council - Schools,3310.37, 30-Sep-2020
470,Revenue,CAHD,Placements OLA Special Schools and RB,Other L.A.s - General,Bristol City Council - Schools,2034.13, 30-Sep-2020
471,Revenue,CAHD,Placements OLA Special Schools and RB,Other L.A.s - General,Bristol City Council - Schools,1227.13, 30-Sep-2020
472,Revenue,CAHD,Placements OLA Special Schools and RB,Other L.A.s - General,Bristol City Council - Schools,2542.67, 30-Sep-2020
473,Revenue,CAHD,Placements OLA Special Schools and RB,Other L.A.s - General,Bristol City Council - Schools,2789.74, 30-Sep-2020
474,Revenue,CAHD,Placements OLA Special Schools and RB,Other L.A.s - General,Bristol City Council - Schools,1362.09, 30-Sep-2020
475,Revenue,CAHD,Placements OLA Special Schools and RB,Other L.A.s - General,Bristol City Council - Schools,1287.69, 30-Sep-2020
476,Revenue,CAHD,North Hub Offices,"Holidays, Outings & Visits",Bristol Clifton & West of England Zoological,720.00, 07-Sep-2020
477,Revenue,CAHD,Mental Health and Emotional Wellbeing,Training Expenses,Bristol MIND,2560.00, 10-Sep-2020
478,Revenue,CAHD,Supporting People Programme,Grants to Voluntary Bodies,Bromford  :  Merlin Housing Society,15637.00, 01-Sep-2020
479,Revenue,CAHD,Supporting People Programme,Grants to Voluntary Bodies,Bromford  :  Merlin Housing Society,2741.00, 01-Sep-2020
480,Revenue,CAHD,Supporting People Programme,Grants to Voluntary Bodies,Bromford  :  Merlin Housing Society,22940.00, 01-Sep-2020
481,Revenue,CAHD,Supporting People Programme,Grants to Voluntary Bodies,Bromford  :  Merlin Housing Society,1113.00, 01-Sep-2020
482,Revenue,CAHD,South Glos Users in South Glos Homes,Permanent Nursing,Brunelcare,814.50, 24-Sep-2020
483,Revenue,CAHD,South - Commissioned Services,Permanent Nursing,Brunelcare,3742.46, 24-Sep-2020
484,Revenue,CAHD,South Glos Users in South Glos Homes,Permanent Nursing,Brunelcare,814.50, 24-Sep-2020
485,Revenue,CAHD,North - S117,Permanent Nursing,Brunelcare,3742.46, 24-Sep-2020
486,Revenue,CAHD,South Glos Users in South Glos Homes,Permanent Nursing,Brunelcare,814.50, 24-Sep-2020
487,Revenue,CAHD,North - S117,Permanent Nursing,Brunelcare,3742.46, 24-Sep-2020
488,Revenue,CAHD,South Glos Users in South Glos Homes,Permanent Nursing,Brunelcare,814.51, 24-Sep-2020
489,Revenue,CAHD,South - Commissioned Services,Permanent Nursing,Brunelcare,2717.59, 24-Sep-2020
490,Revenue,CAHD,South Glos Users in South Glos Homes,Permanent Nursing,Brunelcare,814.50, 24-Sep-2020
491,Revenue,CAHD,South - Commissioned Services,Permanent Nursing,Brunelcare,2889.25, 24-Sep-2020
492,Revenue,CAHD,South Glos Users in South Glos Homes,Permanent Nursing,Brunelcare,814.51, 24-Sep-2020
493,Revenue,CAHD,North - Community based support,Permanent Nursing,Brunelcare,3742.46, 24-Sep-2020
494,Revenue,CAHD,South Glos Users in South Glos Homes,Permanent Nursing,Brunelcare,814.50, 24-Sep-2020
495,Revenue,CAHD,North - Community based support,Permanent Nursing,Brunelcare,2994.12, 24-Sep-2020
496,Revenue,CAHD,South Glos Users in South Glos Homes,Permanent Nursing,Brunelcare,814.50, 24-Sep-2020
497,Revenue,CAHD,South - Commissioned Services,Permanent Nursing,Brunelcare,3010.76, 24-Sep-2020
498,Revenue,CAHD,South Glos Users in South Glos Homes,Permanent Nursing,Brunelcare,814.50, 24-Sep-2020
499,Revenue,CAHD,North - Community based support,Permanent Nursing,Brunelcare,2983.04, 24-Sep-2020
500,Revenue,CAHD,South Glos Users in South Glos Homes,Permanent Nursing,Brunelcare,814.50, 24-Sep-2020
501,Revenue,CAHD,Central - Commissioned Services,Permanent Nursing,Brunelcare,3070.46, 24-Sep-2020
502,Revenue,CAHD,South Glos Users in South Glos Homes,Permanent Nursing,Brunelcare,814.50, 24-Sep-2020
503,Revenue,CAHD,South - Commissioned Services,Permanent Nursing,Brunelcare,2704.49, 24-Sep-2020
504,Revenue,CAHD,South Glos Users in South Glos Homes,Permanent Nursing,Brunelcare,814.50, 24-Sep-2020
505,Revenue,CAHD,South - Commissioned Services,Permanent Nursing,Brunelcare,3117.45, 24-Sep-2020
506,Revenue,CAHD,South Glos Users in South Glos Homes,Permanent Nursing,Brunelcare,814.50, 24-Sep-2020
507,Revenue,CAHD,South - Commissioned Services,Permanent Nursing,Brunelcare,2154.99, 24-Sep-2020
508,Revenue,CAHD,South - Commissioned Services,Respite Emergency - Nursing,Brunelcare,1763.98, 24-Sep-2020
509,Revenue,CAHD,South - Commissioned Services,Other Small Contracts,Brunelcare,15855.12, 14-Sep-2020
510,Revenue,CAHD,North - Community based support,Other Small Contracts,Brunelcare,356.24, 14-Sep-2020
511,Revenue,CAHD,South - Commissioned Services,Other Small Contracts,Brunelcare,16255.28, 14-Sep-2020
512,Revenue,CAHD,North - Community based support,Other Small Contracts,Brunelcare,356.24, 14-Sep-2020
513,Revenue,CAHD,Pathway 1 - Re-Ablement Home Care,Other Small Contracts,Brunelcare,2242.10, 28-Sep-2020
514,Revenue,CAHD,North - S117,Permanent Residential,Buckland Care,3600.00, 22-Sep-2020
515,Revenue,CAHD,South Glos Users in South Glos Homes,Permanent Nursing,Bupa Care Services  Bridge House,4177.61, 22-Sep-2020
516,Revenue,CAHD,Central - Commissioned Services,Permanent Nursing,Bupa Care Services  Bridge House,3600.00, 22-Sep-2020
517,Revenue,CAHD,South Glos Users in South Glos Homes,Permanent Nursing,Bupa Care Services  Bridge House,1390.96, 22-Sep-2020
518,Revenue,CAHD,South Glos Users in South Glos Homes,Permanent Nursing,Bupa Care Services  Bridge House,735.68, 22-Sep-2020
519,Revenue,CAHD,Training - Adult Services,Training Expenses,BW Training & Coaching Ltd,900.00, 08-Sep-2020
520,Revenue,CAHD,Training - Adult Services,Training Expenses,BW Training & Coaching Ltd,700.00, 28-Sep-2020
521,Revenue,CAHD,CSC - Agency Fostering,Foster Parent Allowances,By the Bridge Ltd,4242.57, 07-Sep-2020
522,Revenue,CAHD,CSC - Agency Fostering,Foster Parent Allowances,By the Bridge Ltd,4360.15, 30-Sep-2020
523,Revenue,CAHD,CSC - Agency Fostering,Foster Parent Allowances,By the Bridge Ltd,4242.57, 30-Sep-2020
524,Revenue,CAHD,CSC - Agency Fostering,Foster Parent Allowances,By the Bridge Ltd,2052.86, 07-Sep-2020
525,Revenue,CAHD,Social Lettings Agency,Rent,Individual,710.96, 25-Sep-2020
526,Revenue,CAHD,Social Lettings Agency,Fees - General,Individual,16.16, 25-Sep-2020
527,Revenue,CAHD,Statemented Support Academies,Other Public Bodies,Cabot Learning Federation,918.71, 30-Sep-2020
528,Revenue,CAHD,Statemented Support Academies,Other Public Bodies,Cabot Learning Federation,1202.39, 30-Sep-2020
529,Revenue,CAHD,Statemented Support Academies,Other Public Bodies,Cabot Learning Federation,908.00, 30-Sep-2020
530,Revenue,CAHD,Statemented Support Academies,Other Public Bodies,Cabot Learning Federation,1666.67, 30-Sep-2020
531,Revenue,CAHD,Statemented Support Academies,Other Public Bodies,Cabot Learning Federation,1103.25, 30-Sep-2020
532,Revenue,CAHD,Statemented Support Academies,Other Public Bodies,Cabot Learning Federation,518.76, 30-Sep-2020
533,Revenue,CAHD,Statemented Support Academies,Other Public Bodies,Cabot Learning Federation,907.83, 30-Sep-2020
534,Revenue,CAHD,Statemented Support Academies,Other Public Bodies,Cabot Learning Federation,1899.58, 30-Sep-2020
535,Revenue,CAHD,Statemented Support Academies,Other Public Bodies,Cabot Learning Federation,554.13, 30-Sep-2020
536,Revenue,CAHD,Statemented Support Academies,Other Public Bodies,Cabot Learning Federation,957.92, 30-Sep-2020
537,Revenue,CAHD,Statemented Support Academies,Other Public Bodies,Cabot Learning Federation,1654.33, 30-Sep-2020
538,Revenue,CAHD,Statemented Support Academies,Other Public Bodies,Cabot Learning Federation,620.17, 30-Sep-2020
539,Revenue,CAHD,Statemented Support Academies,Other Public Bodies,Cabot Learning Federation,2616.63, 30-Sep-2020
540,Revenue,CAHD,Statemented Support Academies,Other Public Bodies,Cabot Learning Federation,20398.62, 30-Sep-2020
541,Revenue,CAHD,Statemented Support Academies,Other Public Bodies,Cabot Learning Federation,632.67, 30-Sep-2020
542,Revenue,CAHD,Statemented Support Academies,Other Public Bodies,Cabot Learning Federation,695.61, 30-Sep-2020
543,Revenue,CAHD,Statemented Support Academies,Other Public Bodies,Cabot Learning Federation,530.55, 30-Sep-2020
544,Revenue,CAHD,Statemented Support Academies,Other Public Bodies,Cabot Learning Federation,918.75, 30-Sep-2020
545,Revenue,CAHD,Statemented Support Academies,Other Public Bodies,Cabot Learning Federation,975.58, 30-Sep-2020
546,Revenue,CAHD,Statemented Support Academies,Other Public Bodies,Cabot Learning Federation,1052.92, 30-Sep-2020
547,Revenue,CAHD,Academy Resource Base Funding,Other Public Bodies,Cabot Learning Federation,5095.92, 04-Sep-2020
548,Revenue,CAHD,Academy Resource Base Funding,Other Public Bodies,Cabot Learning Federation,1137.94, 28-Sep-2020
549,Revenue,CAHD,Academy Resource Base Funding,Other Public Bodies,Cabot Learning Federation,1648.03, 28-Sep-2020
550,Revenue,CAHD,Academy Resource Base Funding,Other Public Bodies,Cabot Learning Federation,1491.13, 28-Sep-2020
551,Revenue,CAHD,Academy Resource Base Funding,Other Public Bodies,Cabot Learning Federation,1137.94, 28-Sep-2020
552,Revenue,CAHD,Academy Resource Base Funding,Other Public Bodies,Cabot Learning Federation,1491.13, 28-Sep-2020
553,Revenue,CAHD,Academy Resource Base Funding,Other Public Bodies,Cabot Learning Federation,1137.94, 28-Sep-2020
554,Revenue,CAHD,Academy Resource Base Funding,Other Public Bodies,Cabot Learning Federation,1491.13, 28-Sep-2020
555,Revenue,CAHD,Academy Resource Base Funding,Other Public Bodies,Cabot Learning Federation,1137.94, 28-Sep-2020
556,Revenue,CAHD,Academy Resource Base Funding,Other Public Bodies,Cabot Learning Federation,1137.94, 28-Sep-2020
557,Revenue,CAHD,Academy Resource Base Funding,Other Public Bodies,Cabot Learning Federation,1648.03, 28-Sep-2020
558,Revenue,CAHD,Academy Resource Base Funding,Other Public Bodies,Cabot Learning Federation,627.77, 28-Sep-2020
559,Revenue,CAHD,Academy Resource Base Funding,Other Public Bodies,Cabot Learning Federation,981.04, 28-Sep-2020
560,Revenue,CAHD,Academy Resource Base Funding,Other Public Bodies,Cabot Learning Federation,627.77, 28-Sep-2020
561,Revenue,CAHD,Academy Resource Base Funding,Other Public Bodies,Cabot Learning Federation,1491.13, 28-Sep-2020
562,Revenue,CAHD,Academy Resource Base Funding,Other Public Bodies,Cabot Learning Federation,2118.90, 28-Sep-2020
563,Revenue,CAHD,Academy Resource Base Funding,Other Public Bodies,Cabot Learning Federation,2118.90, 28-Sep-2020
564,Revenue,CAHD,Academy Resource Base Funding,Other Public Bodies,Cabot Learning Federation,1137.94, 28-Sep-2020
565,Revenue,CAHD,Academy Resource Base Funding,Other Public Bodies,Cabot Learning Federation,1137.94, 28-Sep-2020
566,Revenue,CAHD,Academy Resource Base Funding,Other Public Bodies,Cabot Learning Federation,1137.94, 28-Sep-2020
567,Revenue,CAHD,Academy Resource Base Funding,Other Public Bodies,Cabot Learning Federation,1137.94, 28-Sep-2020
568,Revenue,CAHD,Academy Resource Base Funding,Other Public Bodies,Cabot Learning Federation,1648.03, 28-Sep-2020
569,Revenue,CAHD,Statemented Support Academies,Other Public Bodies,Cabot Learning Federation,804.08, 30-Sep-2020
570,Revenue,CAHD,Statemented Support Academies,Other Public Bodies,Cabot Learning Federation,554.13, 30-Sep-2020
571,Revenue,CAHD,Statemented Support Academies,Other Public Bodies,Cabot Learning Federation,742.77, 30-Sep-2020
572,Revenue,CAHD,Statemented Support Academies,Other Public Bodies,Cabot Learning Federation,778.14, 30-Sep-2020
573,Revenue,CAHD,Statemented Support Academies,Other Public Bodies,Cabot Learning Federation,943.20, 30-Sep-2020
574,Revenue,CAHD,Statemented Support Academies,Other Public Bodies,Cabot Learning Federation,813.51, 30-Sep-2020
575,Revenue,CAHD,Statemented Support Academies,Other Public Bodies,Cabot Learning Federation,1131.84, 30-Sep-2020
576,Revenue,CAHD,Statemented Support Academies,Other Public Bodies,Cabot Learning Federation,589.50, 30-Sep-2020
577,Revenue,CAHD,Statemented Support Academies,Other Public Bodies,Cabot Learning Federation,554.13, 30-Sep-2020
578,Revenue,CAHD,Statemented Support Academies,Other Public Bodies,Cabot Learning Federation,801.72, 30-Sep-2020
579,Revenue,CAHD,Statemented Support Academies,Other Public Bodies,Cabot Learning Federation,1096.47, 30-Sep-2020
580,Revenue,CAHD,Statemented Support Academies,Other Public Bodies,Cabot Learning Federation,730.98, 30-Sep-2020
581,Revenue,CAHD,Statemented Support Academies,Other Public Bodies,Cabot Learning Federation,907.83, 30-Sep-2020
582,Revenue,CAHD,Statemented Support Academies,Other Public Bodies,Cabot Learning Federation,801.92, 30-Sep-2020
583,Revenue,CAHD,Statemented Support Academies,Other Public Bodies,Cabot Learning Federation,530.55, 30-Sep-2020
584,Revenue,CAHD,Statemented Support Academies,Other Public Bodies,Cabot Learning Federation,931.41, 30-Sep-2020
585,Revenue,CAHD,Statemented Support Academies,Other Public Bodies,Cabot Learning Federation,966.83, 30-Sep-2020
586,Revenue,CAHD,Statemented Support Academies,Other Public Bodies,Cabot Learning Federation,872.46, 30-Sep-2020
587,Revenue,CAHD,North - Community based support,Permanent Nursing,Caernarvon House,4800.00, 22-Sep-2020
588,Revenue,CAHD,North - Community based support,Permanent Nursing,Caernarvon House,4710.40, 22-Sep-2020
589,Revenue,CAHD,North - S117,Permanent Nursing,Caernarvon House,3990.24, 22-Sep-2020
590,Revenue,CAHD,South - Commissioned Services,Permanent Nursing,Caernarvon House,4915.20, 22-Sep-2020
591,Revenue,CAHD,South - Commissioned Services,Permanent Nursing,Caernarvon House,4800.00, 22-Sep-2020
592,Revenue,CAHD,South - Commissioned Services,Permanent Nursing,Caernarvon House,4300.80, 22-Sep-2020
593,Revenue,CAHD,South - S117,Permanent Nursing,Caernarvon House,4915.20, 22-Sep-2020
594,Revenue,CAHD,South - Commissioned Services,Respite Emergency - Residential,Caernarvon House,4800.00, 22-Sep-2020
595,Revenue,CAHD,CSC - Residential Placements,Permanent Residential,Cambian Childcare Ltd,19928.66, 02-Sep-2020
596,Revenue,CAHD,CSC - Residential Placements,Permanent Residential,Cambian Childcare Ltd,19042.99, 02-Sep-2020
597,Revenue,CAHD,CSC - Residential Placements,Permanent Residential,Cambian Childcare Ltd,23250.00, 02-Sep-2020
598,Revenue,CAHD,CSC - Residential Placements,Permanent Residential,Cambian Childcare Ltd,24135.67, 22-Sep-2020
599,Revenue,CAHD,CSC - Residential Placements,Permanent Residential,Cambian Childcare Ltd,19285.80, 30-Sep-2020
600,Revenue,CAHD,CSC - Residential Placements,Permanent Residential,Cambian Childcare Ltd,18428.70, 30-Sep-2020
601,Revenue,CAHD,CSC - Residential Placements,Permanent Residential,Cambian Childcare Ltd,22500.00, 30-Sep-2020
602,Revenue,CAHD,CSC - Residential Placements,Permanent Residential,Cambian Childcare Ltd,23357.10, 30-Sep-2020
603,Revenue,CAHD,Post 16 High Needs Placements,Other Private Contractors,Cambian Whinfell School Limited,27833.33, 15-Sep-2020
604,Revenue,CAHD,Post 16 High Needs Placements,Other Private Contractors,Cambian Whinfell School Limited,28734.89, 15-Sep-2020
605,Revenue,CAHD,Post 16 High Needs Placements,Other Private Contractors,Cambian Whinfell School Limited,28867.27, 15-Sep-2020
606,Revenue,CAHD,Post 16 High Needs Placements,Other Private Contractors,Cambian Whinfell School Limited,24166.67, 14-Sep-2020
607,Revenue,CAHD,North - Community based support,Day Care / Social Activities,Camphill Communities Thornbury Limited,473.34, 09-Sep-2020
608,Revenue,CAHD,North - Community based support,Other Small Contracts,Camphill Communities Thornbury Limited,685.86, 09-Sep-2020
609,Revenue,CAHD,North - Community based support,Supported Living,Camphill Communities Thornbury Limited,1077.09, 09-Sep-2020
610,Revenue,CAHD,North - Community based support,Day Care / Social Activities,Camphill Communities Thornbury Limited,478.17, 14-Sep-2020
611,Revenue,CAHD,North - Community based support,Other Small Contracts,Camphill Communities Thornbury Limited,671.37, 14-Sep-2020
612,Revenue,CAHD,North - Community based support,Supported Living,Camphill Communities Thornbury Limited,1067.43, 14-Sep-2020
613,Revenue,CAHD,North - S117,Permanent Residential,Canjayor,3937.76, 22-Sep-2020
614,Revenue,CAHD,CSC - Asylum Seekers - Unaccompanied,Foster Parent Allowances,Capstone Foster Care (South West) Limited,3405.66, 04-Sep-2020
615,Revenue,CAHD,CSC - Agency Fostering,Foster Parent Allowances,Capstone Foster Care (South West) Limited,3671.33, 09-Sep-2020
616,Revenue,CAHD,CSC - Agency Fostering,Foster Parent Allowances,Capstone Foster Care (South West) Limited,3222.45, 09-Sep-2020
617,Revenue,CAHD,CSC - Agency Fostering,Foster Parent Allowances,Capstone Foster Care (South West) Limited,3498.66, 07-Sep-2020
618,Revenue,CAHD,CSC - Agency Fostering,Foster Parent Allowances,Capstone Foster Care (South West) Limited,3552.90, 30-Sep-2020
619,Revenue,CAHD,CSC - Agency Fostering,Foster Parent Allowances,Capstone Foster Care (South West) Limited,3118.50, 30-Sep-2020
620,Revenue,CAHD,CSC - Agency Fostering,Foster Parent Allowances,Capstone Foster Care (South West) Limited,3385.80, 30-Sep-2020
621,Revenue,CAHD,Central - Commissioned Services,Other Small Contracts,Care 1st Homecare,2839.10, 04-Sep-2020
622,Revenue,CAHD,Central - Commissioned Services,Other Small Contracts,Care 1st Homecare,1975.80, 04-Sep-2020
623,Revenue,CAHD,Central - Commissioned Services,Other Small Contracts,Care 1st Homecare,3030.45, 04-Sep-2020
624,Revenue,CAHD,Central - Commissioned Services,Other Small Contracts,Care 1st Homecare,3003.75, 04-Sep-2020
625,Revenue,CAHD,Central - Commissioned Services,Other Small Contracts,Care 1st Homecare,3008.20, 14-Sep-2020
626,Revenue,CAHD,Central - Commissioned Services,Other Small Contracts,Care 1st Homecare,2999.30, 30-Sep-2020
627,Revenue,CAHD,Central - Commissioned Services,Other Small Contracts,Care 1st Homecare,3008.20, 30-Sep-2020
628,Revenue,CAHD,Central - Commissioned Services,Other Small Contracts,Care 1st Homecare,2990.40, 30-Sep-2020
629,Revenue,CAHD,North - Community based support,Supported Living,Care Horizons,5435.28, 22-Sep-2020
630,Revenue,CAHD,North - Community based support,Supported Living,Care Horizons,5435.28, 22-Sep-2020
631,Revenue,CAHD,18-25 Year Olds,Other Small Contracts,Care Horizons Limited,78.88, 10-Sep-2020
632,Revenue,CAHD,Central - Commissioned Services,Other Small Contracts,Care Horizons Limited,502.86, 10-Sep-2020
633,Revenue,CAHD,South - Commissioned Services,Other Small Contracts,Care Horizons Limited,216.92, 10-Sep-2020
634,Revenue,CAHD,North - Community based support,Day Care / Social Activities,Care Horizons Limited,404.26, 10-Sep-2020
635,Revenue,CAHD,North - Community based support,Other Small Contracts,Care Horizons Limited,734.57, 10-Sep-2020
636,Revenue,CAHD,Younger MH non-res purchasing,Other Small Contracts,Care Horizons Limited,157.76, 10-Sep-2020
637,Revenue,CAHD,18-25 Year Olds,Other Small Contracts,Care Horizons Limited,78.88, 14-Sep-2020
638,Revenue,CAHD,Central - Commissioned Services,Other Small Contracts,Care Horizons Limited,1158.55, 14-Sep-2020
639,Revenue,CAHD,South - Commissioned Services,Other Small Contracts,Care Horizons Limited,493.00, 14-Sep-2020
640,Revenue,CAHD,North - Community based support,Day Care / Social Activities,Care Horizons Limited,409.19, 14-Sep-2020
641,Revenue,CAHD,North - Community based support,Other Small Contracts,Care Horizons Limited,749.36, 14-Sep-2020
642,Revenue,CAHD,Younger MH non-res purchasing,Other Small Contracts,Care Horizons Limited,157.76, 14-Sep-2020
643,Revenue,CAHD,18-25 Year Olds,Other Small Contracts,Care Horizons Limited,78.88, 30-Sep-2020
644,Revenue,CAHD,Central - Commissioned Services,Other Small Contracts,Care Horizons Limited,1178.27, 30-Sep-2020
645,Revenue,CAHD,South - Commissioned Services,Other Small Contracts,Care Horizons Limited,493.00, 30-Sep-2020
646,Revenue,CAHD,North - Community based support,Day Care / Social Activities,Care Horizons Limited,414.12, 30-Sep-2020
647,Revenue,CAHD,North - Community based support,Other Small Contracts,Care Horizons Limited,690.20, 30-Sep-2020
648,Revenue,CAHD,Younger MH non-res purchasing,Other Small Contracts,Care Horizons Limited,197.20, 30-Sep-2020
649,Revenue,CAHD,Covid 19 -Adult Social Care,Other Small Contracts,Carepride Ltd,69.02, 11-Sep-2020
650,Revenue,CAHD,Central - Commissioned Services,Other Small Contracts,Carepride Ltd,399.33, 11-Sep-2020
651,Revenue,CAHD,South - Commissioned Services,Other Small Contracts,Carepride Ltd,118.32, 11-Sep-2020
652,Revenue,CAHD,North - Community based support,Other Small Contracts,Carepride Ltd,138.04, 11-Sep-2020
653,Revenue,CAHD,Covid 19 -Adult Social Care,Other Small Contracts,Carepride Ltd,69.02, 11-Sep-2020
654,Revenue,CAHD,Central - Commissioned Services,Other Small Contracts,Carepride Ltd,414.12, 11-Sep-2020
655,Revenue,CAHD,South - Commissioned Services,Other Small Contracts,Carepride Ltd,108.46, 11-Sep-2020
656,Revenue,CAHD,North - Community based support,Other Small Contracts,Carepride Ltd,202.13, 11-Sep-2020
657,Revenue,CAHD,Covid 19 -Adult Social Care,Other Small Contracts,Carepride Ltd,73.95, 11-Sep-2020
658,Revenue,CAHD,Central - Commissioned Services,Other Small Contracts,Carepride Ltd,419.05, 11-Sep-2020
659,Revenue,CAHD,South - Commissioned Services,Other Small Contracts,Carepride Ltd,103.53, 11-Sep-2020
660,Revenue,CAHD,North - Community based support,Other Small Contracts,Carepride Ltd,187.34, 11-Sep-2020
661,Revenue,CAHD,Covid 19 -Adult Social Care,Other Small Contracts,Carepride Ltd,78.88, 11-Sep-2020
662,Revenue,CAHD,Central - Commissioned Services,Other Small Contracts,Carepride Ltd,443.70, 11-Sep-2020
663,Revenue,CAHD,South - Commissioned Services,Other Small Contracts,Carepride Ltd,108.46, 11-Sep-2020
664,Revenue,CAHD,North - Community based support,Other Small Contracts,Carepride Ltd,207.06, 11-Sep-2020
665,Revenue,CAHD,Covid 19 -Adult Social Care,Other Small Contracts,Carepride Ltd,78.88, 24-Sep-2020
666,Revenue,CAHD,Central - Commissioned Services,Other Small Contracts,Carepride Ltd,448.63, 24-Sep-2020
667,Revenue,CAHD,South - Commissioned Services,Other Small Contracts,Carepride Ltd,108.46, 24-Sep-2020
668,Revenue,CAHD,North - Community based support,Other Small Contracts,Carepride Ltd,172.55, 24-Sep-2020
669,Revenue,CAHD,Covid 19 -Adult Social Care,Other Small Contracts,Carepride Ltd,44.37, 24-Sep-2020
670,Revenue,CAHD,Central - Commissioned Services,Other Small Contracts,Carepride Ltd,463.42, 24-Sep-2020
671,Revenue,CAHD,South - Commissioned Services,Other Small Contracts,Carepride Ltd,103.53, 24-Sep-2020
672,Revenue,CAHD,North - Community based support,Other Small Contracts,Carepride Ltd,207.06, 24-Sep-2020
673,Revenue,CAHD,Covid 19 -Adult Social Care,Other Small Contracts,Carepride Ltd,9.86, 24-Sep-2020
674,Revenue,CAHD,Central - Commissioned Services,Other Small Contracts,Carepride Ltd,493.00, 24-Sep-2020
675,Revenue,CAHD,South - Commissioned Services,Other Small Contracts,Carepride Ltd,98.60, 24-Sep-2020
676,Revenue,CAHD,North - Community based support,Other Small Contracts,Carepride Ltd,202.13, 24-Sep-2020
677,Revenue,CAHD,Covid 19 -Adult Social Care,Other Small Contracts,Carepride Ltd,9.86, 24-Sep-2020
678,Revenue,CAHD,Central - Commissioned Services,Other Small Contracts,Carepride Ltd,517.65, 24-Sep-2020
679,Revenue,CAHD,South - Commissioned Services,Other Small Contracts,Carepride Ltd,93.67, 24-Sep-2020
680,Revenue,CAHD,North - Community based support,Other Small Contracts,Carepride Ltd,207.06, 24-Sep-2020
681,Revenue,CAHD,Covid 19 -Adult Social Care,Other Small Contracts,Carepride Ltd,9.86, 24-Sep-2020
682,Revenue,CAHD,Central - Commissioned Services,Other Small Contracts,Carepride Ltd,507.79, 24-Sep-2020
683,Revenue,CAHD,South - Commissioned Services,Other Small Contracts,Carepride Ltd,103.53, 24-Sep-2020
684,Revenue,CAHD,North - Community based support,Other Small Contracts,Carepride Ltd,226.78, 24-Sep-2020
685,Revenue,CAHD,Covid 19 -Adult Social Care,Other Small Contracts,Carepride Ltd,9.86, 24-Sep-2020
686,Revenue,CAHD,Central - Commissioned Services,Other Small Contracts,Carepride Ltd,527.51, 24-Sep-2020
687,Revenue,CAHD,South - Commissioned Services,Other Small Contracts,Carepride Ltd,98.60, 24-Sep-2020
688,Revenue,CAHD,North - Community based support,Other Small Contracts,Carepride Ltd,221.85, 24-Sep-2020
689,Revenue,CAHD,Community Support - South,Preventative Assistance,Caring Comes 1st Limited,1237.00, 04-Sep-2020
690,Revenue,CAHD,CSC - Care Leavers Independent Living,Adults - Family Support,Caring for Communities and People,1524.27, 02-Sep-2020
691,Revenue,CAHD,CSC - Care Leavers Independent Living,Independent Living,Caring for Communities and People,965.14, 23-Sep-2020
692,Revenue,CAHD,CSC - Care Leavers Independent Living,Adults - Family Support,Caring for Communities and People,2143.03, 25-Sep-2020
693,Revenue,CAHD,CSC - Care Leavers Independent Living,Independent Living,Caring for Communities and People,2517.71, 25-Sep-2020
694,Revenue,CAHD,Supporting People Programme,Grants to Voluntary Bodies,Caring for Communities and People,12849.00, 04-Sep-2020
695,Revenue,CAHD,CSC - Care Leavers Independent Living,Adults - Family Support,Caring for Communities and People,5157.71, 10-Sep-2020
696,Revenue,CAHD,Social Lettings Agency,Rent,Individual,699.32, 21-Sep-2020
697,Revenue,CAHD,Social Lettings Agency,Fees - General,Individual,20.57, 21-Sep-2020
698,Revenue,CAHD,Statemented Support Academies,Other Public Bodies,Castle School Education Trust,530.55, 30-Sep-2020
699,Revenue,CAHD,Statemented Support Academies,Other Public Bodies,Castle School Education Trust,565.92, 30-Sep-2020
700,Revenue,CAHD,Statemented Support Academies,Other Public Bodies,Castle School Education Trust,778.14, 30-Sep-2020
701,Revenue,CAHD,Statemented Support Academies,Other Public Bodies,Castle School Education Trust,931.41, 30-Sep-2020
702,Revenue,CAHD,Statemented Support Academies,Other Public Bodies,Castle School Education Trust,672.03, 30-Sep-2020
703,Revenue,CAHD,Statemented Support Academies,Other Public Bodies,Castle School Education Trust,577.71, 30-Sep-2020
704,Revenue,CAHD,Statemented Support Academies,Other Public Bodies,Castle School Education Trust,505.08, 30-Sep-2020
705,Revenue,CAHD,Statemented Support Academies,Other Public Bodies,Castle School Education Trust,1461.96, 30-Sep-2020
706,Revenue,CAHD,Statemented Support Academies,Other Public Bodies,Castle School Education Trust,860.67, 30-Sep-2020
707,Revenue,CAHD,Statemented Support Academies,Other Public Bodies,Castle School Education Trust,1002.15, 30-Sep-2020
708,Revenue,CAHD,Statemented Support Academies,Other Public Bodies,Castle School Education Trust,613.08, 30-Sep-2020
709,Revenue,CAHD,Statemented Support Academies,Other Public Bodies,Castle School Education Trust,672.03, 30-Sep-2020
710,Revenue,CAHD,Statemented Support Academies,Other Public Bodies,Castle School Education Trust,1120.05, 30-Sep-2020
711,Revenue,CAHD,Statemented Support Academies,Other Public Bodies,Castle School Education Trust,636.66, 30-Sep-2020
712,Revenue,CAHD,Statemented Support Academies,Other Public Bodies,Castle School Education Trust,589.08, 30-Sep-2020
713,Revenue,CAHD,Statemented Support Academies,Other Public Bodies,Castle School Education Trust,954.99, 30-Sep-2020
714,Revenue,CAHD,Statemented Support Academies,Other Public Bodies,Castle School Education Trust,577.71, 30-Sep-2020
715,Revenue,CAHD,Statemented Support Academies,Other Public Bodies,Castle School Education Trust,624.87, 30-Sep-2020
716,Revenue,CAHD,Statemented Support Academies,Other Public Bodies,Castle School Education Trust,825.30, 30-Sep-2020
717,Revenue,CAHD,Statemented Support Academies,Other Public Bodies,Castle School Education Trust,1190.79, 30-Sep-2020
718,Revenue,CAHD,Statemented Support Academies,Other Public Bodies,Castle School Education Trust,848.88, 30-Sep-2020
719,Revenue,CAHD,Statemented Support Academies,Other Public Bodies,Castle School Education Trust,1237.95, 30-Sep-2020
720,Revenue,CAHD,Statemented Support Academies,Other Public Bodies,Castle School Education Trust,1061.10, 30-Sep-2020
721,Revenue,CAHD,Statemented Support Academies,Other Public Bodies,Castle School Education Trust,518.76, 30-Sep-2020
722,Revenue,CAHD,Statemented Support Academies,Other Public Bodies,Castle School Education Trust,577.71, 30-Sep-2020
723,Revenue,CAHD,Statemented Support Academies,Other Public Bodies,Castle School Education Trust,1143.63, 30-Sep-2020
724,Revenue,CAHD,Statemented Support Academies,Other Public Bodies,Castle School Education Trust,754.25, 30-Sep-2020
725,Revenue,CAHD,Statemented Support Academies,Other Public Bodies,Castle School Education Trust,1485.54, 30-Sep-2020
726,Revenue,CAHD,Statemented Support Academies,Other Public Bodies,Castle School Education Trust,888.75, 30-Sep-2020
727,Revenue,CAHD,Statemented Support Academies,Other Public Bodies,Castle School Education Trust,1322.75, 30-Sep-2020
728,Revenue,CAHD,Statemented Support Academies,Other Public Bodies,Castle School Education Trust,801.92, 30-Sep-2020
729,Revenue,CAHD,Statemented Support Academies,Other Public Bodies,Castle School Education Trust,943.17, 30-Sep-2020
730,Revenue,CAHD,Statemented Support Academies,Other Public Bodies,Castle School Education Trust,1267.50, 30-Sep-2020
731,Revenue,CAHD,Academy Resource Base Funding,Other Public Bodies,Castle School Education Trust,1648.03, 28-Sep-2020
732,Revenue,CAHD,Academy Resource Base Funding,Other Public Bodies,Castle School Education Trust,1648.03, 28-Sep-2020
733,Revenue,CAHD,Academy Resource Base Funding,Other Public Bodies,Castle School Education Trust,1648.03, 28-Sep-2020
734,Revenue,CAHD,Academy Resource Base Funding,Other Public Bodies,Castle School Education Trust,1648.03, 28-Sep-2020
735,Revenue,CAHD,Academy Resource Base Funding,Other Public Bodies,Castle School Education Trust,1648.03, 28-Sep-2020
736,Revenue,CAHD,Academy Resource Base Funding,Other Public Bodies,Castle School Education Trust,1648.03, 28-Sep-2020
737,Revenue,CAHD,Academy Resource Base Funding,Other Public Bodies,Castle School Education Trust,2118.90, 28-Sep-2020
738,Revenue,CAHD,Academy Resource Base Funding,Other Public Bodies,Castle School Education Trust,1648.03, 28-Sep-2020
739,Revenue,CAHD,Academy Resource Base Funding,Other Public Bodies,Castle School Education Trust,1648.03, 28-Sep-2020
740,Revenue,CAHD,Academy Resource Base Funding,Other Public Bodies,Castle School Education Trust,1648.03, 28-Sep-2020
741,Revenue,CAHD,Statemented Support Academies,Other Public Bodies,Castle School Education Trust,672.03, 30-Sep-2020
742,Revenue,CAHD,Statemented Support Academies,Other Public Bodies,Castle School Education Trust,872.46, 30-Sep-2020
743,Revenue,CAHD,Statemented Support Academies,Other Public Bodies,Castle School Education Trust,848.88, 30-Sep-2020
744,Revenue,CAHD,Statemented Support Academies,Other Public Bodies,Castle School Education Trust,541.58, 30-Sep-2020
745,Revenue,CAHD,Statemented Support Academies,Other Public Bodies,Castle School Education Trust,1444.17, 30-Sep-2020
746,Revenue,CAHD,Statemented Support Academies,Other Public Bodies,Castle School Education Trust,1556.28, 30-Sep-2020
747,Revenue,CAHD,Statemented Support Academies,Other Public Bodies,Castle School Education Trust,956.00, 30-Sep-2020
748,Revenue,CAHD,Statemented Support Academies,Other Public Bodies,Castle School Education Trust,1025.73, 30-Sep-2020
749,Revenue,CAHD,Statemented Support Academies,Other Public Bodies,Castle School Education Trust,630.58, 30-Sep-2020
750,Revenue,CAHD,Statemented Support Academies,Other Public Bodies,Castle School Education Trust,778.14, 30-Sep-2020
751,Revenue,CAHD,Statemented Support Academies,Other Public Bodies,Castle School Education Trust,941.58, 30-Sep-2020
752,Revenue,CAHD,Statemented Support Academies,Other Public Bodies,Castle School Education Trust,613.08, 30-Sep-2020
753,Revenue,CAHD,Statemented Support Academies,Other Public Bodies,Castle School Educational Turust,1129.92, 30-Sep-2020
754,Revenue,CAHD,Statemented Support Academies,Other Public Bodies,Castle School Educational Turust,508.67, 30-Sep-2020
755,Revenue,CAHD,Statemented Support Academies,Other Public Bodies,Castle School Educational Turust,1148.20, 30-Sep-2020
756,Revenue,CAHD,Statemented Support Academies,Other Public Bodies,Castle School Educational Turust,1497.33, 30-Sep-2020
757,Revenue,CAHD,Social Lettings Agency,Rent,Individual,595.11, 01-Sep-2020
758,Revenue,CAHD,Social Lettings Agency,Fees - General,Individual,10.53, 01-Sep-2020
759,Revenue,CAHD,North - Community based support,Day Care / Social Activities,Causeway House,2176.64, 22-Sep-2020
760,Revenue,CAHD,Central - Commissioned Services,Day Care / Social Activities,Causeway House,1256.12, 22-Sep-2020
761,Revenue,CAHD,South - Commissioned Services,Day Care / Social Activities,Causeway House,5358.20, 22-Sep-2020
762,Revenue,CAHD,Central - Commissioned Services,Day Care / Social Activities,Causeway House,1447.08, 22-Sep-2020
763,Revenue,CAHD,18-25 Year Olds,Day Care / Social Activities,Causeway House,4502.92, 22-Sep-2020
764,Revenue,CAHD,Central - Commissioned Services,Day Care / Social Activities,Causeway House,3671.36, 22-Sep-2020
765,Revenue,CAHD,Central - Commissioned Services,Day Care / Social Activities,Causeway House,3969.44, 22-Sep-2020
766,Revenue,CAHD,Central - Commissioned Services,Day Care / Social Activities,Causeway House,2119.20, 22-Sep-2020
767,Revenue,CAHD,North - Community based support,Day Care / Social Activities,Causeway House,3290.72, 22-Sep-2020
768,Revenue,CAHD,North - Community based support,Day Care / Social Activities,Causeway House,4902.56, 22-Sep-2020
769,Revenue,CAHD,Central - Commissioned Services,Day Care / Social Activities,Causeway House,3725.16, 22-Sep-2020
770,Revenue,CAHD,North - Community based support,Day Care / Social Activities,Causeway House,3212.08, 22-Sep-2020
771,Revenue,CAHD,North - Community based support,Day Care / Social Activities,Causeway House,579.68, 22-Sep-2020
772,Revenue,CAHD,South - Commissioned Services,Permanent Residential,Challenge House,2834.44, 22-Sep-2020
773,Revenue,CAHD,South - Commissioned Services,Permanent Residential,Challenge House,2836.00, 22-Sep-2020
774,Revenue,CAHD,North - S117,Permanent Residential,Challenge House,2571.40, 22-Sep-2020
775,Revenue,CAHD,Central - Commissioned Services,Permanent Residential,Challenge House,2800.00, 22-Sep-2020
776,Revenue,CAHD,North - Community based support,Permanent Residential,Challenge House,2233.00, 22-Sep-2020
777,Revenue,CAHD,Central - Commissioned Services,Permanent Residential,Challenge House,2365.64, 22-Sep-2020
778,Revenue,CAHD,North - Community based support,Permanent Residential,Challenge House,2363.40, 22-Sep-2020
779,Revenue,CAHD,North - Community based support,Permanent Residential,Challenge House,2834.40, 22-Sep-2020
780,Revenue,CAHD,North - Community based support,Permanent Nursing,Challenge House,3205.48, 22-Sep-2020
781,Revenue,CAHD,North - S117,Permanent Nursing,Challenge House,2453.28, 22-Sep-2020
782,Revenue,CAHD,North - Community based support,Permanent Nursing,Challenge House,2453.28, 22-Sep-2020
783,Revenue,CAHD,North - Community based support,Permanent Nursing,Challenge House,3205.48, 22-Sep-2020
784,Revenue,CAHD,South Glos Users in South Glos Homes,Permanent Nursing,Challenge House,735.68, 22-Sep-2020
785,Revenue,CAHD,South Glos Users in South Glos Homes,Permanent Nursing,Challenge House,735.68, 22-Sep-2020
786,Revenue,CAHD,South - Commissioned Services,Permanent Nursing,Challenge House,1392.86, 22-Sep-2020
787,Revenue,CAHD,South - Commissioned Services,Permanent Nursing,Challenge House,1311.43, 22-Sep-2020
788,Revenue,CAHD,South - Commissioned Services,Permanent Nursing,Challenge House,2941.88, 22-Sep-2020
789,Revenue,CAHD,South Glos Users in South Glos Homes,Permanent Nursing,Challenge House,735.68, 22-Sep-2020
790,Revenue,CAHD,North - Community based support,Permanent Nursing,Challenge House,3272.64, 22-Sep-2020
791,Revenue,CAHD,South Glos Users in South Glos Homes,Permanent Nursing,Challenge House,735.68, 22-Sep-2020
792,Revenue,CAHD,South Glos Users in South Glos Homes,Permanent Nursing,Challenge House,735.68, 22-Sep-2020
793,Revenue,CAHD,North - Community based support,Permanent Nursing,Challenge House,3405.60, 22-Sep-2020
794,Revenue,CAHD,South Glos Users in South Glos Homes,Permanent Nursing,Challenge House,735.68, 22-Sep-2020
795,Revenue,CAHD,South - Commissioned Services,Respite Planned - Residential,Challenge House,1700.00, 22-Sep-2020
796,Revenue,CAHD,South Glos Users in South Glos Homes,Permanent Nursing,Challenge House,4868.37, 22-Sep-2020
797,Revenue,CAHD,South Glos Users in South Glos Homes,Permanent Nursing,Challenge House,2811.35, 22-Sep-2020
798,Revenue,CAHD,South - Commissioned Services,Fees & Charges Income - General,Challenge House,1902.50, 22-Sep-2020
799,Revenue,CAHD,South Glos Users in South Glos Homes,Permanent Nursing,Challenge House,735.68, 22-Sep-2020
800,Revenue,CAHD,South - Commissioned Services,Permanent Residential,Challenge House,3060.00, 22-Sep-2020
801,Revenue,CAHD,South Glos Users in South Glos Homes,Permanent Nursing,Challenge House,735.68, 22-Sep-2020
802,Revenue,CAHD,South Glos Users in South Glos Homes,Permanent Nursing,Challenge House,735.68, 22-Sep-2020
803,Revenue,CAHD,South Glos Users in South Glos Homes,Permanent Nursing,Challenge House,735.68, 22-Sep-2020
804,Revenue,CAHD,South Glos Users in South Glos Homes,Permanent Nursing,Challenge House,735.68, 22-Sep-2020
805,Revenue,CAHD,South Glos Users in South Glos Homes,Permanent Nursing,Challenge House,735.68, 22-Sep-2020
806,Revenue,CAHD,South Glos Users in South Glos Homes,Permanent Nursing,Challenge House,735.68, 22-Sep-2020
807,Revenue,CAHD,South Glos Users in South Glos Homes,Permanent Nursing,Challenge House,735.68, 22-Sep-2020
808,Revenue,CAHD,North - Community based support,Permanent Nursing,Challenge House,2884.08, 22-Sep-2020
809,Revenue,CAHD,South Glos Users in South Glos Homes,Permanent Nursing,Challenge House,735.68, 22-Sep-2020
810,Revenue,CAHD,North - Community based support,Permanent Nursing,Challenge House,3243.60, 22-Sep-2020
811,Revenue,CAHD,South Glos Users in South Glos Homes,Permanent Nursing,Challenge House,735.68, 22-Sep-2020
812,Revenue,CAHD,North - Community based support,Permanent Nursing,Challenge House,3405.60, 22-Sep-2020
813,Revenue,CAHD,South Glos Users in South Glos Homes,Permanent Nursing,Challenge House,735.68, 22-Sep-2020
814,Revenue,CAHD,North - Community based support,Permanent Residential,Challenge House,3121.20, 22-Sep-2020
815,Revenue,CAHD,South Glos Users in South Glos Homes,Permanent Nursing,Challenge House,735.68, 22-Sep-2020
816,Revenue,CAHD,North - Community based support,Permanent Nursing,Challenge House,2884.08, 22-Sep-2020
817,Revenue,CAHD,South Glos Users in South Glos Homes,Permanent Nursing,Challenge House,735.68, 22-Sep-2020
818,Revenue,CAHD,South Glos Users in South Glos Homes,Permanent Nursing,Challenge House,735.68, 22-Sep-2020
819,Revenue,CAHD,CSC - Vinney Green Secure Unit,"Provisions (Food, etc)",Charles Saunders Limited,492.11, 08-Sep-2020
820,Revenue,CAHD,Statemented Support Academies,Other Public Bodies,Charlton Wood Primary Academy,702.17, 30-Sep-2020
821,Revenue,CAHD,Pathway 1 - Re-Ablement Home Care,Other Small Contracts,Cherish Able Care Limited,591.60, 22-Sep-2020
822,Revenue,CAHD,Pathway 1 - Re-Ablement Home Care,Other Small Contracts,Cherish Able Care Limited,621.18, 15-Sep-2020
823,Revenue,CAHD,Pathway 1 - Re-Ablement Home Care,Other Small Contracts,Cherish Able Care Limited,621.18, 22-Sep-2020
824,Revenue,CAHD,Pathway 1 - Re-Ablement Home Care,Other Small Contracts,Cherish Able Care Limited,591.60, 15-Sep-2020
825,Revenue,CAHD,Central - Commissioned Services,Other Small Contracts,Cherish Able Care Limited,1622.88, 04-Sep-2020
826,Revenue,CAHD,South - Commissioned Services,Other Small Contracts,Cherish Able Care Limited,4897.05, 04-Sep-2020
827,Revenue,CAHD,North - Community based support,Other Small Contracts,Cherish Able Care Limited,676.20, 04-Sep-2020
828,Revenue,CAHD,Central - Commissioned Services,Other Small Contracts,Cherish Able Care Limited,1555.26, 10-Sep-2020
829,Revenue,CAHD,South - Commissioned Services,Other Small Contracts,Cherish Able Care Limited,5146.23, 10-Sep-2020
830,Revenue,CAHD,North - Community based support,Other Small Contracts,Cherish Able Care Limited,540.96, 10-Sep-2020
831,Revenue,CAHD,Central - Commissioned Services,Other Small Contracts,Cherish Able Care Limited,1579.41, 21-Sep-2020
832,Revenue,CAHD,South - Commissioned Services,Other Small Contracts,Cherish Able Care Limited,5645.64, 21-Sep-2020
833,Revenue,CAHD,North - Community based support,Other Small Contracts,Cherish Able Care Limited,193.20, 21-Sep-2020
834,Revenue,CAHD,Central - Commissioned Services,Other Small Contracts,Cherish Able Care Limited,1555.26, 25-Sep-2020
835,Revenue,CAHD,South - Commissioned Services,Other Small Contracts,Cherish Able Care Limited,5456.34, 25-Sep-2020
836,Revenue,CAHD,North - Community based support,Other Small Contracts,Cherish Able Care Limited,695.52, 25-Sep-2020
837,Revenue,CAHD,Central - Commissioned Services,Other Small Contracts,Cherish Able Care Limited,1560.09, 30-Sep-2020
838,Revenue,CAHD,South - Commissioned Services,Other Small Contracts,Cherish Able Care Limited,4639.47, 30-Sep-2020
839,Revenue,CAHD,North - Community based support,Other Small Contracts,Cherish Able Care Limited,666.54, 30-Sep-2020
840,Revenue,CAHD,South - Commissioned Services,Other Small Contracts,Cherish Able Care Limited,2940.00, 28-Sep-2020
841,Revenue,CAHD,South - Commissioned Services,Other Small Contracts,Cherry Orchards,6357.12, 25-Sep-2020
842,Revenue,CAHD,18-25 Year Olds,Other Small Contracts,Cherry Orchards,3284.40, 16-Sep-2020
843,Revenue,CAHD,18-25 Year Olds,Other Small Contracts,Cherry Orchards,685.86, 16-Sep-2020
844,Revenue,CAHD,South - Commissioned Services,Supported Living,Cherry Orchards,1313.76, 16-Sep-2020
845,Revenue,CAHD,18-25 Year Olds,Other Small Contracts,Cherry Orchards,1622.88, 16-Sep-2020
846,Revenue,CAHD,South - Commissioned Services,Other Small Contracts,Cherry Orchards,4868.64, 16-Sep-2020
847,Revenue,CAHD,South - Commissioned Services,Supported Living,Cherry Orchards,2085.84, 22-Sep-2020
848,Revenue,CAHD,18-25 Year Olds,Supported Living,Cherry Orchards,2030.52, 22-Sep-2020
849,Revenue,CAHD,North - Community based support,Supported Living,Cherry Orchards,1042.96, 22-Sep-2020
850,Revenue,CAHD,S28A cases,Permanent Residential,Chescombe Trust Ltd,9959.72, 22-Sep-2020
851,Revenue,CAHD,CSC - Emergency Duty Team,Preventative Assistance,Childrens Contact Services Ltd,1034.40, 11-Sep-2020
852,Revenue,CAHD,Central - Commissioned Services,Other Small Contracts,Cintre,239.04, 04-Sep-2020
853,Revenue,CAHD,South - Commissioned Services,Other Small Contracts,Cintre,996.00, 04-Sep-2020
854,Revenue,CAHD,Central - Commissioned Services,Other Small Contracts,Cintre,239.04, 10-Sep-2020
855,Revenue,CAHD,South - Commissioned Services,Other Small Contracts,Cintre,1055.76, 10-Sep-2020
856,Revenue,CAHD,Central - Commissioned Services,Other Small Contracts,Cintre,239.04, 24-Sep-2020
857,Revenue,CAHD,South - Commissioned Services,Other Small Contracts,Cintre,1015.92, 24-Sep-2020
858,Revenue,CAHD,18-25 Year Olds,Other Small Contracts,Cintre,846.60, 24-Sep-2020
859,Revenue,CAHD,Central - Commissioned Services,Other Small Contracts,Cintre,79.68, 24-Sep-2020
860,Revenue,CAHD,South - Commissioned Services,Other Small Contracts,Cintre,1065.72, 24-Sep-2020
861,Revenue,CAHD,18-25 Year Olds,Other Small Contracts,Cintre,846.60, 25-Sep-2020
862,Revenue,CAHD,South - Commissioned Services,Permanent Residential,Clearwater Care,5280.28, 22-Sep-2020
863,Revenue,CAHD,Covid 19 -Adult Social Care,Permanent Residential,Cleeve Lodge,1519.64, 04-Sep-2020
864,Revenue,CAHD,South - Commissioned Services,Permanent Residential,Cleeve Lodge,3760.12, 22-Sep-2020
865,Revenue,CAHD,South - Commissioned Services,Permanent Residential,Cleeve Lodge,3760.12, 22-Sep-2020
866,Revenue,CAHD,South - Commissioned Services,Permanent Residential,Cleeve Lodge,1334.60, 22-Sep-2020
867,Revenue,CAHD,South - Commissioned Services,Permanent Residential,Cleeve Lodge,2980.12, 22-Sep-2020
868,Revenue,CAHD,South - Commissioned Services,Permanent Residential,Cleeve Lodge,4400.00, 22-Sep-2020
869,Revenue,CAHD,South - Commissioned Services,Permanent Residential,Cleeve Lodge,4000.00, 22-Sep-2020
870,Revenue,CAHD,South - Commissioned Services,Permanent Residential,Cleeve Lodge,2950.88, 22-Sep-2020
871,Revenue,CAHD,North - Community based support,Permanent Nursing,Clevedon Court Nursing Home,3448.16, 22-Sep-2020
872,Revenue,CAHD,Independent Special Placements - Pre 16,Other Private Contractors,Clifton College,8380.00, 21-Sep-2020
873,Revenue,CAHD,Central - Commissioned Services,Other Small Contracts,Clover Health and Home Care Ltd,1656.72, 14-Sep-2020
874,Revenue,CAHD,Central - Commissioned Services,Other Small Contracts,Clover Health and Home Care Ltd,892.08, 11-Sep-2020
875,Revenue,CAHD,CSC - Vinney Green Secure Unit,Mechanical & Electrical Maintenance,Clover Technical Services,4025.00, 04-Sep-2020
876,Revenue,CAHD,South - Commissioned Services,Permanent Residential,Collingwood Care Home,2882.76, 22-Sep-2020
877,Revenue,CAHD,North - Community based support,Permanent Residential,Collingwood Care Home,3000.00, 22-Sep-2020
878,Revenue,CAHD,South - Commissioned Services,Permanent Residential,Collingwood Care Home,2554.36, 22-Sep-2020
879,Revenue,CAHD,South - Commissioned Services,Permanent Residential,Community Theraputic Services,7893.40, 22-Sep-2020
880,Revenue,CAHD,Jointly Funded H&SC Packages,Permanent Residential,Community Theraputic Services,4875.84, 22-Sep-2020
881,Revenue,CAHD,North - Community based support,Permanent Residential,Community Theraputic Services,8119.76, 22-Sep-2020
882,Revenue,CAHD,Jointly Funded H&SC Packages,Permanent Residential,Community Theraputic Services,2027.52, 22-Sep-2020
883,Revenue,CAHD,South - Commissioned Services,Permanent Residential,Concorde Lodge,19007.60, 22-Sep-2020
884,Revenue,CAHD,Bed and Breakfast,Bed & Breakfast,Connolly & Callaghan Limited,764.40, 15-Sep-2020
885,Revenue,CAHD,Bed and Breakfast,Bed & Breakfast,Connolly & Callaghan Limited,457.80, 15-Sep-2020
886,Revenue,CAHD,Bed and Breakfast,Bed & Breakfast,Connolly & Callaghan Limited,422.80, 16-Sep-2020
887,Revenue,CAHD,Bed and Breakfast,Bed & Breakfast,Connolly & Callaghan Limited,679.00, 16-Sep-2020
888,Revenue,CAHD,Bed and Breakfast,Bed & Breakfast,Connolly & Callaghan Limited,593.60, 16-Sep-2020
889,Revenue,CAHD,Bed and Breakfast,Bed & Breakfast,Connolly & Callaghan Limited,508.20, 24-Sep-2020
890,Revenue,CAHD,Bed and Breakfast,Bed & Breakfast,Connolly & Callaghan Limited,764.40, 16-Sep-2020
891,Revenue,CAHD,Bed and Breakfast,Bed & Breakfast,Connolly & Callaghan Limited,457.80, 16-Sep-2020
892,Revenue,CAHD,Bed and Breakfast,Bed & Breakfast,Connolly & Callaghan Limited,422.80, 16-Sep-2020
893,Revenue,CAHD,Bed and Breakfast,Bed & Breakfast,Connolly & Callaghan Limited,422.80, 18-Sep-2020
894,Revenue,CAHD,Bed and Breakfast,Bed & Breakfast,Connolly & Callaghan Limited,679.00, 18-Sep-2020
895,Revenue,CAHD,Bed and Breakfast,Bed & Breakfast,Connolly & Callaghan Limited,593.60, 18-Sep-2020
896,Revenue,CAHD,Bed and Breakfast,Bed & Breakfast,Connolly & Callaghan Limited,764.40, 23-Sep-2020
897,Revenue,CAHD,Bed and Breakfast,Bed & Breakfast,Connolly & Callaghan Limited,422.80, 22-Sep-2020
898,Revenue,CAHD,Bed and Breakfast,Bed & Breakfast,Connolly & Callaghan Limited,457.80, 23-Sep-2020
899,Revenue,CAHD,Bed and Breakfast,Bed & Breakfast,Connolly & Callaghan Limited,422.80, 22-Sep-2020
900,Revenue,CAHD,Bed and Breakfast,Bed & Breakfast,Connolly & Callaghan Limited,422.80, 22-Sep-2020
901,Revenue,CAHD,Bed and Breakfast,Bed & Breakfast,Connolly & Callaghan Limited,679.00, 22-Sep-2020
902,Revenue,CAHD,Bed and Breakfast,Bed & Breakfast,Connolly & Callaghan Limited,593.60, 22-Sep-2020
903,Revenue,CAHD,Bed and Breakfast,Bed & Breakfast,Connolly & Callaghan Limited,548.80, 23-Sep-2020
904,Revenue,CAHD,Bed and Breakfast,Bed & Breakfast,Connolly & Callaghan Limited,764.40, 25-Sep-2020
905,Revenue,CAHD,Bed and Breakfast,Bed & Breakfast,Connolly & Callaghan Limited,422.80, 25-Sep-2020
906,Revenue,CAHD,Bed and Breakfast,Bed & Breakfast,Connolly & Callaghan Limited,457.80, 25-Sep-2020
907,Revenue,CAHD,Bed and Breakfast,Bed & Breakfast,Connolly & Callaghan Limited,422.80, 25-Sep-2020
908,Revenue,CAHD,Bed and Breakfast,Bed & Breakfast,Connolly & Callaghan Limited,679.00, 30-Sep-2020
909,Revenue,CAHD,Bed and Breakfast,Bed & Breakfast,Connolly & Callaghan Limited,593.60, 30-Sep-2020
910,Revenue,CAHD,Bed and Breakfast,Bed & Breakfast,Connolly & Callaghan Limited,764.40, 30-Sep-2020
911,Revenue,CAHD,Bed and Breakfast,Bed & Breakfast,Connolly & Callaghan Limited,422.80, 28-Sep-2020
912,Revenue,CAHD,Bed and Breakfast,Bed & Breakfast,Connolly & Callaghan Limited,457.80, 30-Sep-2020
913,Revenue,CAHD,Bed and Breakfast,Bed & Breakfast,Connolly & Callaghan Limited,422.80, 28-Sep-2020
914,Revenue,CAHD,Bed and Breakfast,Bed & Breakfast,Connolly & Callaghan Limited,679.00, 28-Sep-2020
915,Revenue,CAHD,Bed and Breakfast,Bed & Breakfast,Connolly & Callaghan Limited,593.60, 28-Sep-2020
916,Revenue,CAHD,Bed and Breakfast,Bed & Breakfast,Connolly & Callaghan Limited,442.20, 28-Sep-2020
917,Revenue,CAHD,Schools Specific Grant Income,Software Support & Maintenance,Contact Group,4623.84, 08-Sep-2020
918,Revenue,CAHD,CSC - Vinney Green Secure Unit,Other Supplies & Services,Coram Voice,1948.50, 30-Sep-2020
919,Revenue,CAHD,North - Community based support,Respite Planned - Residential,Court House Residential C.H.,3521.43, 22-Sep-2020
920,Revenue,CAHD,North - Community based support,Respite Planned - Residential,Court House Residential C.H.,3400.00, 22-Sep-2020
921,Revenue,CAHD,North - Community based support,Permanent Residential,Court House Residential C.H.,3400.00, 22-Sep-2020
922,Revenue,CAHD,North - Community based support,Permanent Residential,Court House Residential C.H.,500.82, 22-Sep-2020
923,Revenue,CAHD,S28A cases,Permanent Residential,Creedy Court,10597.96, 22-Sep-2020
924,Revenue,CAHD,S28A cases,Permanent Residential,Creedy Court,8904.92, 22-Sep-2020
925,Revenue,CAHD,North - Community based support,Permanent Residential,Creedy Court,14054.00, 22-Sep-2020
926,Revenue,CAHD,Telecare,Other Supplies & Services,CSL Dualcom,546.00, 25-Sep-2020
927,Revenue,CAHD,Central - Commissioned Services,Supported Living,Cygnet Healthcare Limited,7198.00, 04-Sep-2020
928,Revenue,CAHD,Central - Commissioned Services,Supported Living,Cygnet Healthcare Limited,3304.00, 22-Sep-2020
929,Revenue,CAHD,CSC - Vinney Green Secure Unit,Mechanical & Electrical Maintenance,Dale Power Solutions Ltd,700.00, 15-Sep-2020
930,Revenue,CAHD,South - Commissioned Services,Permanent Residential,Daneswood,12759.56, 22-Sep-2020
931,Revenue,CAHD,South - Commissioned Services,Day Care / Social Activities,Daneswood,1441.60, 22-Sep-2020
932,Revenue,CAHD,North - Community based support,Permanent Residential,Daneswood,13579.68, 22-Sep-2020
933,Revenue,CAHD,CSC - Professional Fees Foster Carers,Children - Family Support,Individual,711.43, 18-Sep-2020
934,Revenue,CAHD,CSC - Age Related Allowances,Children - Family Support,Individual,713.57, 18-Sep-2020
935,Revenue,CAHD,South - S117,Permanent Nursing,Danshell Healthcare Group,11437.64, 22-Sep-2020
936,Revenue,CAHD,Jointly Funded H&SC Packages,Permanent Nursing,Danshell Healthcare Group,1697.16, 22-Sep-2020
937,Revenue,CAHD,Learning Difficulties PSL,Rent,Individual,2400.00, 22-Sep-2020
938,Revenue,CAHD,South - Commissioned Services,Day Care / Social Activities,Deafblind Uk,1088.70, 01-Sep-2020
939,Revenue,CAHD,North - Community based support,Day Care / Social Activities,Deafblind Uk,641.76, 07-Sep-2020
940,Revenue,CAHD,Central - Commissioned Services,Permanent Residential,Debt Recovery,4173.72, 22-Sep-2020
941,Revenue,CAHD,South - Commissioned Services,Permanent Residential,Debt Recovery,4266.36, 22-Sep-2020
942,Revenue,CAHD,North - Community based support,Permanent Nursing,Debt Recovery,4478.12, 22-Sep-2020
943,Revenue,CAHD,North - Community based support,Permanent Nursing,Debt Recovery,3687.20, 22-Sep-2020
944,Revenue,CAHD,Central - Commissioned Services,Permanent Residential,Debt Recovery,4617.04, 22-Sep-2020
945,Revenue,CAHD,North - Community based support,Permanent Nursing,Debt Recovery,5468.24, 22-Sep-2020
946,Revenue,CAHD,North - Community based support,Permanent Nursing,Debt Recovery,3586.16, 22-Sep-2020
947,Revenue,CAHD,Central - Commissioned Services,Permanent Nursing,Debt Recovery,5568.36, 22-Sep-2020
948,Revenue,CAHD,North - Community based support,Permanent Residential,Debt Recovery,3643.92, 22-Sep-2020
949,Revenue,CAHD,North - Community based support,Permanent Nursing,Debt Recovery,6121.92, 22-Sep-2020
950,Revenue,CAHD,North - Community based support,Permanent Nursing,Debt Recovery,4121.24, 22-Sep-2020
951,Revenue,CAHD,Covid 19 -Adult Social Care,Permanent Residential,Deerhurst Nursing Home,1414.29, 04-Sep-2020
952,Revenue,CAHD,Covid 19 -Adult Social Care,Permanent Residential,Deerhurst Nursing Home,1345.74, 04-Sep-2020
953,Revenue,CAHD,South Glos Users in South Glos Homes,Permanent Nursing,Deerhurst Nursing Home,3520.75, 22-Sep-2020
954,Revenue,CAHD,North - Community based support,Fees & Charges Income - General,Deerhurst Nursing Home,508.77, 22-Sep-2020
955,Revenue,CAHD,South Glos Users in South Glos Homes,Permanent Nursing,Deerhurst Nursing Home,735.68, 22-Sep-2020
956,Revenue,CAHD,South - Commissioned Services,Permanent Nursing,Deerhurst Nursing Home,3881.40, 22-Sep-2020
957,Revenue,CAHD,South Glos Users in South Glos Homes,Permanent Nursing,Deerhurst Nursing Home,735.68, 22-Sep-2020
958,Revenue,CAHD,South Glos Users in South Glos Homes,Permanent Nursing,Deerhurst Nursing Home,1024.70, 22-Sep-2020
959,Revenue,CAHD,South Glos Users in South Glos Homes,Permanent Nursing,Deerhurst Nursing Home,735.68, 22-Sep-2020
960,Revenue,CAHD,South - Commissioned Services,Permanent Nursing,Deerhurst Nursing Home,4400.00, 22-Sep-2020
961,Revenue,CAHD,South Glos Users in South Glos Homes,Permanent Nursing,Deerhurst Nursing Home,3284.29, 22-Sep-2020
962,Revenue,CAHD,South Glos Users in South Glos Homes,Permanent Nursing,Deerhurst Nursing Home,735.68, 22-Sep-2020
963,Revenue,CAHD,South Glos Users in South Glos Homes,Permanent Nursing,Deerhurst Nursing Home,735.68, 22-Sep-2020
964,Revenue,CAHD,South - Commissioned Services,Day Care / Social Activities,Deerhurst Nursing Home,568.16, 22-Sep-2020
965,Revenue,CAHD,South Glos Users in South Glos Homes,Permanent Nursing,Deerhurst Nursing Home,735.68, 22-Sep-2020
966,Revenue,CAHD,South - Commissioned Services,Permanent Nursing,Deerhurst Nursing Home,4098.52, 22-Sep-2020
967,Revenue,CAHD,South Glos Users in South Glos Homes,Permanent Nursing,Deerhurst Nursing Home,735.68, 22-Sep-2020
968,Revenue,CAHD,South - Commissioned Services,Permanent Nursing,Deerhurst Nursing Home,4006.00, 22-Sep-2020
969,Revenue,CAHD,South Glos Users in South Glos Homes,Permanent Nursing,Deerhurst Nursing Home,735.68, 22-Sep-2020
970,Revenue,CAHD,North - Community based support,Permanent Nursing,Deerhurst Nursing Home,3891.20, 22-Sep-2020
971,Revenue,CAHD,South - Commissioned Services,Permanent Nursing,Deerhurst Nursing Home,3965.12, 22-Sep-2020
972,Revenue,CAHD,South Glos Users in South Glos Homes,Permanent Nursing,Deerhurst Nursing Home,735.68, 22-Sep-2020
973,Revenue,CAHD,North - Community based support,Permanent Nursing,Deerhurst Nursing Home,4140.00, 22-Sep-2020
974,Revenue,CAHD,South - Commissioned Services,Permanent Nursing,Deerhurst Nursing Home,4129.40, 22-Sep-2020
975,Revenue,CAHD,South - Commissioned Services,Day Care / Social Activities,Deerhurst Nursing Home,568.16, 22-Sep-2020
976,Revenue,CAHD,South - Commissioned Services,Permanent Nursing,Deerhurst Nursing Home,11238.40, 22-Sep-2020
977,Revenue,CAHD,South - Commissioned Services,Permanent Nursing,Deerhurst Nursing Home,4088.08, 22-Sep-2020
978,Revenue,CAHD,South Glos Users in South Glos Homes,Permanent Nursing,Deerhurst Nursing Home,735.68, 22-Sep-2020
979,Revenue,CAHD,South - bed purchasing and direct  payments,Permanent Nursing,Deerhurst Nursing Home,4084.08, 22-Sep-2020
980,Revenue,CAHD,South Glos Users in South Glos Homes,Permanent Nursing,Deerhurst Nursing Home,735.68, 22-Sep-2020
981,Revenue,CAHD,South Glos Users in South Glos Homes,Permanent Nursing,Deerhurst Nursing Home,735.68, 22-Sep-2020
982,Revenue,CAHD,South Glos Users in South Glos Homes,Permanent Nursing,Deerhurst Nursing Home,735.68, 22-Sep-2020
983,Revenue,CAHD,South Glos Users in South Glos Homes,Permanent Nursing,Deerhurst Nursing Home,3021.54, 22-Sep-2020
984,Revenue,CAHD,South Glos Users in South Glos Homes,Permanent Nursing,Deerhurst Nursing Home,2653.70, 22-Sep-2020
985,Revenue,CAHD,South Glos Users in South Glos Homes,Permanent Nursing,Deerhurst Nursing Home,735.68, 22-Sep-2020
986,Revenue,CAHD,North - Community based support,Permanent Nursing,Deerhurst Nursing Home,4088.08, 22-Sep-2020
987,Revenue,CAHD,South Glos Users in South Glos Homes,Permanent Nursing,Deerhurst Nursing Home,735.68, 22-Sep-2020
988,Revenue,CAHD,South - Commissioned Services,Permanent Nursing,Deerhurst Nursing Home,4086.08, 22-Sep-2020
989,Revenue,CAHD,South Glos Users in South Glos Homes,Permanent Nursing,Deerhurst Nursing Home,735.68, 22-Sep-2020
990,Revenue,CAHD,South Glos Users in South Glos Homes,Permanent Nursing,Deerhurst Nursing Home,735.68, 22-Sep-2020
991,Revenue,CAHD,South - Commissioned Services,Permanent Nursing,Deerhurst Nursing Home,3969.04, 22-Sep-2020
992,Revenue,CAHD,South Glos Users in South Glos Homes,Permanent Nursing,Deerhurst Nursing Home,735.68, 22-Sep-2020
993,Revenue,CAHD,South Glos Users in South Glos Homes,Permanent Nursing,Deerhurst Nursing Home,735.68, 22-Sep-2020
994,Revenue,CAHD,South - Commissioned Services,Permanent Nursing,Deerhurst Nursing Home,10034.86, 22-Sep-2020
995,Revenue,CAHD,South - Commissioned Services,Permanent Nursing,Deerhurst Nursing Home,4132.00, 22-Sep-2020
996,Revenue,CAHD,South Glos Users in South Glos Homes,Permanent Nursing,Deerhurst Nursing Home,735.68, 22-Sep-2020
997,Revenue,CAHD,South - Commissioned Services,Fees & Charges Income - General,Deerhurst Nursing Home,1394.25, 22-Sep-2020
998,Revenue,CAHD,South Glos Users in South Glos Homes,Permanent Nursing,Deerhurst Nursing Home,735.68, 22-Sep-2020
999,Revenue,CAHD,South Glos Users in South Glos Homes,Permanent Nursing,Deerhurst Nursing Home,735.68, 22-Sep-2020
1000,Revenue,CAHD,South Glos Users in South Glos Homes,Permanent Nursing,Deerhurst Nursing Home,735.68, 22-Sep-2020
1001,Revenue,CAHD,South Glos Users in South Glos Homes,Permanent Nursing,Deerhurst Nursing Home,735.68, 22-Sep-2020
1002,Revenue,CAHD,South Glos Users in South Glos Homes,Permanent Nursing,Deerhurst Nursing Home,735.68, 22-Sep-2020
1003,Revenue,CAHD,North - Community based support,Permanent Nursing,Deerhurst Nursing Home,4006.00, 22-Sep-2020
1004,Revenue,CAHD,South Glos Users in South Glos Homes,Permanent Nursing,Deerhurst Nursing Home,735.68, 22-Sep-2020
1005,Revenue,CAHD,South - Commissioned Services,Permanent Nursing,Deerhurst Nursing Home,4085.36, 22-Sep-2020
1006,Revenue,CAHD,South Glos Users in South Glos Homes,Permanent Nursing,Deerhurst Nursing Home,735.68, 22-Sep-2020
1007,Revenue,CAHD,South Glos Users in South Glos Homes,Permanent Nursing,Deerhurst Nursing Home,735.68, 22-Sep-2020
1008,Revenue,CAHD,South Glos Users in South Glos Homes,Permanent Nursing,Deerhurst Nursing Home,735.68, 22-Sep-2020
1009,Revenue,CAHD,South - Commissioned Services,Permanent Nursing,Deerhurst Nursing Home,4006.00, 22-Sep-2020
1010,Revenue,CAHD,South - Commissioned Services,Permanent Residential,Deerhurst Nursing Home,4129.00, 22-Sep-2020
1011,Revenue,CAHD,South Glos Users in South Glos Homes,Permanent Nursing,Deerhurst Nursing Home,735.68, 22-Sep-2020
1012,Revenue,CAHD,South Glos Users in South Glos Homes,Permanent Nursing,Deerhurst Nursing Home,735.68, 22-Sep-2020
1013,Revenue,CAHD,South Glos Users in South Glos Homes,Permanent Nursing,Deerhurst Nursing Home,2075.67, 22-Sep-2020
1014,Revenue,CAHD,South - Commissioned Services,Permanent Nursing,Deerhurst Nursing Home,4006.00, 22-Sep-2020
1015,Revenue,CAHD,South - Commissioned Services,Permanent Residential,Deerhurst Nursing Home,3891.20, 22-Sep-2020
1016,Revenue,CAHD,South Glos Users in South Glos Homes,Permanent Nursing,Deerhurst Nursing Home,735.68, 22-Sep-2020
1017,Revenue,CAHD,North - Community based support,Permanent Nursing,Deerhurst Nursing Home,3094.88, 22-Sep-2020
1018,Revenue,CAHD,South Glos Users in South Glos Homes,Permanent Nursing,Deerhurst Nursing Home,735.68, 22-Sep-2020
1019,Revenue,CAHD,South Glos Users in South Glos Homes,Permanent Nursing,Deerhurst Nursing Home,735.68, 22-Sep-2020
1020,Revenue,CAHD,South Glos Users in South Glos Homes,Permanent Nursing,Deerhurst Nursing Home,735.68, 22-Sep-2020
1021,Revenue,CAHD,South Glos Users in South Glos Homes,Permanent Nursing,Deerhurst Nursing Home,735.68, 22-Sep-2020
1022,Revenue,CAHD,South Glos Users in South Glos Homes,Permanent Nursing,Deerhurst Nursing Home,735.68, 22-Sep-2020
1023,Revenue,CAHD,South - Commissioned Services,Supported Living,Design House,2714.44, 22-Sep-2020
1024,Revenue,CAHD,South - Commissioned Services,Other Small Contracts,Design House,3124.28, 22-Sep-2020
1025,Revenue,CAHD,South - Commissioned Services,Supported Living,Design House,3053.16, 22-Sep-2020
1026,Revenue,CAHD,South - Commissioned Services,Day Care / Social Activities,Design House,526.72, 22-Sep-2020
1027,Revenue,CAHD,Central - Commissioned Services,Day Care / Social Activities,Design House,2991.44, 22-Sep-2020
1028,Revenue,CAHD,South - Commissioned Services,Day Care / Social Activities,Design House,1317.04, 22-Sep-2020
1029,Revenue,CAHD,South - Commissioned Services,Day Care / Social Activities,Design House,939.72, 22-Sep-2020
1030,Revenue,CAHD,South - Commissioned Services,Supported Living,Design House,2691.36, 22-Sep-2020
1031,Revenue,CAHD,South - Commissioned Services,Supported Living,Design House,2691.36, 22-Sep-2020
1032,Revenue,CAHD,South - Commissioned Services,Other Small Contracts,Design House,2192.32, 22-Sep-2020
1033,Revenue,CAHD,South - Commissioned Services,Day Care / Social Activities,Design House,526.72, 22-Sep-2020
1034,Revenue,CAHD,South - Commissioned Services,Supported Living,Design House,1934.44, 22-Sep-2020
1035,Revenue,CAHD,South - Commissioned Services,Other Small Contracts,Design House,2566.92, 22-Sep-2020
1036,Revenue,CAHD,South - Commissioned Services,Supported Living,Design House,4393.28, 22-Sep-2020
1037,Revenue,CAHD,North - Community based support,Supported Living,Design House,3115.32, 22-Sep-2020
1038,Revenue,CAHD,South - Commissioned Services,Day Care / Social Activities,Design House,1536.08, 22-Sep-2020
1039,Revenue,CAHD,South - Commissioned Services,Supported Living,Design House,2983.16, 22-Sep-2020
1040,Revenue,CAHD,South - Commissioned Services,Supported Living,Design House,2593.64, 22-Sep-2020
1041,Revenue,CAHD,South - Commissioned Services,Supported Living,Design House,2302.64, 22-Sep-2020
1042,Revenue,CAHD,South - Commissioned Services,Supported Living,Design House,2302.64, 22-Sep-2020
1043,Revenue,CAHD,Family and Young People Support North,Legal Fees,Individual,600.00, 28-Sep-2020
1044,Revenue,CAHD,Statemented Support Academies,Other Public Bodies,Downend School,978.57, 30-Sep-2020
1045,Revenue,CAHD,Statemented Support Academies,Other Public Bodies,Downend School,660.24, 30-Sep-2020
1046,Revenue,CAHD,Statemented Support Academies,Other Public Bodies,Downend School,1025.73, 30-Sep-2020
1047,Revenue,CAHD,Statemented Support Academies,Other Public Bodies,Downend School,1013.94, 30-Sep-2020
1048,Revenue,CAHD,Statemented Support Academies,Other Public Bodies,Downend School,801.72, 30-Sep-2020
1049,Revenue,CAHD,Statemented Support Academies,Other Public Bodies,Downend School,530.55, 30-Sep-2020
1050,Revenue,CAHD,Statemented Support Academies,Other Public Bodies,Downend School,1108.26, 30-Sep-2020
1051,Revenue,CAHD,Statemented Support Academies,Other Public Bodies,Downend School,554.13, 30-Sep-2020
1052,Revenue,CAHD,Statemented Support Academies,Other Public Bodies,Downend School,666.00, 30-Sep-2020
1053,Revenue,CAHD,Statemented Support Academies,Other Public Bodies,Downend School,1438.38, 30-Sep-2020
1054,Revenue,CAHD,Statemented Support Academies,Other Public Bodies,Downend School,1709.55, 30-Sep-2020
1055,Revenue,CAHD,Statemented Support Academies,Other Public Bodies,Downend School,1192.50, 30-Sep-2020
1056,Revenue,CAHD,Statemented Support Academies,Other Public Bodies,Downend School,1544.49, 30-Sep-2020
1057,Revenue,CAHD,Social Lettings Agency,Rent,Individual,595.11, 24-Sep-2020
1058,Revenue,CAHD,Social Lettings Agency,Fees - General,Individual,10.53, 24-Sep-2020
1059,Revenue,CAHD,CSC - Therapeutic Foster Care Programm,Special Fostering Scheme,Individual,565.00, 04-Sep-2020
1060,Revenue,CAHD,CSC - Therapeutic Foster Care Programm,Special Fostering Scheme,Individual,565.00, 11-Sep-2020
1061,Revenue,CAHD,CSC - Therapeutic Foster Care Programm,Special Fostering Scheme,Individual,573.00, 18-Sep-2020
1062,Revenue,CAHD,CSC - Therapeutic Foster Care Programm,Special Fostering Scheme,Individual,573.00, 25-Sep-2020
1063,Revenue,CAHD,North - Community based support,Permanent Residential,East Court,2763.56, 22-Sep-2020
1064,Revenue,CAHD,CSC - Residential Placements,Permanent Residential,East Sussex County Council,30635.00, 10-Sep-2020
1065,Revenue,CAHD,CSC - Residential Placements,Permanent Residential,East Sussex County Council,30635.00, 22-Sep-2020
1066,Revenue,CAHD,CSC - Care Leavers Support Costs,Personal Needs of Clients,Eastville Domestic Appliances,666.00, 09-Sep-2020
1067,Revenue,CAHD,Central - Commissioned Services,Permanent Residential,Edendale Lodge,5892.86, 22-Sep-2020
1068,Revenue,CAHD,Central - Commissioned Services,Permanent Residential,Edendale Lodge,3000.00, 22-Sep-2020
1069,Revenue,CAHD,South - Commissioned Services,Respite Planned - Residential,Edgemont House Ltd,9142.86, 22-Sep-2020
1070,Revenue,CAHD,South - Commissioned Services,Fees & Charges Income - General,Edgemont House Ltd,1679.88, 22-Sep-2020
1071,Revenue,CAHD,South - bed purchasing and direct  payments,Permanent Residential,Edgemont House Ltd,3264.00, 22-Sep-2020
1072,Revenue,CAHD,South Glos Users in South Glos Homes,Permanent Nursing,Edgemont View Ltd,2863.90, 22-Sep-2020
1073,Revenue,CAHD,South Glos Users in South Glos Homes,Permanent Nursing,Edgemont View Ltd,735.68, 22-Sep-2020
1074,Revenue,CAHD,South - Commissioned Services,Permanent Nursing,Edgemont View Ltd,3655.68, 22-Sep-2020
1075,Revenue,CAHD,South Glos Users in South Glos Homes,Permanent Nursing,Edgemont View Ltd,709.41, 22-Sep-2020
1076,Revenue,CAHD,South Glos Users in South Glos Homes,Permanent Nursing,Edgemont View Ltd,735.68, 22-Sep-2020
1077,Revenue,CAHD,Bed Purchasing - Southmead Hospital,Respite Planned - Nursing,Edgemont View Ltd,5250.00, 22-Sep-2020
1078,Revenue,CAHD,South Glos Users in South Glos Homes,Permanent Nursing,Edgemont View Ltd,735.68, 22-Sep-2020
1079,Revenue,CAHD,South Glos Users in South Glos Homes,Permanent Nursing,Edgemont View Ltd,735.68, 22-Sep-2020
1080,Revenue,CAHD,South - Commissioned Services,Permanent Nursing,Edgemont View Ltd,3600.00, 22-Sep-2020
1081,Revenue,CAHD,South Glos Users in South Glos Homes,Permanent Nursing,Edgemont View Ltd,735.68, 22-Sep-2020
1082,Revenue,CAHD,South - Commissioned Services,Permanent Nursing,Edgemont View Ltd,6250.00, 22-Sep-2020
1083,Revenue,CAHD,South Glos Users in South Glos Homes,Permanent Nursing,Edgemont View Ltd,2390.96, 22-Sep-2020
1084,Revenue,CAHD,South Glos Users in South Glos Homes,Permanent Nursing,Edgemont View Ltd,735.68, 22-Sep-2020
1085,Revenue,CAHD,South Glos Users in South Glos Homes,Permanent Nursing,Edgemont View Ltd,735.68, 22-Sep-2020
1086,Revenue,CAHD,South - Commissioned Services,Permanent Nursing,Edgemont View Ltd,3655.68, 22-Sep-2020
1087,Revenue,CAHD,South Glos Users in South Glos Homes,Permanent Nursing,Edgemont View Ltd,735.68, 22-Sep-2020
1088,Revenue,CAHD,Planning and Partnerships Procurement,Other Supplies & Services,Eldercare,2730.00, 30-Sep-2020
1089,Revenue,CAHD,Planning and Partnerships Procurement,Other Supplies & Services,Eldercare,450.00, 30-Sep-2020
1090,Revenue,CAHD,Planning and Partnerships Procurement,Other Supplies & Services,Eldercare,2681.66, 30-Sep-2020
1091,Revenue,CAHD,Supporting People Programme,Grants to Voluntary Bodies,Elim Housing Association Limited,5362.00, 01-Sep-2020
1092,Revenue,CAHD,Social Lettings Agency,Rent,Individual,1169.28, 04-Sep-2020
1093,Revenue,CAHD,Social Lettings Agency,Fees - General,Individual,15.12, 04-Sep-2020
1094,Revenue,CAHD,CSC - Legal Fees,Legal Fees,Individual,500.00, 22-Sep-2020
1095,Revenue,CAHD,CSC - Legal Fees,Legal Fees,Individual,500.00, 22-Sep-2020
1096,Revenue,CAHD,Special ISB,Other Public Bodies,Enable Trust,6794.56, 04-Sep-2020
1097,Revenue,CAHD,Special ISB,Other Public Bodies,Enable Trust,1137.94, 28-Sep-2020
1098,Revenue,CAHD,Special ISB,Other Public Bodies,Enable Trust,2189.53, 28-Sep-2020
1099,Revenue,CAHD,Special ISB,Other Public Bodies,Enable Trust,1491.13, 28-Sep-2020
1100,Revenue,CAHD,Special ISB,Other Public Bodies,Enable Trust,1137.94, 28-Sep-2020
1101,Revenue,CAHD,Special ISB,Other Public Bodies,Enable Trust,1137.94, 28-Sep-2020
1102,Revenue,CAHD,Special ISB,Other Public Bodies,Enable Trust,863.27, 28-Sep-2020
1103,Revenue,CAHD,Special ISB,Other Public Bodies,Enable Trust,1491.13, 28-Sep-2020
1104,Revenue,CAHD,Special ISB,Other Public Bodies,Enable Trust,1491.13, 28-Sep-2020
1105,Revenue,CAHD,Special ISB,Other Public Bodies,Enable Trust,1137.94, 28-Sep-2020
1106,Revenue,CAHD,Special ISB,Other Public Bodies,Enable Trust,1137.94, 28-Sep-2020
1107,Revenue,CAHD,Special ISB,Other Public Bodies,Enable Trust,1137.94, 28-Sep-2020
1108,Revenue,CAHD,Special ISB,Other Public Bodies,Enable Trust,1491.13, 28-Sep-2020
1109,Revenue,CAHD,Special ISB,Other Public Bodies,Enable Trust,627.77, 28-Sep-2020
1110,Revenue,CAHD,Special ISB,Other Public Bodies,Enable Trust,863.27, 28-Sep-2020
1111,Revenue,CAHD,Special ISB,Other Public Bodies,Enable Trust,863.27, 28-Sep-2020
1112,Revenue,CAHD,Special ISB,Other Public Bodies,Enable Trust,1137.94, 28-Sep-2020
1113,Revenue,CAHD,Special ISB,Other Public Bodies,Enable Trust,1137.94, 28-Sep-2020
1114,Revenue,CAHD,Special ISB,Other Public Bodies,Enable Trust,1137.94, 28-Sep-2020
1115,Revenue,CAHD,Special ISB,Other Public Bodies,Enable Trust,1137.94, 28-Sep-2020
1116,Revenue,CAHD,Special ISB,Other Public Bodies,Enable Trust,1491.13, 28-Sep-2020
1117,Revenue,CAHD,Special ISB,Other Public Bodies,Enable Trust,627.77, 28-Sep-2020
1118,Revenue,CAHD,Special ISB,Other Public Bodies,Enable Trust,1648.03, 28-Sep-2020
1119,Revenue,CAHD,Special ISB,Other Public Bodies,Enable Trust,1491.13, 28-Sep-2020
1120,Revenue,CAHD,Special ISB,Other Public Bodies,Enable Trust,1137.94, 28-Sep-2020
1121,Revenue,CAHD,Special ISB,Other Public Bodies,Enable Trust,1137.94, 28-Sep-2020
1122,Revenue,CAHD,Special ISB,Other Public Bodies,Enable Trust,863.27, 28-Sep-2020
1123,Revenue,CAHD,Special ISB,Other Public Bodies,Enable Trust,1137.94, 28-Sep-2020
1124,Revenue,CAHD,Special ISB,Other Public Bodies,Enable Trust,863.27, 28-Sep-2020
1125,Revenue,CAHD,Special ISB,Other Public Bodies,Enable Trust,2118.90, 28-Sep-2020
1126,Revenue,CAHD,Special ISB,Other Public Bodies,Enable Trust,1137.94, 28-Sep-2020
1127,Revenue,CAHD,Special ISB,Other Public Bodies,Enable Trust,1137.94, 28-Sep-2020
1128,Revenue,CAHD,Special ISB,Other Public Bodies,Enable Trust,1137.94, 28-Sep-2020
1129,Revenue,CAHD,Special ISB,Other Public Bodies,Enable Trust,1137.94, 28-Sep-2020
1130,Revenue,CAHD,Special ISB,Other Public Bodies,Enable Trust,1137.94, 28-Sep-2020
1131,Revenue,CAHD,Special ISB,Other Public Bodies,Enable Trust,2118.90, 28-Sep-2020
1132,Revenue,CAHD,Special ISB,Other Public Bodies,Enable Trust,1137.94, 28-Sep-2020
1133,Revenue,CAHD,Special ISB,Other Public Bodies,Enable Trust,1491.13, 28-Sep-2020
1134,Revenue,CAHD,Special ISB,Other Public Bodies,Enable Trust,863.27, 28-Sep-2020
1135,Revenue,CAHD,Special ISB,Other Public Bodies,Enable Trust,1491.13, 28-Sep-2020
1136,Revenue,CAHD,Special ISB,Other Public Bodies,Enable Trust,1137.94, 28-Sep-2020
1137,Revenue,CAHD,Special ISB,Other Public Bodies,Enable Trust,1491.13, 28-Sep-2020
1138,Revenue,CAHD,Special ISB,Other Public Bodies,Enable Trust,1491.13, 28-Sep-2020
1139,Revenue,CAHD,Special ISB,Other Public Bodies,Enable Trust,1137.94, 28-Sep-2020
1140,Revenue,CAHD,Special ISB,Other Public Bodies,Enable Trust,1491.13, 28-Sep-2020
1141,Revenue,CAHD,Special ISB,Other Public Bodies,Enable Trust,1137.94, 28-Sep-2020
1142,Revenue,CAHD,Special ISB,Other Public Bodies,Enable Trust,1491.13, 28-Sep-2020
1143,Revenue,CAHD,Special ISB,Other Public Bodies,Enable Trust,1137.94, 28-Sep-2020
1144,Revenue,CAHD,Special ISB,Other Public Bodies,Enable Trust,1137.94, 28-Sep-2020
1145,Revenue,CAHD,Special ISB,Other Public Bodies,Enable Trust,1137.94, 28-Sep-2020
1146,Revenue,CAHD,Special ISB,Other Public Bodies,Enable Trust,2118.90, 28-Sep-2020
1147,Revenue,CAHD,Special ISB,Other Public Bodies,Enable Trust,1491.13, 28-Sep-2020
1148,Revenue,CAHD,Special ISB,Other Public Bodies,Enable Trust,863.27, 28-Sep-2020
1149,Revenue,CAHD,Special ISB,Other Public Bodies,Enable Trust,863.27, 28-Sep-2020
1150,Revenue,CAHD,Special ISB,Other Public Bodies,Enable Trust,863.27, 28-Sep-2020
1151,Revenue,CAHD,Special ISB,Other Public Bodies,Enable Trust,1491.13, 28-Sep-2020
1152,Revenue,CAHD,Special ISB,Other Public Bodies,Enable Trust,1491.13, 28-Sep-2020
1153,Revenue,CAHD,Special ISB,Other Public Bodies,Enable Trust,1137.94, 28-Sep-2020
1154,Revenue,CAHD,Special ISB,Other Public Bodies,Enable Trust,1137.94, 28-Sep-2020
1155,Revenue,CAHD,Special ISB,Other Public Bodies,Enable Trust,1491.13, 28-Sep-2020
1156,Revenue,CAHD,Special ISB,Other Public Bodies,Enable Trust,1491.13, 28-Sep-2020
1157,Revenue,CAHD,Special ISB,Other Public Bodies,Enable Trust,1137.94, 28-Sep-2020
1158,Revenue,CAHD,Special ISB,Other Public Bodies,Enable Trust,1137.94, 28-Sep-2020
1159,Revenue,CAHD,Special ISB,Other Public Bodies,Enable Trust,1137.94, 28-Sep-2020
1160,Revenue,CAHD,Special ISB,Other Public Bodies,Enable Trust,1137.94, 28-Sep-2020
1161,Revenue,CAHD,Special ISB,Other Public Bodies,Enable Trust,1491.13, 28-Sep-2020
1162,Revenue,CAHD,Special ISB,Other Public Bodies,Enable Trust,2118.90, 28-Sep-2020
1163,Revenue,CAHD,Special ISB,Other Public Bodies,Enable Trust,2118.90, 28-Sep-2020
1164,Revenue,CAHD,Special ISB,Other Public Bodies,Enable Trust,2118.90, 28-Sep-2020
1165,Revenue,CAHD,Special ISB,Other Public Bodies,Enable Trust,1137.94, 28-Sep-2020
1166,Revenue,CAHD,Special ISB,Other Public Bodies,Enable Trust,627.77, 28-Sep-2020
1167,Revenue,CAHD,Special ISB,Other Public Bodies,Enable Trust,1137.94, 28-Sep-2020
1168,Revenue,CAHD,Special ISB,Other Public Bodies,Enable Trust,1137.94, 28-Sep-2020
1169,Revenue,CAHD,Special ISB,Other Public Bodies,Enable Trust,1137.94, 28-Sep-2020
1170,Revenue,CAHD,Special ISB,Other Public Bodies,Enable Trust,863.27, 28-Sep-2020
1171,Revenue,CAHD,Special ISB,Other Public Bodies,Enable Trust,1137.94, 28-Sep-2020
1172,Revenue,CAHD,Special ISB,Other Public Bodies,Enable Trust,863.27, 28-Sep-2020
1173,Revenue,CAHD,Special ISB,Other Public Bodies,Enable Trust,1491.13, 28-Sep-2020
1174,Revenue,CAHD,Special ISB,Other Public Bodies,Enable Trust,1540.83, 28-Sep-2020
1175,Revenue,CAHD,Special ISB,Other Public Bodies,Enable Trust,1540.83, 28-Sep-2020
1176,Revenue,CAHD,Special ISB,Other Public Bodies,Enable Trust,3397.28, 04-Sep-2020
1177,Revenue,CAHD,Special ISB,Other Public Bodies,Enable Trust,1137.94, 28-Sep-2020
1178,Revenue,CAHD,Special ISB,Other Public Bodies,Enable Trust,1648.03, 28-Sep-2020
1179,Revenue,CAHD,Special ISB,Other Public Bodies,Enable Trust,863.27, 28-Sep-2020
1180,Revenue,CAHD,Special ISB,Other Public Bodies,Enable Trust,1648.03, 28-Sep-2020
1181,Revenue,CAHD,Special ISB,Other Public Bodies,Enable Trust,1137.94, 28-Sep-2020
1182,Revenue,CAHD,Special ISB,Other Public Bodies,Enable Trust,2118.90, 28-Sep-2020
1183,Revenue,CAHD,Special ISB,Other Public Bodies,Enable Trust,2118.90, 28-Sep-2020
1184,Revenue,CAHD,Special ISB,Other Public Bodies,Enable Trust,1459.67, 28-Sep-2020
1185,Revenue,CAHD,Special ISB,Other Public Bodies,Enable Trust,863.27, 28-Sep-2020
1186,Revenue,CAHD,Special ISB,Other Public Bodies,Enable Trust,863.27, 28-Sep-2020
1187,Revenue,CAHD,Special ISB,Other Public Bodies,Enable Trust,2118.90, 28-Sep-2020
1188,Revenue,CAHD,Special ISB,Other Public Bodies,Enable Trust,2432.79, 28-Sep-2020
1189,Revenue,CAHD,Special ISB,Other Public Bodies,Enable Trust,863.27, 28-Sep-2020
1190,Revenue,CAHD,Special ISB,Other Public Bodies,Enable Trust,863.27, 28-Sep-2020
1191,Revenue,CAHD,Special ISB,Other Public Bodies,Enable Trust,1648.03, 28-Sep-2020
1192,Revenue,CAHD,Special ISB,Other Public Bodies,Enable Trust,1648.03, 28-Sep-2020
1193,Revenue,CAHD,Special ISB,Other Public Bodies,Enable Trust,1137.94, 28-Sep-2020
1194,Revenue,CAHD,Special ISB,Other Public Bodies,Enable Trust,1137.94, 28-Sep-2020
1195,Revenue,CAHD,Special ISB,Other Public Bodies,Enable Trust,1648.03, 28-Sep-2020
1196,Revenue,CAHD,Special ISB,Other Public Bodies,Enable Trust,1648.03, 28-Sep-2020
1197,Revenue,CAHD,Special ISB,Other Public Bodies,Enable Trust,1137.94, 28-Sep-2020
1198,Revenue,CAHD,Special ISB,Other Public Bodies,Enable Trust,1137.94, 28-Sep-2020
1199,Revenue,CAHD,Special ISB,Other Public Bodies,Enable Trust,863.27, 28-Sep-2020
1200,Revenue,CAHD,Special ISB,Other Public Bodies,Enable Trust,1648.03, 28-Sep-2020
1201,Revenue,CAHD,Special ISB,Other Public Bodies,Enable Trust,1137.94, 28-Sep-2020
1202,Revenue,CAHD,Special ISB,Other Public Bodies,Enable Trust,1137.94, 28-Sep-2020
1203,Revenue,CAHD,Special ISB,Other Public Bodies,Enable Trust,1137.94, 28-Sep-2020
1204,Revenue,CAHD,Special ISB,Other Public Bodies,Enable Trust,1648.03, 28-Sep-2020
1205,Revenue,CAHD,Special ISB,Other Public Bodies,Enable Trust,1137.94, 28-Sep-2020
1206,Revenue,CAHD,Special ISB,Other Public Bodies,Enable Trust,1648.03, 28-Sep-2020
1207,Revenue,CAHD,Special ISB,Other Public Bodies,Enable Trust,1137.94, 28-Sep-2020
1208,Revenue,CAHD,Special ISB,Other Public Bodies,Enable Trust,1137.94, 28-Sep-2020
1209,Revenue,CAHD,Special ISB,Other Public Bodies,Enable Trust,1137.94, 28-Sep-2020
1210,Revenue,CAHD,Special ISB,Other Public Bodies,Enable Trust,981.04, 28-Sep-2020
1211,Revenue,CAHD,Special ISB,Other Public Bodies,Enable Trust,1137.94, 28-Sep-2020
1212,Revenue,CAHD,Special ISB,Other Public Bodies,Enable Trust,863.27, 28-Sep-2020
1213,Revenue,CAHD,Special ISB,Other Public Bodies,Enable Trust,1137.94, 28-Sep-2020
1214,Revenue,CAHD,Special ISB,Other Public Bodies,Enable Trust,1137.94, 28-Sep-2020
1215,Revenue,CAHD,Special ISB,Other Public Bodies,Enable Trust,2118.90, 28-Sep-2020
1216,Revenue,CAHD,Special ISB,Other Public Bodies,Enable Trust,1648.03, 28-Sep-2020
1217,Revenue,CAHD,Special ISB,Other Public Bodies,Enable Trust,1648.03, 28-Sep-2020
1218,Revenue,CAHD,Special ISB,Other Public Bodies,Enable Trust,863.27, 28-Sep-2020
1219,Revenue,CAHD,Special ISB,Other Public Bodies,Enable Trust,627.77, 28-Sep-2020
1220,Revenue,CAHD,Special ISB,Other Public Bodies,Enable Trust,1137.94, 28-Sep-2020
1221,Revenue,CAHD,Special ISB,Other Public Bodies,Enable Trust,863.27, 28-Sep-2020
1222,Revenue,CAHD,Special ISB,Other Public Bodies,Enable Trust,1137.94, 28-Sep-2020
1223,Revenue,CAHD,Special ISB,Other Public Bodies,Enable Trust,1648.03, 28-Sep-2020
1224,Revenue,CAHD,Special ISB,Other Public Bodies,Enable Trust,1491.13, 28-Sep-2020
1225,Revenue,CAHD,Special ISB,Other Public Bodies,Enable Trust,863.27, 28-Sep-2020
1226,Revenue,CAHD,Special ISB,Other Public Bodies,Enable Trust,1648.03, 28-Sep-2020
1227,Revenue,CAHD,Special ISB,Other Public Bodies,Enable Trust,1137.94, 28-Sep-2020
1228,Revenue,CAHD,Special ISB,Other Public Bodies,Enable Trust,1137.94, 28-Sep-2020
1229,Revenue,CAHD,Special ISB,Other Public Bodies,Enable Trust,1137.94, 28-Sep-2020
1230,Revenue,CAHD,Special ISB,Other Public Bodies,Enable Trust,863.27, 28-Sep-2020
1231,Revenue,CAHD,Special ISB,Other Public Bodies,Enable Trust,863.27, 28-Sep-2020
1232,Revenue,CAHD,Special ISB,Other Public Bodies,Enable Trust,863.27, 28-Sep-2020
1233,Revenue,CAHD,Special ISB,Other Public Bodies,Enable Trust,1137.94, 28-Sep-2020
1234,Revenue,CAHD,Special ISB,Other Public Bodies,Enable Trust,863.27, 28-Sep-2020
1235,Revenue,CAHD,Special ISB,Other Public Bodies,Enable Trust,863.27, 28-Sep-2020
1236,Revenue,CAHD,Special ISB,Other Public Bodies,Enable Trust,863.27, 28-Sep-2020
1237,Revenue,CAHD,Special ISB,Other Public Bodies,Enable Trust,1137.94, 28-Sep-2020
1238,Revenue,CAHD,Special ISB,Other Public Bodies,Enable Trust,1137.94, 28-Sep-2020
1239,Revenue,CAHD,Special ISB,Other Public Bodies,Enable Trust,863.27, 28-Sep-2020
1240,Revenue,CAHD,Special ISB,Other Public Bodies,Enable Trust,863.27, 28-Sep-2020
1241,Revenue,CAHD,Special ISB,Other Public Bodies,Enable Trust,1137.94, 28-Sep-2020
1242,Revenue,CAHD,Special ISB,Other Public Bodies,Enable Trust,1137.94, 28-Sep-2020
1243,Revenue,CAHD,Special ISB,Other Public Bodies,Enable Trust,1137.94, 28-Sep-2020
1244,Revenue,CAHD,Special ISB,Other Public Bodies,Enable Trust,1648.03, 28-Sep-2020
1245,Revenue,CAHD,Special ISB,Other Public Bodies,Enable Trust,1137.94, 28-Sep-2020
1246,Revenue,CAHD,Special ISB,Other Public Bodies,Enable Trust,863.27, 28-Sep-2020
1247,Revenue,CAHD,Special ISB,Other Public Bodies,Enable Trust,863.27, 28-Sep-2020
1248,Revenue,CAHD,Special ISB,Other Public Bodies,Enable Trust,1648.03, 28-Sep-2020
1249,Revenue,CAHD,Special ISB,Other Public Bodies,Enable Trust,2118.90, 28-Sep-2020
1250,Revenue,CAHD,Special ISB,Other Public Bodies,Enable Trust,1137.94, 28-Sep-2020
1251,Revenue,CAHD,Special ISB,Other Public Bodies,Enable Trust,863.27, 28-Sep-2020
1252,Revenue,CAHD,Special ISB,Other Public Bodies,Enable Trust,2118.90, 28-Sep-2020
1253,Revenue,CAHD,Special ISB,Other Public Bodies,Enable Trust,1491.13, 28-Sep-2020
1254,Revenue,CAHD,Special ISB,Other Public Bodies,Enable Trust,627.77, 28-Sep-2020
1255,Revenue,CAHD,Special ISB,Other Public Bodies,Enable Trust,1137.94, 28-Sep-2020
1256,Revenue,CAHD,Special ISB,Other Public Bodies,Enable Trust,2118.90, 28-Sep-2020
1257,Revenue,CAHD,Special ISB,Other Public Bodies,Enable Trust,1137.94, 28-Sep-2020
1258,Revenue,CAHD,Special ISB,Other Public Bodies,Enable Trust,1648.03, 28-Sep-2020
1259,Revenue,CAHD,Special ISB,Other Public Bodies,Enable Trust,2118.90, 28-Sep-2020
1260,Revenue,CAHD,Special ISB,Other Public Bodies,Enable Trust,988.80, 28-Sep-2020
1261,Revenue,CAHD,Special ISB,Other Public Bodies,Enable Trust,1648.03, 28-Sep-2020
1262,Revenue,CAHD,Special ISB,Other Public Bodies,Enable Trust,1648.03, 28-Sep-2020
1263,Revenue,CAHD,Special ISB,Other Public Bodies,Enable Trust,1648.03, 28-Sep-2020
1264,Revenue,CAHD,Special ISB,Other Public Bodies,Enable Trust,2432.79, 28-Sep-2020
1265,Revenue,CAHD,Special ISB,Other Public Bodies,Enable Trust,2118.90, 28-Sep-2020
1266,Revenue,CAHD,Special ISB,Other Public Bodies,Enable Trust,1648.03, 28-Sep-2020
1267,Revenue,CAHD,Special ISB,Other Public Bodies,Enable Trust,1648.03, 28-Sep-2020
1268,Revenue,CAHD,Special ISB,Other Public Bodies,Enable Trust,1137.94, 28-Sep-2020
1269,Revenue,CAHD,Central - Commissioned Services,Other Small Contracts,Epiphany In Care,673.20, 22-Sep-2020
1270,Revenue,CAHD,Pathway 1 - Re-Ablement Home Care,Other Small Contracts,Epiphany In Care,950.40, 22-Sep-2020
1271,Revenue,CAHD,North - Community based support,Other Small Contracts,Epiphany In Care,4049.10, 04-Sep-2020
1272,Revenue,CAHD,Central - Commissioned Services,Other Small Contracts,Epiphany In Care,5076.00, 10-Sep-2020
1273,Revenue,CAHD,South - Commissioned Services,Other Small Contracts,Epiphany In Care,1326.60, 07-Sep-2020
1274,Revenue,CAHD,North - Community based support,Other Small Contracts,Epiphany In Care,4739.28, 24-Sep-2020
1275,Revenue,CAHD,North - Community based support,Other Small Contracts,Epiphany In Care,4118.40, 24-Sep-2020
1276,Revenue,CAHD,Central - Commissioned Services,Other Small Contracts,Epiphany In Care,1108.80, 09-Sep-2020
1277,Revenue,CAHD,Central - Commissioned Services,Other Small Contracts,Epiphany In Care,5076.00, 10-Sep-2020
1278,Revenue,CAHD,South - Commissioned Services,Other Small Contracts,Epiphany In Care,1722.60, 07-Sep-2020
1279,Revenue,CAHD,South - Commissioned Services,Permanent Nursing,Epworth House,2145.28, 22-Sep-2020
1280,Revenue,CAHD,South - Commissioned Services,Fees & Charges Income - General,Epworth House,1475.29, 22-Sep-2020
1281,Revenue,CAHD,North - S117,Permanent Residential,Evolve House,3276.80, 22-Sep-2020
1282,Revenue,CAHD,Placements OLA Special Schools and RB,Other L.A.s - General,Excalibur Academies Trust T/A,2166.56, 30-Sep-2020
1283,Revenue,CAHD,Social Lettings Agency,Prop.Serv. General Repairs,Express Property Services Limited,39.00, 18-Sep-2020
1284,Revenue,CAHD,Social Lettings Agency,Prop.Serv. General Repairs,Express Property Services Limited,60.00, 18-Sep-2020
1285,Revenue,CAHD,Social Lettings Agency,Prop.Serv. General Repairs,Express Property Services Limited,60.00, 18-Sep-2020
1286,Revenue,CAHD,Social Lettings Agency,Prop.Serv. General Repairs,Express Property Services Limited,60.00, 18-Sep-2020
1287,Revenue,CAHD,Homeless - Private Sector Leasing,Prop.Serv. General Repairs,Express Property Services Limited,60.00, 18-Sep-2020
1288,Revenue,CAHD,Homeless - Private Sector Leasing,Prop.Serv. General Repairs,Express Property Services Limited,60.00, 18-Sep-2020
1289,Revenue,CAHD,Homeless - Private Sector Leasing,Prop.Serv. General Repairs,Express Property Services Limited,112.00, 18-Sep-2020
1290,Revenue,CAHD,Homeless - Private Sector Leasing,Prop.Serv. General Repairs,Express Property Services Limited,113.00, 18-Sep-2020
1291,Revenue,CAHD,Homeless - Private Sector Leasing,Prop.Serv. General Repairs,Express Property Services Limited,168.00, 18-Sep-2020
1292,Revenue,CAHD,Extra Care Housing,Private & Voluntary Home Care,Extra Care Charitable Trust,26966.00, 11-Sep-2020
1293,Revenue,CAHD,North - Community based support,Permanent Residential,Eyre Court,3719.16, 22-Sep-2020
1294,Revenue,CAHD,Covid 19 -Adult Social Care,Permanent Residential,Eyre Court,1759.82, 04-Sep-2020
1295,Revenue,CAHD,Covid 19 -Adult Social Care,Permanent Residential,Fairview Court,1348.47, 04-Sep-2020
1296,Revenue,CAHD,South - Commissioned Services,Permanent Nursing,Fairview Court,3886.76, 22-Sep-2020
1297,Revenue,CAHD,South Glos Users in South Glos Homes,Permanent Nursing,Fairview Court,735.68, 22-Sep-2020
1298,Revenue,CAHD,South Glos Users in South Glos Homes,Permanent Nursing,Fairview Court,735.68, 22-Sep-2020
1299,Revenue,CAHD,South Glos Users in South Glos Homes,Permanent Nursing,Fairview Court,735.68, 22-Sep-2020
1300,Revenue,CAHD,South - Commissioned Services,Permanent Nursing,Fairview Court,19654.36, 22-Sep-2020
1301,Revenue,CAHD,South - Commissioned Services,Permanent Nursing,Fairview Court,4137.76, 22-Sep-2020
1302,Revenue,CAHD,South Glos Users in South Glos Homes,Permanent Nursing,Fairview Court,735.68, 22-Sep-2020
1303,Revenue,CAHD,South Glos Users in South Glos Homes,Permanent Nursing,Fairview Court,735.68, 22-Sep-2020
1304,Revenue,CAHD,South - Commissioned Services,Permanent Nursing,Fairview Court,3618.72, 22-Sep-2020
1305,Revenue,CAHD,South Glos Users in South Glos Homes,Permanent Nursing,Fairview Court,735.68, 22-Sep-2020
1306,Revenue,CAHD,South Glos Users in South Glos Homes,Permanent Nursing,Fairview Court,735.68, 22-Sep-2020
1307,Revenue,CAHD,South - S117,Permanent Nursing,Fairview Court,4257.32, 22-Sep-2020
1308,Revenue,CAHD,South Glos Users in South Glos Homes,Permanent Nursing,Fairview Court,735.68, 22-Sep-2020
1309,Revenue,CAHD,South Glos Users in South Glos Homes,Permanent Nursing,Fairview Court,735.68, 22-Sep-2020
1310,Revenue,CAHD,South - bed purchasing and direct  payments,Permanent Nursing,Fairview Court,4078.24, 22-Sep-2020
1311,Revenue,CAHD,South Glos Users in South Glos Homes,Permanent Nursing,Fairview Court,735.68, 22-Sep-2020
1312,Revenue,CAHD,South Glos Users in South Glos Homes,Permanent Nursing,Fairview Court,735.68, 22-Sep-2020
1313,Revenue,CAHD,South Glos Users in South Glos Homes,Permanent Nursing,Fairview Court,735.68, 22-Sep-2020
1314,Revenue,CAHD,South Glos Users in South Glos Homes,Permanent Nursing,Fairview Court,735.68, 22-Sep-2020
1315,Revenue,CAHD,South - Commissioned Services,Permanent Nursing,Fairview Court,739.29, 22-Sep-2020
1316,Revenue,CAHD,South - Commissioned Services,Permanent Nursing,Fairview Court,3886.76, 22-Sep-2020
1317,Revenue,CAHD,South Glos Users in South Glos Homes,Permanent Nursing,Fairview Court,735.68, 22-Sep-2020
1318,Revenue,CAHD,South Glos Users in South Glos Homes,Permanent Nursing,Fairview Court,735.68, 22-Sep-2020
1319,Revenue,CAHD,South - Commissioned Services,Permanent Nursing,Fairview Court,4800.00, 22-Sep-2020
1320,Revenue,CAHD,South Glos Users in South Glos Homes,Permanent Nursing,Fairview Court,735.68, 22-Sep-2020
1321,Revenue,CAHD,South Glos Users in South Glos Homes,Permanent Nursing,Fairview Court,735.68, 22-Sep-2020
1322,Revenue,CAHD,South Glos Users in South Glos Homes,Permanent Nursing,Fairview Court,735.68, 22-Sep-2020
1323,Revenue,CAHD,South Glos Users in South Glos Homes,Permanent Nursing,Fairview Court,735.68, 22-Sep-2020
1324,Revenue,CAHD,South - Commissioned Services,Permanent Residential,Fairview Court,4048.64, 22-Sep-2020
1325,Revenue,CAHD,South Glos Users in South Glos Homes,Permanent Nursing,Fairview Court,735.68, 22-Sep-2020
1326,Revenue,CAHD,South Glos Users in South Glos Homes,Permanent Nursing,Fairview Court,735.68, 22-Sep-2020
1327,Revenue,CAHD,South - Commissioned Services,Permanent Nursing,Fairview Court,4800.00, 22-Sep-2020
1328,Revenue,CAHD,South Glos Users in South Glos Homes,Permanent Nursing,Fairview Court,735.68, 22-Sep-2020
1329,Revenue,CAHD,South Glos Users in South Glos Homes,Permanent Nursing,Fairview Court,735.68, 22-Sep-2020
1330,Revenue,CAHD,North - Community based support,Permanent Residential,Fairview Court,3321.44, 22-Sep-2020
1331,Revenue,CAHD,South - bed purchasing and direct  payments,Permanent Nursing,Fairview Court,4137.76, 22-Sep-2020
1332,Revenue,CAHD,South Glos Users in South Glos Homes,Permanent Nursing,Fairview Court,735.68, 22-Sep-2020
1333,Revenue,CAHD,South Glos Users in South Glos Homes,Permanent Nursing,Fairview Court,735.68, 22-Sep-2020
1334,Revenue,CAHD,South Glos Users in South Glos Homes,Permanent Nursing,Fairview Court,735.68, 22-Sep-2020
1335,Revenue,CAHD,South - Commissioned Services,Permanent Nursing,Fairview Court,3553.36, 22-Sep-2020
1336,Revenue,CAHD,South Glos Users in South Glos Homes,Permanent Nursing,Fairview Court,735.68, 22-Sep-2020
1337,Revenue,CAHD,North - Community based support,Permanent Nursing,Fairview Court,3886.76, 22-Sep-2020
1338,Revenue,CAHD,South Glos Users in South Glos Homes,Permanent Nursing,Fairview Court,735.68, 22-Sep-2020
1339,Revenue,CAHD,South - Commissioned Services,Permanent Nursing,Fairview Court,3192.96, 22-Sep-2020
1340,Revenue,CAHD,South Glos Users in South Glos Homes,Permanent Nursing,Fairview Court,735.68, 22-Sep-2020
1341,Revenue,CAHD,South - Commissioned Services,Permanent Nursing,Fairview Court,3618.72, 22-Sep-2020
1342,Revenue,CAHD,South Glos Users in South Glos Homes,Permanent Nursing,Fairview Court,735.68, 22-Sep-2020
1343,Revenue,CAHD,South - Commissioned Services,Permanent Nursing,Fairview Court,4028.00, 22-Sep-2020
1344,Revenue,CAHD,South Glos Users in South Glos Homes,Permanent Nursing,Fairview Court,735.68, 22-Sep-2020
1345,Revenue,CAHD,South - Commissioned Services,Permanent Nursing,Fairview Court,4137.76, 22-Sep-2020
1346,Revenue,CAHD,South Glos Users in South Glos Homes,Permanent Nursing,Fairview Court,735.68, 22-Sep-2020
1347,Revenue,CAHD,South - Commissioned Services,Permanent Residential,Fairview House,2349.60, 22-Sep-2020
1348,Revenue,CAHD,South - Commissioned Services,Permanent Residential,Fairview House,3400.00, 22-Sep-2020
1349,Revenue,CAHD,South - Commissioned Services,Permanent Residential,Fairview House,3400.00, 22-Sep-2020
1350,Revenue,CAHD,South Glos Users in South Glos Homes,Permanent Nursing,Fairview House,735.68, 22-Sep-2020
1351,Revenue,CAHD,South - Commissioned Services,Permanent Residential,Fairview House,3468.00, 22-Sep-2020
1352,Revenue,CAHD,South - Commissioned Services,Permanent Residential,Fairview House,3800.00, 22-Sep-2020
1353,Revenue,CAHD,Covid 19 -Adult Social Care,Permanent Residential,Faith House,1412.34, 04-Sep-2020
1354,Revenue,CAHD,Central - Commissioned Services,Permanent Residential,Faith House,4334.92, 22-Sep-2020
1355,Revenue,CAHD,Central - Commissioned Services,Permanent Residential,Faith House,1696.06, 22-Sep-2020
1356,Revenue,CAHD,Central - Commissioned Services,Permanent Residential,Faith House,928.91, 22-Sep-2020
1357,Revenue,CAHD,Central - Commissioned Services,Fees & Charges Income - General,Faith House,531.32, 22-Sep-2020
1358,Revenue,CAHD,North - Community based support,Permanent Residential,Faith House,2861.88, 22-Sep-2020
1359,Revenue,CAHD,North - Community based support,Permanent Residential,Faith House,3039.60, 22-Sep-2020
1360,Revenue,CAHD,South - Commissioned Services,Permanent Residential,Faith House,2958.00, 22-Sep-2020
1361,Revenue,CAHD,Central - Commissioned Services,Permanent Nursing,Festival House,983.12, 22-Sep-2020
1362,Revenue,CAHD,Central - Commissioned Services,Fees & Charges Income - General,Festival House,653.51, 22-Sep-2020
1363,Revenue,CAHD,Central - Commissioned Services,Permanent Residential,Fieldview,4950.00, 22-Sep-2020
1364,Revenue,CAHD,Central - Commissioned Services,Permanent Residential,Fieldview,3481.60, 22-Sep-2020
1365,Revenue,CAHD,North - Community based support,Respite Emergency - Residential,Fieldview,6895.14, 22-Sep-2020
1366,Revenue,CAHD,North - Community based support,Respite Emergency - Residential,Fieldview,3182.37, 22-Sep-2020
1367,Revenue,CAHD,North - Community based support,Permanent Residential,Fieldview,3200.00, 22-Sep-2020
1368,Revenue,CAHD,South - Commissioned Services,Permanent Residential,Fieldview,3600.00, 22-Sep-2020
1369,Revenue,CAHD,North - Community based support,Permanent Nursing,First Floor  Lingfield House,2401.84, 22-Sep-2020
1370,Revenue,CAHD,North - Community based support,Permanent Residential,First Floor  Lingfield House,2174.20, 22-Sep-2020
1371,Revenue,CAHD,North - Community based support,Permanent Nursing,First Floor  Lingfield House,2657.80, 22-Sep-2020
1372,Revenue,CAHD,Early Years Inclusion Fund,Other Public Bodies,First Friends (Mangotsfield),1800.00, 11-Sep-2020
1373,Revenue,CAHD,Early Years Inclusion Fund,Other Public Bodies,First Steps Day Nursery,900.00, 21-Sep-2020
1374,Revenue,CAHD,CSC - Agency Fostering,Foster Parent Allowances,Five Rivers Child Care Limited,3510.00, 02-Sep-2020
1375,Revenue,CAHD,CSC - Agency Fostering,Foster Parent Allowances,Five Rivers Child Care Limited,2152.03, 02-Sep-2020
1376,Revenue,CAHD,CSC - Agency Fostering,Foster Parent Allowances,Five Rivers Child Care Limited,3510.00, 02-Sep-2020
1377,Revenue,CAHD,CSC - Agency Fostering,Foster Parent Allowances,Five Rivers Child Care Limited,3552.86, 02-Sep-2020
1378,Revenue,CAHD,CSC - Agency Fostering,Foster Parent Allowances,Five Rivers Child Care Limited,3627.00, 04-Sep-2020
1379,Revenue,CAHD,CSC - Agency Fostering,Foster Parent Allowances,Five Rivers Child Care Limited,3447.82, 02-Sep-2020
1380,Revenue,CAHD,CSC - Agency Fostering,Foster Parent Allowances,Five Rivers Child Care Limited,3627.00, 04-Sep-2020
1381,Revenue,CAHD,CSC - Agency Fostering,Foster Parent Allowances,Five Rivers Child Care Limited,3627.00, 04-Sep-2020
1382,Revenue,CAHD,CSC - Agency Fostering,Foster Parent Allowances,Five Rivers Child Care Limited,2223.76, 04-Sep-2020
1383,Revenue,CAHD,CSC - Agency Fostering,Foster Parent Allowances,Five Rivers Child Care Limited,3627.00, 07-Sep-2020
1384,Revenue,CAHD,CSC - Agency Fostering,Foster Parent Allowances,Five Rivers Child Care Limited,3447.82, 04-Sep-2020
1385,Revenue,CAHD,CSC - Agency Fostering,Foster Parent Allowances,Five Rivers Child Care Limited,3671.29, 04-Sep-2020
1386,Revenue,CAHD,CSC - Agency Fostering,Foster Parent Allowances,Five Rivers Child Care Limited,3336.60, 30-Sep-2020
1387,Revenue,CAHD,CSC - Agency Fostering,Foster Parent Allowances,Five Rivers Child Care Limited,3336.60, 30-Sep-2020
1388,Revenue,CAHD,CSC - Agency Fostering,Foster Parent Allowances,Five Rivers Child Care Limited,3510.00, 30-Sep-2020
1389,Revenue,CAHD,CSC - Agency Fostering,Foster Parent Allowances,Five Rivers Child Care Limited,2152.03, 30-Sep-2020
1390,Revenue,CAHD,CSC - Agency Fostering,Foster Parent Allowances,Five Rivers Child Care Limited,3510.00, 30-Sep-2020
1391,Revenue,CAHD,CSC - Agency Fostering,Foster Parent Allowances,Five Rivers Child Care Limited,3552.86, 30-Sep-2020
1392,Revenue,CAHD,CSC - Agency Fostering,Foster Parent Allowances,Foster Care Associates Limited,4131.68, 08-Sep-2020
1393,Revenue,CAHD,CSC - Agency Fostering,Foster Parent Allowances,Foster Care Associates Limited,3769.91, 04-Sep-2020
1394,Revenue,CAHD,CSC - Agency Fostering,Foster Parent Allowances,Foster Care Associates Limited,3810.00, 15-Sep-2020
1395,Revenue,CAHD,CSC - Parent & Child Assessments,Foster Parent Allowances,Foster Care Associates Limited,6882.00, 04-Sep-2020
1396,Revenue,CAHD,CSC - Agency Fostering,Foster Parent Allowances,Foster Care Associates Limited,3769.91, 04-Sep-2020
1397,Revenue,CAHD,CSC - Agency Fostering,Foster Parent Allowances,Foster Care Associates Limited,3937.00, 15-Sep-2020
1398,Revenue,CAHD,CSC - Agency Fostering,Foster Parent Allowances,Fostering Matters Ltd,3520.67, 04-Sep-2020
1399,Revenue,CAHD,CSC - Agency Fostering,Foster Parent Allowances,Fostering Matters Ltd,3520.67, 04-Sep-2020
1400,Revenue,CAHD,CSC - Parent & Child Assessments,Foster Parent Allowances,Fostering Solutions Limited,5680.20, 30-Sep-2020
1401,Revenue,CAHD,Central - Commissioned Services,Other Small Contracts,Fourways Care Limited,288.00, 04-Sep-2020
1402,Revenue,CAHD,South - Commissioned Services,Other Small Contracts,Fourways Care Limited,409.74, 04-Sep-2020
1403,Revenue,CAHD,North - Community based support,Other Small Contracts,Fourways Care Limited,12287.04, 04-Sep-2020
1404,Revenue,CAHD,Central - Commissioned Services,Other Small Contracts,Fourways Care Limited,144.00, 09-Sep-2020
1405,Revenue,CAHD,South - Commissioned Services,Other Small Contracts,Fourways Care Limited,414.72, 09-Sep-2020
1406,Revenue,CAHD,North - Community based support,Other Small Contracts,Fourways Care Limited,12182.46, 09-Sep-2020
1407,Revenue,CAHD,Central - Commissioned Services,Other Small Contracts,Fourways Care Limited,174.00, 14-Sep-2020
1408,Revenue,CAHD,South - Commissioned Services,Other Small Contracts,Fourways Care Limited,424.68, 14-Sep-2020
1409,Revenue,CAHD,North - Community based support,Other Small Contracts,Fourways Care Limited,11874.72, 14-Sep-2020
1410,Revenue,CAHD,Central - Commissioned Services,Other Small Contracts,Fourways Care Limited,567.00, 24-Sep-2020
1411,Revenue,CAHD,South - Commissioned Services,Other Small Contracts,Fourways Care Limited,434.64, 24-Sep-2020
1412,Revenue,CAHD,North - Community based support,Other Small Contracts,Fourways Care Limited,11498.16, 24-Sep-2020
1413,Revenue,CAHD,Covid 19 -Adult Social Care,Other Small Contracts,Fourways Care Limited,39.84, 30-Sep-2020
1414,Revenue,CAHD,Central - Commissioned Services,Other Small Contracts,Fourways Care Limited,562.02, 30-Sep-2020
1415,Revenue,CAHD,South - Commissioned Services,Other Small Contracts,Fourways Care Limited,399.78, 30-Sep-2020
1416,Revenue,CAHD,North - Community based support,Other Small Contracts,Fourways Care Limited,11394.60, 30-Sep-2020
1417,Revenue,CAHD,Supporting People Programme,Grants to Voluntary Bodies,Freeways Trust Limited,1067.00, 01-Sep-2020
1418,Revenue,CAHD,North - Community based support,Other Small Contracts,Freeways Trust Limited,864.16, 16-Sep-2020
1419,Revenue,CAHD,North - Community based support,Other Small Contracts,Freeways Trust Limited,864.16, 16-Sep-2020
1420,Revenue,CAHD,Covid 19 -Adult Social Care,Permanent Residential,Freeways Trust Limited,1293.14, 04-Sep-2020
1421,Revenue,CAHD,Central - Commissioned Services,Permanent Residential,Freeways Trust Limited,3968.00, 22-Sep-2020
1422,Revenue,CAHD,Central - Commissioned Services,Permanent Residential,Freeways Trust Limited,4006.56, 22-Sep-2020
1423,Revenue,CAHD,Central - Commissioned Services,Permanent Residential,Freeways Trust Limited,4462.28, 22-Sep-2020
1424,Revenue,CAHD,Central - Commissioned Services,Permanent Residential,Freeways Trust Limited,5152.32, 22-Sep-2020
1425,Revenue,CAHD,North - Community based support,Permanent Residential,Freeways Trust Limited,4009.36, 22-Sep-2020
1426,Revenue,CAHD,Central - Commissioned Services,Permanent Residential,Freeways Trust Limited,4006.56, 22-Sep-2020
1427,Revenue,CAHD,South - Commissioned Services,Permanent Residential,Freeways Trust Limited,4431.96, 22-Sep-2020
1428,Revenue,CAHD,Central - Commissioned Services,Permanent Residential,Freeways Trust Limited,4006.56, 22-Sep-2020
1429,Revenue,CAHD,Central - Commissioned Services,Permanent Residential,Freeways Trust Limited,4006.56, 22-Sep-2020
1430,Revenue,CAHD,North - Community based support,Permanent Residential,Freeways Trust Limited,4009.36, 22-Sep-2020
1431,Revenue,CAHD,Central - Commissioned Services,Permanent Residential,Freeways Trust Limited,5991.92, 22-Sep-2020
1432,Revenue,CAHD,North - Community based support,Supported Living,Freeways Trust Ltd,862.44, 22-Sep-2020
1433,Revenue,CAHD,S28A cases,Permanent Residential,Freeways Trust Ltd,21747.42, 22-Sep-2020
1434,Revenue,CAHD,S28A cases,Permanent Residential,Freeways Trust Ltd,3979.92, 22-Sep-2020
1435,Revenue,CAHD,S28A cases,Fees & Charges Income - General,Freeways Trust Ltd,3274.70, 22-Sep-2020
1436,Revenue,CAHD,North - Community based support,Permanent Residential,Freeways Trust Ltd,21057.83, 22-Sep-2020
1437,Revenue,CAHD,North - Community based support,Permanent Residential,Freeways Trust Ltd,3853.72, 22-Sep-2020
1438,Revenue,CAHD,North - Community based support,Fees & Charges Income - General,Freeways Trust Ltd,2326.50, 22-Sep-2020
1439,Revenue,CAHD,North - Community based support,Permanent Residential,Freeways Trust Ltd,18470.82, 22-Sep-2020
1440,Revenue,CAHD,North - Community based support,Permanent Residential,Freeways Trust Ltd,3380.28, 22-Sep-2020
1441,Revenue,CAHD,North - Community based support,Fees & Charges Income - General,Freeways Trust Ltd,3274.70, 22-Sep-2020
1442,Revenue,CAHD,North - Community based support,Permanent Residential,Freeways Trust Ltd,19344.23, 22-Sep-2020
1443,Revenue,CAHD,North - Community based support,Permanent Residential,Freeways Trust Ltd,3792.12, 22-Sep-2020
1444,Revenue,CAHD,North - Community based support,Permanent Residential,Freeways Trust Ltd,17470.84, 22-Sep-2020
1445,Revenue,CAHD,North - Community based support,Fees & Charges Income - General,Freeways Trust Ltd,2326.50, 22-Sep-2020
1446,Revenue,CAHD,North - Community based support,Permanent Residential,Freeways Trust Ltd,20728.40, 22-Sep-2020
1447,Revenue,CAHD,North - Community based support,Permanent Residential,Freeways Trust Ltd,3768.80, 22-Sep-2020
1448,Revenue,CAHD,Section 117 Placements MH Younger,Permanent Residential,Freeways Trust Ltd,18805.38, 22-Sep-2020
1449,Revenue,CAHD,Section 117 Placements MH Younger,Permanent Residential,Freeways Trust Ltd,3419.16, 22-Sep-2020
1450,Revenue,CAHD,North - Community based support,Permanent Residential,Freeways Trust Ltd,4102.21, 22-Sep-2020
1451,Revenue,CAHD,North - Community based support,Permanent Residential,Freeways Trust Ltd,3405.71, 22-Sep-2020
1452,Revenue,CAHD,North - Community based support,Fees & Charges Income - General,Freeways Trust Ltd,831.54, 22-Sep-2020
1453,Revenue,CAHD,Central - Commissioned Services,Day Care / Social Activities,Frenchay Beckspool Building,1933.52, 22-Sep-2020
1454,Revenue,CAHD,South - Commissioned Services,Day Care / Social Activities,Frenchay Beckspool Building,920.44, 22-Sep-2020
1455,Revenue,CAHD,South - Commissioned Services,Day Care / Social Activities,Frenchay Beckspool Building,652.88, 22-Sep-2020
1456,Revenue,CAHD,Pathway 3 - (Complex Beds),Permanent Nursing,Frenchay House,3409.60, 10-Sep-2020
1457,Revenue,CAHD,Pathway 3 - (Complex Beds),Permanent Nursing,Frenchay House,2191.89, 17-Sep-2020
1458,Revenue,CAHD,North - Community based support,Permanent Nursing,Frenchay Park Nursing Home,3400.00, 22-Sep-2020
1459,Revenue,CAHD,CSC - Social Work Team - CENTRAL,Agency Staff (Admin/Support Staff) Pay,Frontline Staffing Ltd,1403.70, 21-Sep-2020
1460,Revenue,CAHD,CSC - Through & Leaving Care Team,Agency Staff (Admin/Support Staff) Pay,Frontline Staffing Ltd,1871.60, 01-Sep-2020
1461,Revenue,CAHD,CSC - Social Work Team - CENTRAL,Agency Staff (Admin/Support Staff) Pay,Frontline Staffing Ltd,1410.90, 07-Sep-2020
1462,Revenue,CAHD,CSC - Social Work Team - CENTRAL,Agency Staff (Admin/Support Staff) Pay,Frontline Staffing Ltd,1444.24, 07-Sep-2020
1463,Revenue,CAHD,CSC - Social Work Team - CENTRAL,Agency Staff (Admin/Support Staff) Pay,Frontline Staffing Ltd,1485.58, 14-Sep-2020
1464,Revenue,CAHD,CSC - Social Work Team - CENTRAL,Agency Staff (Admin/Support Staff) Pay,Frontline Staffing Ltd,1052.78, 16-Sep-2020
1465,Revenue,CAHD,CSC - Social Work Team - CENTRAL,Agency Staff (Admin/Support Staff) Pay,Frontline Staffing Ltd,1403.70, 22-Sep-2020
1466,Revenue,CAHD,CSC - Social Work Team - CENTRAL,Agency Staff (Admin/Support Staff) Pay,Frontline Staffing Ltd,1762.82, 28-Sep-2020
1467,Revenue,CAHD,CSC - Social Work Team - CENTRAL,Agency Staff (Admin/Support Staff) Pay,Frontline Staffing Ltd,1428.90, 29-Sep-2020
1468,Revenue,CAHD,CSC - Agency Fostering,Foster Parent Allowances,Fusion Fostering Ltd,4209.05, 07-Sep-2020
1469,Revenue,CAHD,CSC - Agency Fostering,Foster Parent Allowances,Fusion Fostering Ltd,2564.57, 15-Sep-2020
1470,Revenue,CAHD,CSC - Asylum Seekers - Unaccompanied,Foster Parent Allowances,Fusion Fostering Ltd,3764.29, 09-Sep-2020
1471,Revenue,CAHD,CSC - Agency Fostering,Foster Parent Allowances,Fusion Fostering Ltd,4209.05, 07-Sep-2020
1472,Revenue,CAHD,CSC - Asylum Seekers - Unaccompanied,Foster Parent Allowances,Fusion Fostering Ltd,3405.57, 04-Sep-2020
1473,Revenue,CAHD,CSC - Agency Fostering,Foster Parent Allowances,Fusion Fostering Ltd,3497.14, 29-Sep-2020
1474,Revenue,CAHD,CSC - Asylum Seekers - Unaccompanied,Foster Parent Allowances,Fusion Fostering Ltd,3642.86, 23-Sep-2020
1475,Revenue,CAHD,CSC - Agency Fostering,Foster Parent Allowances,Fusion Fostering Ltd,4073.27, 22-Sep-2020
1476,Revenue,CAHD,CSC - Asylum Seekers - Unaccompanied,Foster Parent Allowances,Fusion Fostering Ltd,3295.71, 22-Sep-2020
1477,Revenue,CAHD,Foundation Skills for work - 20/21,Examination Fees,Gateway Qualifications,750.00, 15-Sep-2020
1478,Revenue,CAHD,North - Community based support,Supported Living,Gladstone House,3237.64, 22-Sep-2020
1479,Revenue,CAHD,18-25 Year Olds,Supported Living,Gladstone House,3237.64, 22-Sep-2020
1480,Revenue,CAHD,South - Commissioned Services,Permanent Residential,Gladstone House,5999.84, 22-Sep-2020
1481,Revenue,CAHD,MH Purchasing - Younger,Permanent Residential,Gladstone House,3135.90, 22-Sep-2020
1482,Revenue,CAHD,Jointly Funded H&SC Packages,Permanent Residential,Gladstone House,783.98, 22-Sep-2020
1483,Revenue,CAHD,North - Community based support,Permanent Residential,Glan Y Felin,6803.40, 22-Sep-2020
1484,Revenue,CAHD,South - Commissioned Services,Permanent Residential,Glasallt Fawr,5550.16, 22-Sep-2020
1485,Revenue,CAHD,Covid 19 -Adult Social Care,Permanent Residential,Glebe House Nursing Home,2702.24, 04-Sep-2020
1486,Revenue,CAHD,North - Community based support,Permanent Nursing,Glebe House Nursing Home,3737.44, 22-Sep-2020
1487,Revenue,CAHD,South Glos Users in South Glos Homes,Permanent Nursing,Glebe House Nursing Home,735.68, 22-Sep-2020
1488,Revenue,CAHD,North - Community based support,Permanent Nursing,Glebe House Nursing Home,4052.60, 22-Sep-2020
1489,Revenue,CAHD,South Glos Users in South Glos Homes,Permanent Nursing,Glebe House Nursing Home,735.68, 22-Sep-2020
1490,Revenue,CAHD,South Glos Users in South Glos Homes,Permanent Nursing,Glebe House Nursing Home,735.68, 22-Sep-2020
1491,Revenue,CAHD,South Glos Users in South Glos Homes,Permanent Nursing,Glebe House Nursing Home,735.68, 22-Sep-2020
1492,Revenue,CAHD,South Glos Users in South Glos Homes,Permanent Nursing,Glebe House Nursing Home,3625.85, 22-Sep-2020
1493,Revenue,CAHD,South Glos Users in South Glos Homes,Permanent Nursing,Glebe House Nursing Home,735.68, 22-Sep-2020
1494,Revenue,CAHD,North - Community based support,Permanent Nursing,Glebe House Nursing Home,3998.40, 22-Sep-2020
1495,Revenue,CAHD,South Glos Users in South Glos Homes,Permanent Nursing,Glebe House Nursing Home,735.68, 22-Sep-2020
1496,Revenue,CAHD,South Glos Users in South Glos Homes,Permanent Nursing,Glebe House Nursing Home,735.68, 22-Sep-2020
1497,Revenue,CAHD,North - Community based support,Permanent Residential,Glebe House Nursing Home,3910.52, 22-Sep-2020
1498,Revenue,CAHD,South Glos Users in South Glos Homes,Permanent Nursing,Glebe House Nursing Home,735.68, 22-Sep-2020
1499,Revenue,CAHD,South Glos Users in South Glos Homes,Permanent Nursing,Glebe House Nursing Home,735.68, 22-Sep-2020
1500,Revenue,CAHD,South Glos Users in South Glos Homes,Permanent Nursing,Glebe House Nursing Home,735.68, 22-Sep-2020
1501,Revenue,CAHD,North - Community based support,Permanent Nursing,Glebe House Nursing Home,4048.60, 22-Sep-2020
1502,Revenue,CAHD,South Glos Users in South Glos Homes,Permanent Nursing,Glebe House Nursing Home,735.68, 22-Sep-2020
1503,Revenue,CAHD,Central - Commissioned Services,Permanent Residential,Glebe House Nursing Home,3980.00, 22-Sep-2020
1504,Revenue,CAHD,South Glos Users in South Glos Homes,Permanent Nursing,Glebe House Nursing Home,735.68, 22-Sep-2020
1505,Revenue,CAHD,Central - Commissioned Services,Permanent Nursing,Glebe House Nursing Home,4120.00, 22-Sep-2020
1506,Revenue,CAHD,North - Community based support,Permanent Nursing,Glebe House Nursing Home,4080.00, 22-Sep-2020
1507,Revenue,CAHD,South Glos Users in South Glos Homes,Permanent Nursing,Glebe House Nursing Home,735.68, 22-Sep-2020
1508,Revenue,CAHD,South Glos Users in South Glos Homes,Permanent Nursing,Glebe House Nursing Home,735.68, 22-Sep-2020
1509,Revenue,CAHD,North - Community based support,Permanent Nursing,Glebe House Nursing Home,4039.36, 22-Sep-2020
1510,Revenue,CAHD,South Glos Users in South Glos Homes,Permanent Nursing,Glebe House Nursing Home,735.68, 22-Sep-2020
1511,Revenue,CAHD,North - Community based support,Permanent Nursing,Glebe House Nursing Home,26374.29, 22-Sep-2020
1512,Revenue,CAHD,North - Community based support,Permanent Nursing,Glebe House Nursing Home,4080.00, 22-Sep-2020
1513,Revenue,CAHD,South Glos Users in South Glos Homes,Permanent Nursing,Glebe House Nursing Home,735.68, 22-Sep-2020
1514,Revenue,CAHD,North - Community based support,Fees & Charges Income - General,Glebe House Nursing Home,4455.88, 22-Sep-2020
1515,Revenue,CAHD,North - Community based support,Fees & Charges Income - General,Glebe House Nursing Home,528.73, 22-Sep-2020
1516,Revenue,CAHD,North - Community based support,Fees & Charges Income - General,Glebe House Nursing Home,3253.44, 22-Sep-2020
1517,Revenue,CAHD,North - Community based support,Permanent Residential,Glebe House Nursing Home,5051.24, 22-Sep-2020
1518,Revenue,CAHD,South Glos Users in South Glos Homes,Permanent Nursing,Glebe House Nursing Home,735.68, 22-Sep-2020
1519,Revenue,CAHD,South Glos Users in South Glos Homes,Permanent Nursing,Glebe House Nursing Home,735.68, 22-Sep-2020
1520,Revenue,CAHD,South Glos Users in South Glos Homes,Permanent Nursing,Glebe House Nursing Home,735.68, 22-Sep-2020
1521,Revenue,CAHD,South Glos Users in South Glos Homes,Permanent Nursing,Glebe House Nursing Home,735.68, 22-Sep-2020
1522,Revenue,CAHD,South Glos Users in South Glos Homes,Permanent Nursing,Glebe House Nursing Home,919.60, 22-Sep-2020
1523,Revenue,CAHD,South Glos Users in South Glos Homes,Permanent Nursing,Glebe House Nursing Home,735.68, 22-Sep-2020
1524,Revenue,CAHD,North - Community based support,Permanent Nursing,Glebe House Nursing Home,3572.12, 22-Sep-2020
1525,Revenue,CAHD,South Glos Users in South Glos Homes,Permanent Nursing,Glebe House Nursing Home,735.68, 22-Sep-2020
1526,Revenue,CAHD,South Glos Users in South Glos Homes,Permanent Nursing,Glebe House Nursing Home,735.68, 22-Sep-2020
1527,Revenue,CAHD,Covid 19 -Adult Social Care,Permanent Residential,Glenview Care Home,1131.28, 04-Sep-2020
1528,Revenue,CAHD,Central - Commissioned Services,Permanent Nursing,Glenview Care Home,3224.00, 22-Sep-2020
1529,Revenue,CAHD,South - Commissioned Services,Permanent Nursing,Glenview Care Home,2185.00, 22-Sep-2020
1530,Revenue,CAHD,South - Commissioned Services,Permanent Nursing,Glenview Care Home,1035.00, 22-Sep-2020
1531,Revenue,CAHD,North - Community based support,Permanent Nursing,Glenview Care Home,3600.00, 22-Sep-2020
1532,Revenue,CAHD,North - Community based support,Respite Planned - Nursing,Glenview Care Home,7542.86, 22-Sep-2020
1533,Revenue,CAHD,North - Community based support,Permanent Nursing,Glenview Care Home,3224.00, 22-Sep-2020
1534,Revenue,CAHD,South - Commissioned Services,Respite Emergency - Residential,Glenview Care Home,3285.71, 22-Sep-2020
1535,Revenue,CAHD,South - Commissioned Services,Respite Emergency - Residential,Glenview Care Home,12240.00, 22-Sep-2020
1536,Revenue,CAHD,Central - Commissioned Services,Respite Planned - Nursing,Glenview Care Home,2418.00, 22-Sep-2020
1537,Revenue,CAHD,South - Commissioned Services,Permanent Residential,Gordena Care Home,4018.92, 22-Sep-2020
1538,Revenue,CAHD,South - Commissioned Services,Permanent Residential,Gordena Care Home,2790.84, 22-Sep-2020
1539,Revenue,CAHD,South - Commissioned Services,Permanent Residential,Gordena Care Home,3973.32, 22-Sep-2020
1540,Revenue,CAHD,South - Commissioned Services,Permanent Residential,Gordena Care Home,3985.44, 22-Sep-2020
1541,Revenue,CAHD,18-25 Year Olds,Supported Living,Granville House,1940.60, 22-Sep-2020
1542,Revenue,CAHD,South - Commissioned Services,Supported Living,Granville House,1941.20, 22-Sep-2020
1543,Revenue,CAHD,South - Commissioned Services,Supported Living,Granville House,1940.32, 22-Sep-2020
1544,Revenue,CAHD,CSC - Residential Placements,Permanent Residential,Greenfields Adolecent Development Limited,26527.14, 02-Sep-2020
1545,Revenue,CAHD,CSC - Care Leavers Independent Living,Adults - Family Support,Greenfields Adolecent Development Limited,7528.57, 02-Sep-2020
1546,Revenue,CAHD,CSC - Residential Placements,Permanent Residential,Greenfields Adolecent Development Limited,26527.14, 14-Sep-2020
1547,Revenue,CAHD,CSC - Care Leavers Independent Living,Adults - Family Support,Greenfields Adolecent Development Limited,7528.57, 14-Sep-2020
1548,Revenue,CAHD,Early Years Inclusion Fund,Other Public Bodies,Greenshaw Learning Trust T/A Woodlands Primary,3600.00, 11-Sep-2020
1549,Revenue,CAHD,Statemented Support Academies,Other Public Bodies,Greenshaw Learning Trust T/A Woodlands Primary,774.50, 30-Sep-2020
1550,Revenue,CAHD,Academy Resource Base Funding,Other Public Bodies,Greenshaw Learning Trust T/A Woodlands Primary,627.77, 28-Sep-2020
1551,Revenue,CAHD,Academy Resource Base Funding,Other Public Bodies,Greenshaw Learning Trust T/A Woodlands Primary,1137.94, 28-Sep-2020
1552,Revenue,CAHD,Statemented Support Academies,Other Public Bodies,Greenshaw Learning Trust T/A Yate Academy,554.13, 30-Sep-2020
1553,Revenue,CAHD,Statemented Support Academies,Other Public Bodies,Greenshaw Learning Trust T/A Yate Academy,4126.50, 30-Sep-2020
1554,Revenue,CAHD,Statemented Support Academies,Other Public Bodies,Greenshaw Learning Trust T/A Yate Academy,1072.89, 30-Sep-2020
1555,Revenue,CAHD,Statemented Support Academies,Other Public Bodies,Greenshaw Learning Trust T/A Yate Academy,707.40, 30-Sep-2020
1556,Revenue,CAHD,Statemented Support Academies,Other Public Bodies,Greenshaw Learning Trust T/A Yate Academy,1320.48, 30-Sep-2020
1557,Revenue,CAHD,Statemented Support Academies,Other Public Bodies,Greenshaw Learning Trust T/A Yate Academy,1320.48, 30-Sep-2020
1558,Revenue,CAHD,Statemented Support Academies,Other Public Bodies,Greenshaw Learning Trust T/A Yate Academy,1072.89, 30-Sep-2020
1559,Revenue,CAHD,Statemented Support Academies,Other Public Bodies,Greenshaw Learning Trust T/A Yate Academy,837.09, 30-Sep-2020
1560,Revenue,CAHD,Statemented Support Academies,Other Public Bodies,Greenshaw Learning Trust T/A Yate Academy,801.72, 30-Sep-2020
1561,Revenue,CAHD,Statemented Support Academies,Other Public Bodies,Greenshaw Learning Trust T/A Yate Academy,742.77, 30-Sep-2020
1562,Revenue,CAHD,Statemented Support Academies,Other Public Bodies,Greenshaw Learning Trust T/A Yate Academy,778.14, 30-Sep-2020
1563,Revenue,CAHD,Statemented Support Academies,Other Public Bodies,Greenshaw Learning Trust T/A Yate Academy,541.58, 30-Sep-2020
1564,Revenue,CAHD,Statemented Support Academies,Other Public Bodies,Greenshaw Learning Trust T/A Yate Academy,601.29, 30-Sep-2020
1565,Revenue,CAHD,Statemented Support Academies,Other Public Bodies,Greenshaw Learning Trust T/A Yate Academy,860.67, 30-Sep-2020
1566,Revenue,CAHD,Statemented Support Academies,Other Public Bodies,Greenshaw Learning Trust T/A Yate Academy,624.87, 30-Sep-2020
1567,Revenue,CAHD,Statemented Support Academies,Other Public Bodies,Greenshaw Learning Trust T/A Yate Academy,624.87, 30-Sep-2020
1568,Revenue,CAHD,Academy Resource Base Funding,Other Public Bodies,Greenshaw Learning Trust T/A Yate Academy,1491.13, 28-Sep-2020
1569,Revenue,CAHD,Academy Resource Base Funding,Other Public Bodies,Greenshaw Learning Trust T/A Yate Academy,981.04, 28-Sep-2020
1570,Revenue,CAHD,Academy Resource Base Funding,Other Public Bodies,Greenshaw Learning Trust T/A Yate Academy,1491.13, 28-Sep-2020
1571,Revenue,CAHD,Post 16 High Needs Placements,Other Private Contractors,GroundEd,10800.00, 30-Sep-2020
1572,Revenue,CAHD,South - Commissioned Services,Permanent Residential,Gwendoline House,2522.88, 22-Sep-2020
1573,Revenue,CAHD,South - Commissioned Services,Permanent Residential,Gwendoline House,2652.00, 22-Sep-2020
1574,Revenue,CAHD,North - Community based support,Other Small Contracts,H F T,517.20, 01-Sep-2020
1575,Revenue,CAHD,Supporting People Programme,Grants to Voluntary Bodies,Habinteg Housing Association,694.00, 01-Sep-2020
1576,Revenue,CAHD,Social Lettings Agency,Rent,Individual,577.72, 25-Sep-2020
1577,Revenue,CAHD,Social Lettings Agency,Fees - General,Individual,13.13, 25-Sep-2020
1578,Revenue,CAHD,CSC - Through & Leaving Care Team,Agency Staff (Admin/Support Staff) Pay,Hampton`s Resourcing,3337.40, 14-Sep-2020
1579,Revenue,CAHD,CSC - Through & Leaving Care Team,Agency Staff (Admin/Support Staff) Pay,Hampton`s Resourcing,3810.95, 14-Sep-2020
1580,Revenue,CAHD,CSC - Through & Leaving Care Team,Agency Staff (Admin/Support Staff) Pay,Hampton`s Resourcing,1710.00, 04-Sep-2020
1581,Revenue,CAHD,CSC - Through & Leaving Care Team,Agency Staff (Admin/Support Staff) Pay,Hampton`s Resourcing,1668.70, 07-Sep-2020
1582,Revenue,CAHD,CSC - Through & Leaving Care Team,Agency Staff (Admin/Support Staff) Pay,Hampton`s Resourcing,6156.15, 07-Sep-2020
1583,Revenue,CAHD,Early Years Inclusion Fund,Other Public Bodies,Hanham Toddlers Pre School,1400.00, 07-Sep-2020
1584,Revenue,CAHD,Early Years Inclusion Fund,Other Public Bodies,Hanham Toddlers Pre School,2000.00, 07-Sep-2020
1585,Revenue,CAHD,Early Years Inclusion Fund,Other Public Bodies,Hanham Toddlers Pre School,2000.00, 07-Sep-2020
1586,Revenue,CAHD,Home Care Monitoring (CM2000),Other Supplies & Services,HAS Technology Limited T/A CM2000,9693.70, 14-Sep-2020
1587,Revenue,CAHD,North - Community based support,Permanent Nursing,Head Office,696.41, 22-Sep-2020
1588,Revenue,CAHD,North - Community based support,Permanent Nursing,Head Office,4391.43, 22-Sep-2020
1589,Revenue,CAHD,CSC - Residential Placements,Permanent Residential,Headway Adolescent Resources Limited,8257.00, 22-Sep-2020
1590,Revenue,CAHD,Central - Commissioned Services,Day Care / Social Activities,Headway Bristol,152.28, 10-Sep-2020
1591,Revenue,CAHD,Central - Commissioned Services,Other Small Contracts,Headway Bristol,541.44, 10-Sep-2020
1592,Revenue,CAHD,South - Commissioned Services,Day Care / Social Activities,Headway Bristol,135.36, 10-Sep-2020
1593,Revenue,CAHD,South - Commissioned Services,Other Small Contracts,Headway Bristol,203.04, 10-Sep-2020
1594,Revenue,CAHD,North - Community based support,Day Care / Social Activities,Headway Bristol,5.64, 10-Sep-2020
1595,Revenue,CAHD,Younger MH non-res purchasing,Day Care / Social Activities,Headway Bristol,45.12, 10-Sep-2020
1596,Revenue,CAHD,Central - Commissioned Services,Permanent Nursing,Healthcare Home Spring Limited,2445.96, 22-Sep-2020
1597,Revenue,CAHD,South Glos Users in South Glos Homes,Permanent Nursing,Healthcare Home Spring Limited,735.68, 22-Sep-2020
1598,Revenue,CAHD,Central - Commissioned Services,Permanent Nursing,Healthcare Home Spring Limited,2445.96, 22-Sep-2020
1599,Revenue,CAHD,South Glos Users in South Glos Homes,Permanent Nursing,Healthcare Home Spring Limited,735.68, 22-Sep-2020
1600,Revenue,CAHD,South Glos Users in South Glos Homes,Permanent Nursing,Healthcare Home Spring Limited,735.68, 22-Sep-2020
1601,Revenue,CAHD,Central - Commissioned Services,Permanent Residential,Healthcare Home Spring Limited,2274.92, 22-Sep-2020
1602,Revenue,CAHD,South Glos Users in South Glos Homes,Permanent Nursing,Healthcare Home Spring Limited,735.68, 22-Sep-2020
1603,Revenue,CAHD,South Glos Users in South Glos Homes,Permanent Nursing,Healthcare Home Spring Limited,4177.61, 22-Sep-2020
1604,Revenue,CAHD,South Glos Users in South Glos Homes,Permanent Nursing,Healthcare Home Spring Limited,735.68, 22-Sep-2020
1605,Revenue,CAHD,Central - Commissioned Services,Permanent Nursing,Healthcare Home Spring Limited,2521.04, 22-Sep-2020
1606,Revenue,CAHD,South Glos Users in South Glos Homes,Permanent Nursing,Healthcare Home Spring Limited,735.68, 22-Sep-2020
1607,Revenue,CAHD,South Glos Users in South Glos Homes,Permanent Nursing,Healthcare Home Spring Limited,735.68, 22-Sep-2020
1608,Revenue,CAHD,North - Community based support,Permanent Nursing,Healthcare Home Spring Limited,2445.96, 22-Sep-2020
1609,Revenue,CAHD,South Glos Users in South Glos Homes,Permanent Nursing,Healthcare Home Spring Limited,735.68, 22-Sep-2020
1610,Revenue,CAHD,Central - Commissioned Services,Permanent Nursing,Healthcare Home Spring Limited,3060.24, 22-Sep-2020
1611,Revenue,CAHD,South Glos Users in South Glos Homes,Permanent Nursing,Healthcare Home Spring Limited,735.68, 22-Sep-2020
1612,Revenue,CAHD,Central - Commissioned Services,Permanent Residential,Healthcare Home Spring Limited,2823.36, 22-Sep-2020
1613,Revenue,CAHD,North - Community based support,Permanent Nursing,Healthcare Home Spring Limited,2445.96, 22-Sep-2020
1614,Revenue,CAHD,South Glos Users in South Glos Homes,Permanent Nursing,Healthcare Home Spring Limited,735.68, 22-Sep-2020
1615,Revenue,CAHD,South Glos Users in South Glos Homes,Permanent Nursing,Healthcare Home Spring Limited,735.68, 22-Sep-2020
1616,Revenue,CAHD,Central - Commissioned Services,Permanent Nursing,Healthcare Home Spring Limited,2521.04, 22-Sep-2020
1617,Revenue,CAHD,South Glos Users in South Glos Homes,Permanent Nursing,Healthcare Home Spring Limited,735.68, 22-Sep-2020
1618,Revenue,CAHD,North - Community based support,Permanent Residential,Healthcare Home Spring Limited,2487.96, 22-Sep-2020
1619,Revenue,CAHD,South Glos Users in South Glos Homes,Permanent Nursing,Healthcare Home Spring Limited,735.68, 22-Sep-2020
1620,Revenue,CAHD,South Glos Users in South Glos Homes,Permanent Nursing,Healthcare Home Spring Limited,735.68, 22-Sep-2020
1621,Revenue,CAHD,South - Commissioned Services,Respite Emergency - Residential,Healthcare Home Spring Limited,2076.00, 22-Sep-2020
1622,Revenue,CAHD,South - Commissioned Services,Respite Emergency - Residential,Healthcare Home Spring Limited,692.00, 22-Sep-2020
1623,Revenue,CAHD,South Glos Users in South Glos Homes,Permanent Nursing,Healthcare Home Spring Limited,735.68, 22-Sep-2020
1624,Revenue,CAHD,Central - Bed Purchasing and Direct Payments,Permanent Nursing,Healthcare Home Spring Limited,2445.96, 22-Sep-2020
1625,Revenue,CAHD,Central - Commissioned Services,Permanent Residential,Healthcare Home Spring Limited,2823.36, 22-Sep-2020
1626,Revenue,CAHD,South Glos Users in South Glos Homes,Permanent Nursing,Healthcare Home Spring Limited,2732.53, 22-Sep-2020
1627,Revenue,CAHD,South Glos Users in South Glos Homes,Permanent Nursing,Healthcare Home Spring Limited,735.68, 22-Sep-2020
1628,Revenue,CAHD,Central - Commissioned Services,Permanent Nursing,Healthcare Home Spring Limited,2445.96, 22-Sep-2020
1629,Revenue,CAHD,South Glos Users in South Glos Homes,Permanent Nursing,Healthcare Home Spring Limited,735.68, 22-Sep-2020
1630,Revenue,CAHD,South Glos Users in South Glos Homes,Permanent Nursing,Healthcare Home Spring Limited,735.68, 22-Sep-2020
1631,Revenue,CAHD,South Glos Users in South Glos Homes,Permanent Nursing,Healthcare Home Spring Limited,735.68, 22-Sep-2020
1632,Revenue,CAHD,South Glos Users in South Glos Homes,Permanent Nursing,Healthcare Home Spring Limited,735.68, 22-Sep-2020
1633,Revenue,CAHD,South Glos Users in South Glos Homes,Permanent Nursing,Healthcare Home Spring Limited,735.68, 22-Sep-2020
1634,Revenue,CAHD,South Glos Users in South Glos Homes,Permanent Nursing,Healthcare Home Spring Limited,735.68, 22-Sep-2020
1635,Revenue,CAHD,South Glos Users in South Glos Homes,Permanent Nursing,Healthcare Home Spring Limited,735.68, 22-Sep-2020
1636,Revenue,CAHD,South Glos Users in South Glos Homes,Permanent Nursing,Healthcare Home Spring Limited,4177.61, 22-Sep-2020
1637,Revenue,CAHD,South Glos Users in South Glos Homes,Permanent Nursing,Healthcare Home Spring Limited,735.68, 22-Sep-2020
1638,Revenue,CAHD,South Glos Users in South Glos Homes,Permanent Nursing,Healthcare Home Spring Limited,1416.72, 22-Sep-2020
1639,Revenue,CAHD,South Glos Users in South Glos Homes,Permanent Nursing,Healthcare Home Spring Limited,735.68, 22-Sep-2020
1640,Revenue,CAHD,Central - Commissioned Services,Permanent Nursing,Healthcare Home Spring Limited,2445.96, 22-Sep-2020
1641,Revenue,CAHD,South Glos Users in South Glos Homes,Permanent Nursing,Healthcare Home Spring Limited,735.68, 22-Sep-2020
1642,Revenue,CAHD,Central - Commissioned Services,Permanent Nursing,Healthcare Home Spring Limited,2357.44, 22-Sep-2020
1643,Revenue,CAHD,South Glos Users in South Glos Homes,Permanent Nursing,Healthcare Home Spring Limited,735.68, 22-Sep-2020
1644,Revenue,CAHD,North - Community based support,Permanent Nursing,Healthcare Home Spring Limited,2485.88, 22-Sep-2020
1645,Revenue,CAHD,South Glos Users in South Glos Homes,Permanent Nursing,Healthcare Home Spring Limited,735.68, 22-Sep-2020
1646,Revenue,CAHD,Central - Commissioned Services,Permanent Nursing,Healthcare Home Spring Limited,2445.96, 22-Sep-2020
1647,Revenue,CAHD,South Glos Users in South Glos Homes,Permanent Nursing,Healthcare Home Spring Limited,735.68, 22-Sep-2020
1648,Revenue,CAHD,Central - Commissioned Services,Permanent Residential,Healthcare Home Spring Limited,2891.12, 22-Sep-2020
1649,Revenue,CAHD,North - Community based support,Permanent Nursing,Healthcare Home Spring Limited,2445.96, 22-Sep-2020
1650,Revenue,CAHD,South Glos Users in South Glos Homes,Permanent Nursing,Healthcare Home Spring Limited,735.68, 22-Sep-2020
1651,Revenue,CAHD,Central - Commissioned Services,Respite Planned - Nursing,Healthcare Home Spring Limited,2824.69, 22-Sep-2020
1652,Revenue,CAHD,Central - Commissioned Services,Respite Planned - Nursing,Healthcare Home Spring Limited,2118.51, 22-Sep-2020
1653,Revenue,CAHD,Central - Commissioned Services,Permanent Nursing,Healthcare Home Spring Limited,2445.96, 22-Sep-2020
1654,Revenue,CAHD,South Glos Users in South Glos Homes,Permanent Nursing,Healthcare Home Spring Limited,735.68, 22-Sep-2020
1655,Revenue,CAHD,North - Community based support,Permanent Nursing,Healthcare Home Spring Limited,2445.96, 22-Sep-2020
1656,Revenue,CAHD,South Glos Users in South Glos Homes,Permanent Nursing,Healthcare Home Spring Limited,735.68, 22-Sep-2020
1657,Revenue,CAHD,Central - Commissioned Services,Permanent Residential,Healthcare Home Spring Limited,2768.00, 22-Sep-2020
1658,Revenue,CAHD,North - Community based support,Permanent Nursing,Healthcare Home Spring Limited,2403.72, 22-Sep-2020
1659,Revenue,CAHD,South Glos Users in South Glos Homes,Permanent Nursing,Healthcare Home Spring Limited,735.68, 22-Sep-2020
1660,Revenue,CAHD,North - Community based support,Permanent Nursing,Healthcare Home Spring Limited,2520.88, 22-Sep-2020
1661,Revenue,CAHD,South Glos Users in South Glos Homes,Permanent Nursing,Healthcare Home Spring Limited,735.68, 22-Sep-2020
1662,Revenue,CAHD,Hospital Tuition,Other Private Contractors,Heath House School Priory,2013.00, 22-Sep-2020
1663,Revenue,CAHD,Central - Commissioned Services,Other Small Contracts,Helping Hands Homecare,661.02, 14-Sep-2020
1664,Revenue,CAHD,South - Commissioned Services,Other Small Contracts,Helping Hands Homecare,352.59, 14-Sep-2020
1665,Revenue,CAHD,North - Community based support,Other Small Contracts,Helping Hands Homecare,2413.80, 14-Sep-2020
1666,Revenue,CAHD,Central - Commissioned Services,Other Small Contracts,Helping Hands Homecare,643.56, 15-Sep-2020
1667,Revenue,CAHD,South - Commissioned Services,Other Small Contracts,Helping Hands Homecare,154.56, 15-Sep-2020
1668,Revenue,CAHD,North - Community based support,Other Small Contracts,Helping Hands Homecare,2293.89, 15-Sep-2020
1669,Revenue,CAHD,Central - Commissioned Services,Other Small Contracts,Helping Hands Homecare,661.02, 14-Sep-2020
1670,Revenue,CAHD,South - Commissioned Services,Other Small Contracts,Helping Hands Homecare,260.82, 14-Sep-2020
1671,Revenue,CAHD,North - Community based support,Other Small Contracts,Helping Hands Homecare,2403.63, 14-Sep-2020
1672,Revenue,CAHD,Central - Commissioned Services,Other Small Contracts,Helping Hands Homecare,660.03, 15-Sep-2020
1673,Revenue,CAHD,South - Commissioned Services,Other Small Contracts,Helping Hands Homecare,164.22, 15-Sep-2020
1674,Revenue,CAHD,North - Community based support,Other Small Contracts,Helping Hands Homecare,2403.63, 15-Sep-2020
1675,Revenue,CAHD,Central - Commissioned Services,Other Small Contracts,Helping Hands Homecare,666.84, 21-Sep-2020
1676,Revenue,CAHD,South - Commissioned Services,Other Small Contracts,Helping Hands Homecare,328.44, 21-Sep-2020
1677,Revenue,CAHD,North - Community based support,Other Small Contracts,Helping Hands Homecare,2409.45, 21-Sep-2020
1678,Revenue,CAHD,Central - Commissioned Services,Other Small Contracts,Helping Hands Homecare,666.84, 30-Sep-2020
1679,Revenue,CAHD,South - Commissioned Services,Other Small Contracts,Helping Hands Homecare,328.44, 30-Sep-2020
1680,Revenue,CAHD,North - Community based support,Other Small Contracts,Helping Hands Homecare,2393.40, 30-Sep-2020
1681,Revenue,CAHD,CSC - Special Guardianship Orders,Legal Fees,Henriques Griffiths Solicitors,715.00, 09-Sep-2020
1682,Revenue,CAHD,Central - Commissioned Services,Permanent Residential,High Border Lodge,2142.20, 22-Sep-2020
1683,Revenue,CAHD,North - Community based support,Permanent Residential,High Border Lodge,2088.68, 22-Sep-2020
1684,Revenue,CAHD,South - Commissioned Services,Supported Living,Hillcairnie House,4702.76, 22-Sep-2020
1685,Revenue,CAHD,South - Commissioned Services,Supported Living,Hillcairnie House,2629.48, 22-Sep-2020
1686,Revenue,CAHD,North - Community based support,Supported Living,Hillcairnie House,2629.48, 22-Sep-2020
1687,Revenue,CAHD,South - Commissioned Services,Supported Living,Hillcairnie House,4381.72, 22-Sep-2020
1688,Revenue,CAHD,South - Commissioned Services,Supported Living,Hillcairnie House,2629.48, 22-Sep-2020
1689,Revenue,CAHD,South - Commissioned Services,Permanent Residential,Hillcrest,5207.64, 22-Sep-2020
1690,Revenue,CAHD,S28A cases,Permanent Residential,Hillcrest,5064.68, 22-Sep-2020
1691,Revenue,CAHD,North - Community based support,Permanent Residential,Hillcrest,5278.56, 22-Sep-2020
1692,Revenue,CAHD,North - Community based support,Permanent Residential,Hilltop Residential Home,8810.20, 22-Sep-2020
1693,Revenue,CAHD,Jointly Funded H&SC Packages,Permanent Residential,Hilltop Residential Home,5594.24, 22-Sep-2020
1694,Revenue,CAHD,Covid 19 -Adult Social Care,Software Support & Maintenance,Hitachi Solutions Europe Ltd,8000.00, 24-Sep-2020
1695,Revenue,CAHD,Central - Commissioned Services,Permanent Residential,Hobbits Holt Craegmo,8872.48, 22-Sep-2020
1696,Revenue,CAHD,North - Community based support,Permanent Residential,Holly Tree Cottage,8531.24, 22-Sep-2020
1697,Revenue,CAHD,Jointly Funded H&SC Packages,Permanent Residential,Holly Tree Cottage,2577.68, 22-Sep-2020
1698,Revenue,CAHD,Central - Commissioned Services,Permanent Nursing,Holly Villa,11842.38, 22-Sep-2020
1699,Revenue,CAHD,Central - Commissioned Services,Permanent Nursing,Holly Villa,2153.16, 22-Sep-2020
1700,Revenue,CAHD,Central - Commissioned Services,Fees & Charges Income - General,Holly Villa,5942.08, 22-Sep-2020
1701,Revenue,CAHD,18-25 Year Olds,Other Small Contracts,Holmleigh Care Home Ltd,15009.60, 23-Sep-2020
1702,Revenue,CAHD,18-25 Year Olds,Other Small Contracts,Holmleigh Care Home Ltd,16228.80, 23-Sep-2020
1703,Revenue,CAHD,18-25 Year Olds,Other Small Contracts,Holmleigh Care Home Ltd,16228.80, 23-Sep-2020
1704,Revenue,CAHD,South - Commissioned Services,Supported Living,Holmleigh Care Home Ltd,12377.68, 16-Sep-2020
1705,Revenue,CAHD,South - Commissioned Services,Supported Living,Holmleigh Care Home Ltd,12442.08, 16-Sep-2020
1706,Revenue,CAHD,South - Commissioned Services,Supported Living,Holmleigh Care Home Ltd,12442.08, 16-Sep-2020
1707,Revenue,CAHD,South - Commissioned Services,Supported Living,Holmleigh Care Home Ltd,12442.08, 16-Sep-2020
1708,Revenue,CAHD,Central - Commissioned Services,Other Small Contracts,Holmleigh Care Home Ltd,14277.08, 23-Sep-2020
1709,Revenue,CAHD,Central - Commissioned Services,Other Small Contracts,Holmleigh Care Home Ltd,15435.84, 23-Sep-2020
1710,Revenue,CAHD,Central - Commissioned Services,Other Small Contracts,Holmleigh Care Home Ltd,15435.84, 23-Sep-2020
1711,Revenue,CAHD,18-25 Year Olds,Other Small Contracts,Holmleigh Care Home Ltd,16228.80, 23-Sep-2020
1712,Revenue,CAHD,Central - Commissioned Services,Other Small Contracts,Holmleigh Care Home Ltd,20873.44, 10-Sep-2020
1713,Revenue,CAHD,Central - Commissioned Services,Other Small Contracts,Holmleigh Care Home Ltd,3245.76, 22-Sep-2020
1714,Revenue,CAHD,Central - Commissioned Services,Other Small Contracts,Holmleigh Care Home Ltd,15435.84, 23-Sep-2020
1715,Revenue,CAHD,South - Commissioned Services,Supported Living,Holmleigh Care Home Ltd,12442.08, 16-Sep-2020
1716,Revenue,CAHD,Central - Commissioned Services,Other Small Contracts,Holmleigh Care Home Ltd,20873.44, 23-Sep-2020
1717,Revenue,CAHD,18-25 Year Olds,Other Small Contracts,Holmleigh Care Home Ltd,16228.80, 23-Sep-2020
1718,Revenue,CAHD,Central - Commissioned Services,Other Small Contracts,Holmleigh Care Home Ltd,2001.28, 09-Sep-2020
1719,Revenue,CAHD,Central - Commissioned Services,Other Small Contracts,Holmleigh Care Home Ltd,2163.84, 09-Sep-2020
1720,Revenue,CAHD,Central - Commissioned Services,Other Small Contracts,Holmleigh Care Home Ltd,2163.84, 09-Sep-2020
1721,Revenue,CAHD,Central - Commissioned Services,Other Small Contracts,Holmleigh Care Home Ltd,2163.84, 09-Sep-2020
1722,Revenue,CAHD,Central - Commissioned Services,Other Small Contracts,Holmleigh Care Home Ltd,2163.84, 09-Sep-2020
1723,Revenue,CAHD,Central - Commissioned Services,Other Small Contracts,Holmleigh Care Home Ltd,3245.76, 22-Sep-2020
1724,Revenue,CAHD,Central - Commissioned Services,Other Small Contracts,Holmleigh Care Home Ltd,15435.84, 23-Sep-2020
1725,Revenue,CAHD,Central - Commissioned Services,Other Small Contracts,Holmleigh Care Home Ltd,2163.84, 22-Sep-2020
1726,Revenue,CAHD,Central - Commissioned Services,Other Small Contracts,Holmleigh Care Home Ltd,20873.44, 23-Sep-2020
1727,Revenue,CAHD,South - Commissioned Services,Supported Living,Holmleigh Care Home Ltd,12442.08, 23-Sep-2020
1728,Revenue,CAHD,South - Commissioned Services,Supported Living,Holmleigh Care Homes Ltd,1367.84, 22-Sep-2020
1729,Revenue,CAHD,North - Community based support,Permanent Residential,Holmleigh Care Homes Ltd,2956.84, 22-Sep-2020
1730,Revenue,CAHD,18-25 Year Olds,Permanent Residential,Holmleigh Care Homes Ltd,10782.34, 22-Sep-2020
1731,Revenue,CAHD,Central - Commissioned Services,Supported Living,Home Farm Trust Ltd  5-6 Brook Office Pa,2205.20, 22-Sep-2020
1732,Revenue,CAHD,Central - Commissioned Services,Permanent Residential,Home From Home Care Ltd,9927.36, 22-Sep-2020
1733,Revenue,CAHD,Discretionary Housing Payment,Other Supplies & Services,Home Turf Lettings,783.02, 16-Sep-2020
1734,Revenue,CAHD,Central - Commissioned Services,Other Small Contracts,Homecare 4U,212.52, 09-Sep-2020
1735,Revenue,CAHD,South - Commissioned Services,Other Small Contracts,Homecare 4U,1613.22, 09-Sep-2020
1736,Revenue,CAHD,Younger MH non-res purchasing,Other Small Contracts,Homecare 4U,367.08, 09-Sep-2020
1737,Revenue,CAHD,18-25 Year Olds,Other Small Contracts,Homecare 4U,77.28, 09-Sep-2020
1738,Revenue,CAHD,Central - Commissioned Services,Other Small Contracts,Homecare 4U,212.52, 09-Sep-2020
1739,Revenue,CAHD,South - Commissioned Services,Other Small Contracts,Homecare 4U,1642.20, 09-Sep-2020
1740,Revenue,CAHD,Younger MH non-res purchasing,Other Small Contracts,Homecare 4U,367.08, 09-Sep-2020
1741,Revenue,CAHD,18-25 Year Olds,Other Small Contracts,Homecare 4U,86.94, 09-Sep-2020
1742,Revenue,CAHD,Central - Commissioned Services,Other Small Contracts,Homecare 4U,212.52, 09-Sep-2020
1743,Revenue,CAHD,South - Commissioned Services,Other Small Contracts,Homecare 4U,1420.02, 09-Sep-2020
1744,Revenue,CAHD,Younger MH non-res purchasing,Other Small Contracts,Homecare 4U,367.08, 09-Sep-2020
1745,Revenue,CAHD,18-25 Year Olds,Other Small Contracts,Homecare 4U,77.28, 24-Sep-2020
1746,Revenue,CAHD,Central - Commissioned Services,Other Small Contracts,Homecare 4U,212.52, 24-Sep-2020
1747,Revenue,CAHD,South - Commissioned Services,Other Small Contracts,Homecare 4U,1439.34, 24-Sep-2020
1748,Revenue,CAHD,Younger MH non-res purchasing,Other Small Contracts,Homecare 4U,367.08, 24-Sep-2020
1749,Revenue,CAHD,18-25 Year Olds,Other Small Contracts,Homecare 4U,169.05, 25-Sep-2020
1750,Revenue,CAHD,Central - Commissioned Services,Other Small Contracts,Homecare 4U,212.52, 25-Sep-2020
1751,Revenue,CAHD,South - Commissioned Services,Other Small Contracts,Homecare 4U,4238.43, 25-Sep-2020
1752,Revenue,CAHD,Younger MH non-res purchasing,Other Small Contracts,Homecare 4U,367.08, 25-Sep-2020
1753,Revenue,CAHD,18-25 Year Olds,Other Small Contracts,Homecare 4U,169.05, 30-Sep-2020
1754,Revenue,CAHD,Central - Commissioned Services,Other Small Contracts,Homecare 4U,212.52, 30-Sep-2020
1755,Revenue,CAHD,South - Commissioned Services,Other Small Contracts,Homecare 4U,4279.56, 30-Sep-2020
1756,Revenue,CAHD,Younger MH non-res purchasing,Other Small Contracts,Homecare 4U,367.08, 30-Sep-2020
1757,Revenue,CAHD,Bed and Breakfast,Bed & Breakfast,Homes 4 All Ltd,700.00, 04-Sep-2020
1758,Revenue,CAHD,Bed and Breakfast,Bed & Breakfast,Homes 4 All Ltd,700.00, 11-Sep-2020
1759,Revenue,CAHD,Bed and Breakfast,Bed & Breakfast,Homes 4 All Ltd,700.00, 23-Sep-2020
1760,Revenue,CAHD,North - Community based support,Permanent Nursing,Horfield Care Ltd,3522.56, 22-Sep-2020
1761,Revenue,CAHD,North - Community based support,Permanent Nursing,Horfield Care Ltd,3403.60, 22-Sep-2020
1762,Revenue,CAHD,North - Community based support,Permanent Nursing,Horfield Care Ltd,3589.48, 22-Sep-2020
1763,Revenue,CAHD,Central - Commissioned Services,Permanent Nursing,Horfield Care Ltd,3740.00, 22-Sep-2020
1764,Revenue,CAHD,North - Community based support,Permanent Nursing,Horfield Care Ltd,12413.33, 22-Sep-2020
1765,Revenue,CAHD,North - Community based support,Permanent Nursing,Horfield Care Ltd,2271.72, 22-Sep-2020
1766,Revenue,CAHD,North - Community based support,Fees & Charges Income - General,Horfield Care Ltd,6648.84, 22-Sep-2020
1767,Revenue,CAHD,Central - Commissioned Services,Permanent Nursing,Horfield Care Ltd,3740.00, 22-Sep-2020
1768,Revenue,CAHD,North - Community based support,Permanent Nursing,Horfield Care Ltd,12413.33, 22-Sep-2020
1769,Revenue,CAHD,North - Community based support,Permanent Nursing,Horfield Care Ltd,2271.72, 22-Sep-2020
1770,Revenue,CAHD,North - Community based support,Fees & Charges Income - General,Horfield Care Ltd,2326.50, 22-Sep-2020
1771,Revenue,CAHD,North - Community based support,Permanent Nursing,Horfield Care Ltd,3506.00, 22-Sep-2020
1772,Revenue,CAHD,Supporting People Programme,Grants to Voluntary Bodies,Housing 21,658.00, 01-Sep-2020
1773,Revenue,CAHD,Supporting People Programme,Grants to Voluntary Bodies,Housing 21,999.00, 01-Sep-2020
1774,Revenue,CAHD,Extra Care Housing,Private & Voluntary Home Care,Housing 21,42371.08, 15-Sep-2020
1775,Revenue,CAHD,Extra Care Housing,Private & Voluntary Home Care,Housing 21,39365.75, 04-Sep-2020
1776,Revenue,CAHD,Social Lettings Agency,Rent,HRTC Properties,623.26, 04-Sep-2020
1777,Revenue,CAHD,Social Lettings Agency,Fees - General,HRTC Properties,11.64, 04-Sep-2020
1778,Revenue,CAHD,Central - Commissioned Services,Other Small Contracts,HSBC Invoice Finance (UK) Limited,16290.92, 04-Sep-2020
1779,Revenue,CAHD,South - Commissioned Services,Day Care / Social Activities,HSBC Invoice Finance (UK) Limited,290.64, 04-Sep-2020
1780,Revenue,CAHD,South - Commissioned Services,Other Small Contracts,HSBC Invoice Finance (UK) Limited,6789.93, 04-Sep-2020
1781,Revenue,CAHD,North - Community based support,Other Small Contracts,HSBC Invoice Finance (UK) Limited,4383.49, 04-Sep-2020
1782,Revenue,CAHD,Central - Commissioned Services,Other Small Contracts,HSBC Invoice Finance (UK) Limited,16121.62, 21-Sep-2020
1783,Revenue,CAHD,South - Commissioned Services,Day Care / Social Activities,HSBC Invoice Finance (UK) Limited,285.58, 21-Sep-2020
1784,Revenue,CAHD,South - Commissioned Services,Other Small Contracts,HSBC Invoice Finance (UK) Limited,7055.55, 21-Sep-2020
1785,Revenue,CAHD,North - Community based support,Other Small Contracts,HSBC Invoice Finance (UK) Limited,4182.65, 21-Sep-2020
1786,Revenue,CAHD,Pathway 1 - Re-Ablement Home Care,Other Small Contracts,HSBC Invoice Finance (UK) Limited,680.76, 25-Sep-2020
1787,Revenue,CAHD,Pathway 1 - Re-Ablement Home Care,Other Small Contracts,HSBC Invoice Finance (UK) Limited,675.18, 25-Sep-2020
1788,Revenue,CAHD,Hospital Tuition,Other Private Contractors,Huntercombe Hospital Maidenhead,510.00, 15-Sep-2020
1789,Revenue,CAHD,South - Commissioned Services,Permanent Nursing,Hydon Hill,6437.72, 22-Sep-2020
1790,Revenue,CAHD,CSC - Corporate Parenting,Computer Services,IAP UK Limited,4172.75, 23-Sep-2020
1791,Revenue,CAHD,CSC - Vinney Green Secure Unit,Training Expenses,ICS Learn,2666.67, 07-Sep-2020
1792,Revenue,CAHD,CSC - Section 17 0-25,Preventative Assistance,Impact Mentoring Limited,787.50, 18-Sep-2020
1793,Revenue,CAHD,Family and Young People Support South,Preventative Assistance,Impact Mentoring Limited,567.00, 18-Sep-2020
1794,Revenue,CAHD,SEN High Needs - Not at School Base,Other Private Contractors,Impact Mentoring Limited,648.00, 18-Sep-2020
1795,Revenue,CAHD,SEN High Needs - Not at School Base,Other Private Contractors,Impact Mentoring Limited,1174.50, 18-Sep-2020
1796,Revenue,CAHD,CSC - Section 17 0-25,Preventative Assistance,Impact Mentoring Limited,2575.00, 18-Sep-2020
1797,Revenue,CAHD,18-25 Year Olds,Day Care / Social Activities,Impact Mentoring Limited,4500.00, 28-Sep-2020
1798,Revenue,CAHD,Independent Special Placements - Travel,Client Transport,Impact Mentoring Limited,1350.00, 18-Sep-2020
1799,Revenue,CAHD,Care Management Team - South,Agency Staff (Operational)/PCT Pay,IPE,5075.00, 21-Sep-2020
1800,Revenue,CAHD,North - S117,Permanent Residential,Ivybank House Care Home,3256.32, 22-Sep-2020
1801,Revenue,CAHD,Social Lettings Agency,Rent,Individual,690.32, 11-Sep-2020
1802,Revenue,CAHD,Social Lettings Agency,Fees - General,Individual,12.22, 11-Sep-2020
1803,Revenue,CAHD,CSC - Section 17 - ART,Children - Family Support,Individual,667.00, 18-Sep-2020
1804,Revenue,CAHD,Social Lettings Agency,Rent,Individual,646.35, 01-Sep-2020
1805,Revenue,CAHD,Social Lettings Agency,Fees - General,Individual,8.36, 01-Sep-2020
1806,Revenue,CAHD,Statemented Support Equipment,Educational Supplies & Equipment,Jenx Limited,4069.00, 09-Sep-2020
1807,Revenue,CAHD,CSC - Vinney Green Secure Unit,Educational Materials,Jigsaw PSHE Ltd,1040.00, 23-Sep-2020
1808,Revenue,CAHD,Social Lettings Agency,Rent,Individual,730.35, 16-Sep-2020
1809,Revenue,CAHD,Social Lettings Agency,Fees - General,Individual,12.93, 16-Sep-2020
1810,Revenue,CAHD,Training - Adult Services,Training Expenses,Individual,700.00, 23-Sep-2020
1811,Revenue,CAHD,CSC - Legal Fees,Legal Fees,Individual,500.00, 07-Sep-2020
1812,Revenue,CAHD,Post 16 High Needs Placements,Other Private Contractors,Julian & Shani Payne T/A Peopleton Brook Farm,999.00, 01-Sep-2020
1813,Revenue,CAHD,Post 16 High Needs Placements,Other Private Contractors,Julian & Shani Payne T/A Peopleton Brook Farm,2613.00, 18-Sep-2020
1814,Revenue,CAHD,Post 16 High Needs Placements,Other Private Contractors,Julian & Shani Payne T/A Peopleton Brook Farm,1368.00, 22-Sep-2020
